date,department/service,beneficiary,amount,summary of purpose,category,transaction number
01.04.2017,ADULT SOCIAL CARE,GUYS & ST THOMAS NHS FOUNDATION TRUST,"61,000.00",LEARNING DISABIITIES SOCIAL WORKER,EXTERNAL AGENCIES AND BODIES,5902245010
01.04.2017,ASSET MANAGEMENT,M C TECHNICIANS LTD,"1,004.00",ADAPTATIONS,BUILDING R&M,5902244144
01.04.2017,CHIEF EXECUTIVE'S OFFICE,SOUTHWARK CHAMBER OF COMMERCE,500,BUSINESS SUPPORT,GRANTS,5902243997
01.04.2017,CHILDREN'S SERVICES,STANNAH LIFT SERVICES LTD,373.85,BUILDING SUMNER,BUILDING R&M,5902245094
01.04.2017,CHILDREN'S SERVICES,REDACTED PERSONAL DATA,"1,863.15",CLA TEAM SAFEGUARDING,PROFESSIONAL FEES,5902244363
01.04.2017,CHILDREN'S SERVICES,CHILDREN AND FAMILIES ACROSS BORDERS,"3,000.00",FAMILY ASSESSMENTS,RESIDENTIAL CARE,5902243940
01.04.2017,ENVIRONMENT AND LEISURE,SURREY DOCKS FARM PROVIDENT SOCIETY,"5,000.00",CAPITAL PS (LEISURE),CONSTR'N SUB CONTRACT - NON CERTIFICATED,5902243815
01.04.2017,ENVIRONMENT DIRECTORATE,GRADKO INTERNATIONAL LTD,262,POLLUTION CONTROL,EQUIPMENT PURCHASE & REPAIR,5902244014
01.04.2017,HOUSING GENERAL FUND,KIER FACILITIES SERVICES LTD,"3,360.00",CAPITAL PS (REGEN),CONSTRUCTION FEES - ENGINEER,5902244054
01.04.2017,HOUSING HRA,PARIS SMITH AND RANDALL SOLICITORS,"9,337.03",MAJOR WORKS HOLDING A/C,CREDITORS - RECEIPTS IN ADVANCE,5902243612
01.04.2017,LEISURE DIRECTORATE,GROUNDWORK LONDON,"7,781.50",GRANTS COMMISSIONING,GRANTS,5902243708
01.04.2017,LEISURE DIRECTORATE,GROUNDWORK LONDON,"7,781.50",GRANTS COMMISSIONING,GRANTS,5902243727
01.04.2017,LEISURE DIRECTORATE,GROUNDWORK LONDON,"15,563.00",GRANTS COMMISSIONING,GRANTS,5902243723
01.04.2017,MODERNISATION HGF,INTERSERVE (FACILITIES MANAGEMENT),"16,138.61",FM SERVICES BY INTERSERVE,BUILDING R&M,5902243738
01.04.2017,MODERNISATION HGF,INTERSERVE (FACILITIES MANAGEMENT),"216,418.37",FM SERVICES BY INTERSERVE,BUILDING R&M,5902243844
01.04.2017,MODERNISATION HGF,INTERSERVE (FACILITIES MANAGEMENT),"87,222.81",REPAIR AND MAINTENANCE SERVICES,SECURITY SERVICES,5902243839
02.04.2017,COMMISSIONING & CENTRAL,SOFTWARE FOR DATA ANALYSIS LTD,"10,260.00",BUSINESS APPLICATIONS,SOFTWARE,5902244006
02.04.2017,F & C S EXCLUDING CORPORATE BUDGETS,PURE SOLUTIONS LTD,"6,526.35",CONSTITUTIONAL TEAM,OP LEASE/HIRE CHARGES:PLANT/EQUIP/FURNIT,5902244462
02.04.2017,MODERNISATION HGF,ASSESSMENT & DEVELOPMENT,954,OCCUPATIONAL ASSESSMENT,EQUIPMENT PURCHASE & REPAIR,5902243984
03.04.2017,CHILDREN'S SERVICES,BELMONT CASTLE ACADEMY,"1,500.00",PUPIL PREMIUM CURRENT YEAR,SCHOOLS CAPITATION,2102651968
03.04.2017,CHILDREN'S SERVICES,BELMONT CASTLE ACADEMY,"1,500.00",PUPIL PREMIUM CURRENT YEAR,SCHOOLS CAPITATION,2102651969
03.04.2017,CHILDREN'S SERVICES,THE CHARTER SCHOOL EDUCATIONAL TRUST,"1,500.00",PUPIL PREMIUM CURRENT YEAR,SCHOOLS CAPITATION,2102651970
03.04.2017,CHILDREN'S SERVICES,THE CHARTER SCHOOL EDUCATIONAL TRUST,"1,500.00",PUPIL PREMIUM CURRENT YEAR,SCHOOLS CAPITATION,2102651971
03.04.2017,CHILDREN'S SERVICES,THE CHARTER SCHOOL EDUCATIONAL TRUST,"1,500.00",PUPIL PREMIUM CURRENT YEAR,SCHOOLS CAPITATION,2102651972
03.04.2017,CHILDREN'S SERVICES,THE CHARTER SCHOOL EDUCATIONAL TRUST,"1,500.00",PUPIL PREMIUM CURRENT YEAR,SCHOOLS CAPITATION,2102651973
03.04.2017,CHILDREN'S SERVICES,THE CHARTER SCHOOL EDUCATIONAL TRUST,"1,500.00",PUPIL PREMIUM CURRENT YEAR,SCHOOLS CAPITATION,2102651974
03.04.2017,CHILDREN'S SERVICES,THE CHARTER SCHOOL EDUCATIONAL TRUST,"1,500.00",PUPIL PREMIUM CURRENT YEAR,SCHOOLS CAPITATION,2102651975
03.04.2017,MODERNISATION HGF,ROSEMARY POTTS,"1,900.00",OCCUPATIONAL ASSESSMENT,CONSULTANTS SERVICES,5902245113
03.04.2017,MODERNISATION HGF,KIER FACILITIES SERVICES LTD,"54,679.96",PLANNED FM SERVICES BY KIER,BUILDING R&M,5902244325
04.04.2017,ADULT SOCIAL CARE,REDACTED PERSONAL DATA,600,APPOINTEESHIPS,OTHER PAYMENTS FOR CLIENTS,5902245276
04.04.2017,ADULT SOCIAL CARE,SOUTHWARK CITIZENS ADVICE,"61,627.73",BREAK FOR CARERS,EXTERNAL AGENCIES AND BODIES,5902245274
04.04.2017,ADULT SOCIAL CARE,REDACTED PERSONAL DATA,"1,125.12",LD LTS 18-64,SUPPORTED LIVING,2102653251
04.04.2017,ADULT SOCIAL CARE,PEOPLE PLUS,"3,898.20",LD LTS 18-64,PAYMENTS TO CLIENTS (DIRECT PAYMENTS),2102653325
04.04.2017,ADULT SOCIAL CARE,CHOICE SUPPORT,494,LD LTS 18-64,SUPPORTED LIVING,2102653331
04.04.2017,ADULT SOCIAL CARE,PLUS SERVICES,721.43,LD LTS 18-64,SUPPORTED LIVING,2102653329
04.04.2017,ADULT SOCIAL CARE,BRANDON TRUST,"1,562.96",LD LTS 18-64,SUPPORTED LIVING,2102653330
04.04.2017,ADULT SOCIAL CARE,WESTMINSTER HOMECARE LTD,835.48,MEM LTS 65+,HOMECARE - SPOT,2102653358
04.04.2017,ADULT SOCIAL CARE,REDACTED PERSONAL DATA,599.4,MH LTS 18-64,DISCRETIONARY FLEXIBLE FEES & INCOME,2102653328
04.04.2017,ADULT SOCIAL CARE,THE CENTRE FOR BETTER HEALTH LTD,780,MH LTS 18-64,HOMECARE - SPOT,2102653324
04.04.2017,ADULT SOCIAL CARE,CARE DIRECT UK LTD,364.23,MH LTS 65+,HOMECARE - SPOT,2102653265
04.04.2017,ADULT SOCIAL CARE,WESTMINSTER HOMECARE LTD,"1,877.19",MH LTS 65+,HOMECARE - SPOT,2102653364
04.04.2017,ADULT SOCIAL CARE,CARE DIRECT UK LTD,424.94,PHY LTS 18-64,HOMECARE - SPOT,2102653259
04.04.2017,ADULT SOCIAL CARE,CARE DIRECT UK LTD,711.6,PHY LTS 18-64,HOMECARE - SPOT,2102653278
04.04.2017,ADULT SOCIAL CARE,WESTMINSTER HOMECARE LTD,807.49,PHY LTS 18-64,HOMECARE - SPOT,2102653336
04.04.2017,ADULT SOCIAL CARE,WESTMINSTER HOMECARE LTD,996.25,PHY LTS 18-64,HOMECARE - SPOT,2102653342
04.04.2017,ADULT SOCIAL CARE,PEOPLE PLUS,267,PHY LTS 18-64,PAYMENTS TO CLIENTS (DIRECT PAYMENTS),2102653323
04.04.2017,ADULT SOCIAL CARE,REDACTED PERSONAL DATA,657.44,PHY LTS 65+,PAYMENTS TO CLIENTS (DIRECT PAYMENTS),2102653326
04.04.2017,ADULT SOCIAL CARE,SWK DISABLEMENT ASSN,456,PHY LTS 65+,HOMECARE - C&V,2102653338
04.04.2017,ADULT SOCIAL CARE,SWK DISABLEMENT ASSN,"1,087.72",PHY LTS 65+,HOMECARE - C&V,2102653363
04.04.2017,ADULT SOCIAL CARE,SWK DISABLEMENT ASSN,"1,702.40",PHY LTS 65+,HOMECARE - C&V,2102653348
04.04.2017,ADULT SOCIAL CARE,CARE DIRECT UK LTD,279.92,PHY LTS 65+,HOMECARE - C&V,2102653256
04.04.2017,ADULT SOCIAL CARE,CARE DIRECT UK LTD,583.44,PHY LTS 65+,HOMECARE - C&V,2102653254
04.04.2017,ADULT SOCIAL CARE,METRO HOMECARE LTD,364.23,PHY LTS 65+,HOMECARE - C&V,2102653354
04.04.2017,ADULT SOCIAL CARE,WESTMINSTER HOMECARE LTD,699,PHY LTS 65+,HOMECARE - C&V,2102653365
04.04.2017,ADULT SOCIAL CARE,WESTMINSTER HOMECARE LTD,"1,048.67",PHY LTS 65+,HOMECARE - C&V,2102653337
04.04.2017,ADULT SOCIAL CARE,LAMBETH CHINESE COMMUNITY ASSOCIATION,323.15,PHY LTS 65+,HOMECARE - SPOT,2102653335
04.04.2017,ADULT SOCIAL CARE,LAMBETH CHINESE COMMUNITY ASSOCIATION,407.45,PHY LTS 65+,HOMECARE - SPOT,2102653349
04.04.2017,ADULT SOCIAL CARE,LAMBETH CHINESE COMMUNITY ASSOCIATION,435.55,PHY LTS 65+,HOMECARE - SPOT,2102653352
04.04.2017,ADULT SOCIAL CARE,LAMBETH CHINESE COMMUNITY ASSOCIATION,646.3,PHY LTS 65+,HOMECARE - SPOT,2102653333
04.04.2017,ADULT SOCIAL CARE,LAMBETH CHINESE COMMUNITY ASSOCIATION,800.85,PHY LTS 65+,HOMECARE - SPOT,2102653351
04.04.2017,ADULT SOCIAL CARE,LAMBETH CHINESE COMMUNITY ASSOCIATION,"2,360.40",PHY LTS 65+,HOMECARE - SPOT,2102653334
04.04.2017,ADULT SOCIAL CARE,SWK DISABLEMENT ASSN,528.2,PHY LTS 65+,HOMECARE - SPOT,2102653355
04.04.2017,ADULT SOCIAL CARE,SWK DISABLEMENT ASSN,874,PHY LTS 65+,HOMECARE - SPOT,2102653347
04.04.2017,ADULT SOCIAL CARE,SWK DISABLEMENT ASSN,887.04,PHY LTS 65+,HOMECARE - SPOT,2102653339
04.04.2017,ADULT SOCIAL CARE,SWK DISABLEMENT ASSN,918.72,PHY LTS 65+,HOMECARE - SPOT,2102653350
04.04.2017,ADULT SOCIAL CARE,SWK DISABLEMENT ASSN,"1,441.44",PHY LTS 65+,HOMECARE - SPOT,2102653356
04.04.2017,ADULT SOCIAL CARE,SWK DISABLEMENT ASSN,"2,705.60",PHY LTS 65+,HOMECARE - SPOT,2102653357
04.04.2017,ADULT SOCIAL CARE,CARE DIRECT UK LTD,258.33,PHY LTS 65+,HOMECARE - SPOT,2102653318
04.04.2017,ADULT SOCIAL CARE,CARE DIRECT UK LTD,266.43,PHY LTS 65+,HOMECARE - SPOT,2102653301
04.04.2017,ADULT SOCIAL CARE,CARE DIRECT UK LTD,397.96,PHY LTS 65+,HOMECARE - SPOT,2102653292
04.04.2017,ADULT SOCIAL CARE,CARE DIRECT UK LTD,418.19,PHY LTS 65+,HOMECARE - SPOT,2102653271
04.04.2017,ADULT SOCIAL CARE,CARE DIRECT UK LTD,424.94,PHY LTS 65+,HOMECARE - SPOT,2102653252
04.04.2017,ADULT SOCIAL CARE,CARE DIRECT UK LTD,424.94,PHY LTS 65+,HOMECARE - SPOT,2102653283
04.04.2017,ADULT SOCIAL CARE,CARE DIRECT UK LTD,462.03,PHY LTS 65+,HOMECARE - SPOT,2102653309
04.04.2017,ADULT SOCIAL CARE,CARE DIRECT UK LTD,485.64,PHY LTS 65+,HOMECARE - SPOT,2102653308
04.04.2017,ADULT SOCIAL CARE,CARE DIRECT UK LTD,519.37,PHY LTS 65+,HOMECARE - SPOT,2102653306
04.04.2017,ADULT SOCIAL CARE,CARE DIRECT UK LTD,600.31,PHY LTS 65+,HOMECARE - SPOT,2102653304
04.04.2017,ADULT SOCIAL CARE,CARE DIRECT UK LTD,708.23,PHY LTS 65+,HOMECARE - SPOT,2102653281
04.04.2017,ADULT SOCIAL CARE,CARE DIRECT UK LTD,708.23,PHY LTS 65+,HOMECARE - SPOT,2102653303
04.04.2017,ADULT SOCIAL CARE,METRO HOMECARE LTD,300.15,PHY LTS 65+,HOMECARE - SPOT,2102653362
04.04.2017,ADULT SOCIAL CARE,METRO HOMECARE LTD,306.9,PHY LTS 65+,HOMECARE - SPOT,2102653346
04.04.2017,ADULT SOCIAL CARE,METRO HOMECARE LTD,350.74,PHY LTS 65+,HOMECARE - SPOT,2102653341
04.04.2017,ADULT SOCIAL CARE,WESTMINSTER HOMECARE LTD,629.27,PHY LTS 65+,HOMECARE - SPOT,2102653353
04.04.2017,ADULT SOCIAL CARE,WESTMINSTER HOMECARE LTD,891.39,PHY LTS 65+,HOMECARE - SPOT,2102653343
04.04.2017,ADULT SOCIAL CARE,WESTMINSTER HOMECARE LTD,"1,195.29",PHY LTS 65+,HOMECARE - SPOT,2102653359
04.04.2017,ADULT SOCIAL CARE,WESTMINSTER HOMECARE LTD,"2,159.91",PHY LTS 65+,HOMECARE - SPOT,2102653344
04.04.2017,ADULT SOCIAL CARE,WESTMINSTER HOMECARE LTD,"2,555.30",PHY LTS 65+,HOMECARE - SPOT,2102653360
04.04.2017,ADULT SOCIAL CARE,PROFAD CARE AGENCY,"3,740.09",PHY LTS 65+,HOMECARE - SPOT,2102653361
04.04.2017,ASSET MANAGEMENT,POTTER RAPER AND PARTNERS,"3,273.40",HIP MAJOR WORKS,TRAINING,5902245294
04.04.2017,ASSET MANAGEMENT,BLAKENEY LEIGH LTD,"2,182.23",R&M CONTRACTS (SOUTH),BUILDING R&M,5902245159
04.04.2017,CENTRAL FUNCTIONS,EDF ENERGY PLC,440.05,COMMERCIAL PROPERTIES,ELECTRICITY,5902245166
04.04.2017,CHIEF EXECUTIVE,ADVANCED TRANSPORT RESEARCH LTD,750,CAPITAL PS (REGEN),CONST'N MAIN CONTRACT - NON CERTIFICATED,5902245226
04.04.2017,CHIEF EXECUTIVE,FAITHFULL & GOULD,"13,649.71",CAPITAL PS (REGEN),CONSTRUCTION FEES  - EXTERNAL,5902244934
04.04.2017,CHIEF EXECUTIVE'S OFFICE,RENAISI LTD,"44,543.00",CHIEF EXEC'S OFFICE,GRANTS,5902245286
04.04.2017,CHILDREN AND ADULT,FAITHFULL & GOULD,"4,458.00",CAPITAL PS (EDUCATION),CONSTRUCTION FEES  - EXTERNAL,5902245182
04.04.2017,CHILDREN'S SERVICES,REDACTED PERSONAL DATA,401.08,ADOPTION PLACEMENTS & INTER AGENCY,PAYMENTS TO CARERS,5902245271
04.04.2017,CHILDREN'S SERVICES,THE COMPLETE WORKS INDEPENDENT SCHOOL,"28,455.00",ALTERNATIVE PROVISION,EXTERNAL AGENCIES AND BODIES,5902245238
04.04.2017,CHILDREN'S SERVICES,FRESHSTART IN EDUCATION,"8,190.00",ALTERNATIVE PROVISION,EXTERNAL AGENCIES AND BODIES,5902245331
04.04.2017,CHILDREN'S SERVICES,MARIAS KITCHEN,382.25,CHILDRENS CENTRE,EXTERNAL AGENCIES AND BODIES,5902245299
04.04.2017,CHILDREN'S SERVICES,THE GROVE CHILDRENS CENTRE,"1,400.00",CHILDRENS CENTRE,EXTERNAL AGENCIES AND BODIES,5902245310
04.04.2017,CHILDREN'S SERVICES,EARLY EDUCATION,800,CHILDRENS CENTRE,OTHER SUBSISTENCE & CONFERENCE EXPENSES,5902245297
04.04.2017,CHILDREN'S SERVICES,HAILEY TRAINING,"1,447.00",CHILDRENS CENTRE,OTHER SUBSISTENCE & CONFERENCE EXPENSES,5902245295
04.04.2017,CHILDREN'S SERVICES,GUARANTEED TRAINING LTD,"1,400.00",CHILDRENS CENTRE,OTHER SUBSISTENCE & CONFERENCE EXPENSES,5902245296
04.04.2017,CHILDREN'S SERVICES,TRIANGLE CONSULTING,"1,190.00",CHILDRENS CENTRE,TRAINING,5902245323
04.04.2017,CHILDREN'S SERVICES,CHARLOTTE  SHARMAN PRIMARY SCHOOL,"11,875.00",CHILDRENS CENTRE,EXTERNAL AGENCIES AND BODIES,5902245199
04.04.2017,CHILDREN'S SERVICES,HEBER PRIMARY SCHOOL,"1,140.00",CHILDRENS CENTRE,EXTERNAL AGENCIES AND BODIES,5902245205
04.04.2017,CHILDREN'S SERVICES,HEBER PRIMARY SCHOOL,"1,520.00",CHILDRENS CENTRE,EXTERNAL AGENCIES AND BODIES,5902245205
04.04.2017,CHILDREN'S SERVICES,HEBER PRIMARY SCHOOL,"2,052.00",CHILDRENS CENTRE,EXTERNAL AGENCIES AND BODIES,5902245205
04.04.2017,CHILDREN'S SERVICES,HEBER PRIMARY SCHOOL,"2,660.00",CHILDRENS CENTRE,EXTERNAL AGENCIES AND BODIES,5902245205
04.04.2017,CHILDREN'S SERVICES,HEBER PRIMARY SCHOOL,"3,040.00",CHILDRENS CENTRE,EXTERNAL AGENCIES AND BODIES,5902245205
04.04.2017,CHILDREN'S SERVICES,GLS EDUCATIONAL SUPPLIES LTD,384.53,DIRECT DELIVERY,EQUIPMENT PURCHASE & REPAIR,5902245326
04.04.2017,CHILDREN'S SERVICES,NCFE-CACHE,550,DIRECT DELIVERY,MATERIALS,5902245163
04.04.2017,CHILDREN'S SERVICES,NCFE-CACHE,600,DIRECT DELIVERY,MATERIALS,5902245161
04.04.2017,CHILDREN'S SERVICES,HEALTHCARE & TRANSPORT SERVICE,"49,497.75",HOME 2 SCHOOL TRANSPORT,HIRED VEHICLES,5902245275
04.04.2017,CHILDREN'S SERVICES,THE ST THOMAS THE APOSTLE COLLEGE,"1,428.00",MATERNITY COVER,SCHOOLS CAPITATION,5902245346
04.04.2017,CHILDREN'S SERVICES,THE GROVE CHILDRENS CENTRE,300,NURSERY ED GRANT 2 Y Y O,EXTERNAL AGENCIES AND BODIES,5902245310
04.04.2017,CHILDREN'S SERVICES,THE GROVE CHILDRENS CENTRE,353,NURSERY ED GRANT 2 Y Y O,EXTERNAL AGENCIES AND BODIES,5902245310
04.04.2017,CHILDREN'S SERVICES,THE GROVE CHILDRENS CENTRE,550,NURSERY ED GRANT 2 Y Y O,EXTERNAL AGENCIES AND BODIES,5902245310
04.04.2017,CHILDREN'S SERVICES,THE GROVE CHILDRENS CENTRE,735,NURSERY ED GRANT 2 Y Y O,EXTERNAL AGENCIES AND BODIES,5902245310
04.04.2017,CHILDREN'S SERVICES,THE GROVE CHILDRENS CENTRE,978,NURSERY ED GRANT 2 Y Y O,EXTERNAL AGENCIES AND BODIES,5902245310
04.04.2017,CHILDREN'S SERVICES,THE GROVE CHILDRENS CENTRE,"1,400.00",NURSERY ED GRANT 2 Y Y O,EXTERNAL AGENCIES AND BODIES,5902245310
04.04.2017,CHILDREN'S SERVICES,BEORMUND PRIMARY SCHOOL,"12,000.00",PRIMARY ACHIEVEMENT,EXTERNAL AGENCIES AND BODIES,5902245212
04.04.2017,CHILDREN'S SERVICES,BEORMUND PRIMARY SCHOOL,"12,600.00",PRIMARY ACHIEVEMENT,EXTERNAL AGENCIES AND BODIES,5902245213
04.04.2017,CHILDREN'S SERVICES,FAITHFULL & GOULD,"-14,819.00",PROPERTY MANAGEMENT,PROFESSIONAL FEES,5902244524
04.04.2017,CHILDREN'S SERVICES,FAITHFULL & GOULD,"1,248.00",PROPERTY MANAGEMENT,PROFESSIONAL FEES,5902245180
04.04.2017,CHILDREN'S SERVICES,NEW HORIZONS CHILD CARE LTD,900,RESIDENTIAL,RESIDENTIAL CARE,5902245145
04.04.2017,CHILDREN'S SERVICES,NEW HORIZONS CHILD CARE LTD,"2,880.00",RESIDENTIAL,RESIDENTIAL CARE,5902245146
04.04.2017,CHILDREN'S SERVICES,NEW HORIZONS CHILD CARE LTD,"3,960.00",RESIDENTIAL,RESIDENTIAL CARE,5902245150
04.04.2017,CHILDREN'S SERVICES,NORTH LAKES CHILDRENS SERVICES,"1,578.90",RESIDENTIAL,RESIDENTIAL CARE,5902245152
04.04.2017,CHILDREN'S SERVICES,NORTH LAKES CHILDRENS SERVICES,"9,789.18",RESIDENTIAL,RESIDENTIAL CARE,5902245155
04.04.2017,CHILDREN'S SERVICES,NORTH LAKES CHILDRENS SERVICES,"10,736.52",RESIDENTIAL,RESIDENTIAL CARE,5902245153
04.04.2017,CHILDREN'S SERVICES,NORTH LAKES CHILDRENS SERVICES,"11,052.30",RESIDENTIAL,RESIDENTIAL CARE,5902245154
04.04.2017,CHILDREN'S SERVICES,REDACTED PERSONAL DATA,329.55,SPECIAL GUARDIANSHIP,PAYMENTS TO CARERS,2102653250
04.04.2017,CHILDREN'S SERVICES,REDACTED PERSONAL DATA,498.38,SPECIAL GUARDIANSHIP,PAYMENTS TO CARERS,2102653249
04.04.2017,CHILDREN'S SERVICES,LOGICOUS LTD,"1,037.30",SPECIAL GUARDIANSHIP,EXTERNAL AGENCIES AND BODIES,5902245303
04.04.2017,COMMUNITIES,REDACTED PERSONAL DATA,"5,392.00",NO RECOURSE TO PUBLIC FUNDS,SECTION 17 PAYMENTS TO AGENCIES/CARERS,5902245300
04.04.2017,COMMUNITIES,EDEN ESTATES LONDON LTD,"4,312.00",NO RECOURSE TO PUBLIC FUNDS,SECTION 17 PAYMENTS TO AGENCIES/CARERS,5902245292
04.04.2017,COMMUNITIES,CROMWOOD HOUSING,"39,541.49",NO RECOURSE TO PUBLIC FUNDS,SECTION 17 PAYMENTS TO AGENCIES/CARERS,5902245240
04.04.2017,COMMUNITIES,METROPOLITAN SUPPORT TRUST,945,NRPF MENTAL HEALTH,RENTS,5902245200
04.04.2017,COMMUNITIES,METROPOLITAN SUPPORT TRUST,945,NRPF MENTAL HEALTH,RENTS,5902245202
04.04.2017,COMMUNITIES,METROPOLITAN SUPPORT TRUST,945,NRPF MENTAL HEALTH,RENTS,5902245206
04.04.2017,COMMUNITIES,METROPOLITAN SUPPORT TRUST,945,NRPF MENTAL HEALTH,RENTS,5902245207
04.04.2017,COMMUNITIES,SETCHELL ESTATE T&RA,"1,440.00",TENANTS FUND,GRANTS,5902245347
04.04.2017,COMMUNITIES,ST FAITHS COMMUNITY CENTRE,"5,115.25",VCS GRANTS,GRANTS,5902245244
04.04.2017,COMMUNITIES,TIME & TALENTS ASSOCIATION,"1,067.75",VCS GRANTS,GRANTS,5902245246
04.04.2017,COMMUNITIES,TIME & TALENTS ASSOCIATION,"3,475.50",VCS GRANTS,GRANTS,5902245245
04.04.2017,COMMUNITIES,LONDON WILDLIFE TRUST,"7,968.75",VCS GRANTS,GRANTS,5902245247
04.04.2017,COMMUNITIES,SOUTHWARK CITIZENS ADVICE,"5,600.00",VCS GRANTS,GRANTS,5902245248
04.04.2017,COMMUNITIES,EAST DULWICH COMMUNITY CENTRE,"1,740.00",VCS GRANTS,GRANTS,5902245249
04.04.2017,COMMUNITIES,SOUTHWARK SOMALI REFUGEE COUNCIL,"13,222.50",VCS GRANTS,GRANTS,5902245250
04.04.2017,COMMUNITIES,BEORMUND COMMUNITY CENTRE,"17,437.25",VCS GRANTS,GRANTS,5902245251
04.04.2017,COMMUNITIES,BEDE HSE,"3,475.50",VCS GRANTS,GRANTS,5902245252
04.04.2017,COMMUNITIES,CAMBRIDGE HOUSE & TALBOT,"3,475.50",VCS GRANTS,GRANTS,5902245253
04.04.2017,COMMUNITIES,AAINA WOMEN GROUP,"8,018.25",VCS GRANTS,GRANTS,5902245258
04.04.2017,COMMUNITIES,SOUTHWARK PENSIONERS CENTRE,"28,355.25",VCS GRANTS,GRANTS,5902245259
04.04.2017,COMMUNITIES,SWK DAY CTR FOR ASYLUM SEEKERS,"11,330.25",VCS GRANTS,GRANTS,5902245260
04.04.2017,COMMUNITIES,LATIN AMERICAN DISABLED PEOPLE PROJECT,"4,000.00",VCS GRANTS,GRANTS,5902245266
04.04.2017,COMMUNITIES,BLACKFRIARS SETTLEMENT,"5,574.75",VCS GRANTS,GRANTS,5902245270
04.04.2017,COMMUNITIES,BERMONDSEY COMMUNITY KITCHEN,"3,500.00",VCS GRANTS,GRANTS,5902245272
04.04.2017,CUSTOMER EXPERIENCE HGF,DIGNITY FUNERALS LTD,"16,630.00",CORONER'S,PROFESSIONAL FEES,5902245236
04.04.2017,CUSTOMER EXPERIENCE HGF,VENTURE HOUSING (LONDON) LTD,"2,343.00",NIGHTLY TA (NSC),EXTERNAL AGENCIES AND BODIES,5902245174
04.04.2017,CUSTOMER EXPERIENCE HGF,VENTURE HOUSING (LONDON) LTD,"7,128.00",NIGHTLY TA (NSC),EXTERNAL AGENCIES AND BODIES,5902245171
04.04.2017,ENVIRONMENT AND LEISURE,PHOEBES LANDSCAPES LTD,"1,966.64",CAPITAL PS (LEISURE),CONSTRUCTION FEES  - EXTERNAL,5902245185
04.04.2017,ENVIRONMENT DIRECTORATE,ST GEORGES CE SCHOOL,"2,000.00",BCP CYCLING GRANTS FOR SCHOOLS,GRANTS,5902245293
04.04.2017,ENVIRONMENT DIRECTORATE,FAROL LTD,"-3,000.00",ICC SPECIAL TEAMS,EQUIPMENT PURCHASE & REPAIR,5902245229
04.04.2017,ENVIRONMENT DIRECTORATE,FAROL LTD,"-3,000.00",ICC SPECIAL TEAMS,EQUIPMENT PURCHASE & REPAIR,5902245231
04.04.2017,ENVIRONMENT DIRECTORATE,FAROL LTD,"14,479.00",ICC SPECIAL TEAMS,EQUIPMENT PURCHASE & REPAIR,5902245228
04.04.2017,F & C S EXCLUDING CORPORATE BUDGETS,ROYAL MAIL GROUP LTD,"1,578.54",ADMINISTRATIVE SUPPORT,POSTAGES,5902245332
04.04.2017,F & C S EXCLUDING CORPORATE BUDGETS,BRITISH GAS TRADING LTD,-381.15,PAYMENTS CONTROL,OFFICE EXPENSES,2102653889
04.04.2017,F & C S EXCLUDING CORPORATE BUDGETS,ACCESSIBLE SOLUTIONS,"-3,012.00",PAYMENTS CONTROL,OFFICE EXPENSES,2102653888
04.04.2017,HOUSING,MARWOOD ELECTRICAL CO,480.51,STORES,CREDITORS -GR/IR CLEARING ACCOUNT,5902245284
04.04.2017,HOUSING,MARWOOD ELECTRICAL CO,"1,080.00",STORES,CREDITORS -GR/IR CLEARING ACCOUNT,5902245284
04.04.2017,HOUSING HRA,ACCESSIBLE SOLUTIONS,"3,012.00",CAPITAL PS (HRA),CONST'N MAIN CONTRACT - NON CERTIFICATED,5902245376
04.04.2017,HOUSING HRA,POTTER RAPER AND PARTNERS,"2,092.85",CAPITAL PS (HRA),CONSTRUCTION FEES  - EXTERNAL,5902245304
04.04.2017,HOUSING HRA,POTTER RAPER AND PARTNERS,"11,492.58",CAPITAL PS (HRA),CONSTRUCTION FEES  - EXTERNAL,5902245230
04.04.2017,HOUSING HRA,CALFORD SEADEN LLP,"2,505.55",CAPITAL PS (HRA),CONSTRUCTION FEES  - EXTERNAL,5902245167
04.04.2017,HOUSING HRA,CALFORD SEADEN LLP,"6,403.65",CAPITAL PS (HRA),CONSTRUCTION FEES  - EXTERNAL,5902245190
04.04.2017,HOUSING HRA,CALFORD SEADEN LLP,"11,452.86",CAPITAL PS (HRA),CONSTRUCTION FEES  - EXTERNAL,5902245210
04.04.2017,HOUSING HRA,WARDELL ARMSTRONG LLP,500,CAPITAL PS (REGEN),CONSTRUCTION FEES,5902245301
04.04.2017,HOUSING HRA,FITZPATRICK & CO SOLICITORS,"3,281.90",CAPITAL PS (REGEN),LAND & BUILDINGS ACQUISITION,5902245345
04.04.2017,LEISURE DIRECTORATE,BANKSIDE OPEN SPACES TRUST,"11,503.25",ENVIRONMENT & LEISURE GRANTS,OTHER CONTRACTORS,5902245320
04.04.2017,LEISURE DIRECTORATE,TECHNICAL SURFACES,450,G M HARMWORTH A TEAM,GROUNDS MAINTENANCE,5902245302
04.04.2017,LEISURE DIRECTORATE,BLACKFRIARS SETTLEMENT,"7,787.50",GRANTS COMMISSIONING,GRANTS,5902245287
04.04.2017,LEISURE DIRECTORATE,BLACKFRIARS SETTLEMENT,"7,787.50",GRANTS COMMISSIONING,GRANTS,5902245289
04.04.2017,LEISURE DIRECTORATE,BLACKFRIARS SETTLEMENT,"7,787.50",GRANTS COMMISSIONING,GRANTS,5902245290
04.04.2017,LEISURE DIRECTORATE,BEDE HOUSE ASSOCIATION,"7,787.50",GRANTS COMMISSIONING,GRANTS,5902245288
04.04.2017,LEISURE DIRECTORATE,BEDE HOUSE ASSOCIATION,"7,787.50",GRANTS COMMISSIONING,GRANTS,5902245305
04.04.2017,LEISURE DIRECTORATE,BLACKFRIARS SETTLEMENT,"1,250.00",PLAY GRANTS - EDUCATION,EXTERNAL AGENCIES AND BODIES,5902245242
04.04.2017,MODERNISATION HGF,BOTTOMLINE TECHNOLOGIES EUROPE LTD,415.8,APPLICATIONS,SOFTWARE,5902245291
04.04.2017,MODERNISATION HGF,BOTTOMLINE TECHNOLOGIES EUROPE LTD,"2,088.45",APPLICATIONS,SOFTWARE,5902245291
04.04.2017,MODERNISATION HGF,SHARPE PRITCHARD LLP,560,PLANNED MAINTENANCE,PROFESSIONAL FEES,5902245148
04.04.2017,RESIDENT SERVICES,A & H PEST CONTROL LTD,790,AYLESBURY,PEST CONTROL,5902245328
04.04.2017,RESIDENT SERVICES,A & H PEST CONTROL LTD,380,CAMBERWELL,PEST CONTROL,5902245339
04.04.2017,RESIDENT SERVICES,A & H PEST CONTROL LTD,490,CAMBERWELL,PEST CONTROL,5902245334
04.04.2017,RESIDENT SERVICES,NPOWER LTD,330.31,OPERATIONS/OFFICES ACCOMMODATION,ELECTRICITY,5902245342
04.04.2017,RESIDENT SERVICES,NPOWER LTD,431.16,OPERATIONS/OFFICES ACCOMMODATION,ELECTRICITY,5902245329
04.04.2017,RESIDENT SERVICES,NPOWER LTD,593.43,OPERATIONS/OFFICES ACCOMMODATION,ELECTRICITY,5902245343
04.04.2017,RESIDENT SERVICES,NPOWER LTD,684.93,OPERATIONS/OFFICES ACCOMMODATION,ELECTRICITY,5902245344
04.04.2017,RESIDENT SERVICES,NPOWER LTD,770.81,OPERATIONS/OFFICES ACCOMMODATION,ELECTRICITY,5902245333
04.04.2017,RESIDENT SERVICES,NPOWER LTD,774.25,OPERATIONS/OFFICES ACCOMMODATION,ELECTRICITY,5902245337
04.04.2017,RESIDENT SERVICES,NPOWER LTD,892.09,OPERATIONS/OFFICES ACCOMMODATION,ELECTRICITY,5902245335
04.04.2017,RESIDENT SERVICES,NPOWER LTD,929.08,OPERATIONS/OFFICES ACCOMMODATION,ELECTRICITY,5902245338
04.04.2017,RESIDENT SERVICES,NPOWER LTD,929.08,OPERATIONS/OFFICES ACCOMMODATION,ELECTRICITY,5902245340
04.04.2017,RESIDENT SERVICES,HARROW GREEN LTD,"10,572.00",OPERATIONS/OFFICES ACCOMMODATION,REMOVAL EXPENSES,5902245330
04.04.2017,RESIDENT SERVICES,A & H PEST CONTROL LTD,790,PECKHAM,PEST CONTROL,5902245177
04.04.2017,RESIDENT SERVICES,EDF ENERGY PLC,279.23,ROTHERHITHE,ELECTRICITY,5902245142
04.04.2017,RESIDENT SERVICES,BRITISH GAS TRADING LTD,381.16,TA HOSTELS,GAS,5902245453
04.04.2017,RESIDENT SERVICES,KENT COUNTY COUNCIL - LASER,"1,719.20",TA HOSTELS,ELECTRICITY,5902245285
04.04.2017,RESIDENT SERVICES,K3 PROPERTY MANAGEMENT LTD,"2,412.00",TA PLACEMENTS,RENTS,5902245237
04.04.2017,RESIDENT SERVICES HGF,THAMES WATER UTILITIES LTD,415.49,ILDERTON ROAD PERM,WATER,5902245278
04.04.2017,VARIOUS,LAND REGISTRY,288,LAND REGISTRY SEARCHES,CHARGES,DIRECT DEBIT PAYMENT
05.04.2017,ASSET MANAGEMENT,TOTAL HYGIENE LTD,265,ADAPTATIONS,BUILDING R&M,5902245392
05.04.2017,ASSET MANAGEMENT,M C TECHNICIANS LTD,520,ADAPTATIONS,BUILDING R&M,5902245381
05.04.2017,ASSET MANAGEMENT,M C TECHNICIANS LTD,880,ADAPTATIONS,BUILDING R&M,5902245383
05.04.2017,ASSET MANAGEMENT,M C TECHNICIANS LTD,"3,030.00",ADAPTATIONS,BUILDING R&M,5902245502
05.04.2017,ASSET MANAGEMENT,M C TECHNICIANS LTD,300,ADAPTATIONS,OTHER R&M,5902245380
05.04.2017,ASSET MANAGEMENT,AAA TRAINING CO. LTD,590,ENG COMPLIANCE MANAGER,STATIONERY,5902245457
05.04.2017,CENTRAL FUNCTIONS,KELVIN ALBERT RUTLEDGE,"3,041.67",COMMERCIAL PROPERTIES,LEGAL FEES & COURT COSTS,2102653841
05.04.2017,CENTRAL FUNCTIONS,JACK PARKER,"1,000.00",COMMERCIAL PROPERTIES,LEGAL FEES & COURT COSTS,2102653867
05.04.2017,CENTRAL FUNCTIONS,EDF ENERGY PLC,270.03,HEATING ACCOUNT,ELECTRICITY,5902245373
05.04.2017,CENTRAL FUNCTIONS,HAMMICKS,699,HOME OWNERSHIP,BOOKS & PUBLICATIONS,5902245351
05.04.2017,CHIEF EXECUTIVE,CONWAY AECOM LTD,"37,577.20",CAPITAL PS (REGEN),CONSTRUCTION FEES  - EXTERNAL,2102653874
05.04.2017,CHIEF EXECUTIVE,SYD BISHOP & SONS(DEMOLITION) LTD,"144,842.18",CAPITAL PS (REGEN),CONSTRUCTION MAIN CONTRACT -CERTIFICATED,2102653869
05.04.2017,CHIEF EXECUTIVE,LAWSON ESTATE T&RA,"1,740.00",CAPITAL PS (REGEN),CONSTRUCTION SITE COSTS,5902245498
05.04.2017,CHIEF EXECUTIVE'S OFFICE,J C CONSULTANT SERVICES LTD,"8,000.00",CHIEF EXEC'S OFFICE,GRANTS,5902245447
05.04.2017,CHIEF EXECUTIVE'S OFFICE,J C CONSULTANT SERVICES LTD,"8,500.00",CHIEF EXEC'S OFFICE,GRANTS,5902245446
05.04.2017,CHIEF EXECUTIVE'S OFFICE,STEP AHEAD EMPLOYMENT LTD,"34,850.00",YOUTH FUND EMPLOYMENT,GRANTS,5902245417
05.04.2017,CHILDREN AND ADULT,WILLIAM J MARSHALL & PARTNERS LLP,910,CAPITAL PS (EDUCATION),CONSTRUCTION FEES,5902245463
05.04.2017,CHILDREN AND ADULT,PROPERTY FACILITIES GROUP LTD,"3,515.11",CAPITAL PS (SOC SERV),CONSTRUCTION MAIN CONTRACT,5902245522
05.04.2017,CHILDREN AND ADULT,INTERSERVE (FACILITIES MANAGEMENT),"145,477.54",CAPITAL PS (SOC SERV),CONSTRUCTION MAIN CONTRACT -CERTIFICATED,2102653823
05.04.2017,CHILDREN'S SERVICES,REVIVAL,825,ADMIN CURLEW,OTHER PAYMENTS FOR CLIENTS,5902245369
05.04.2017,CHILDREN'S SERVICES,ARC SOFTWARE CONSULTANCY,"2,245.00",ALTERNATIVE PROVISION,SOFTWARE,5902245358
05.04.2017,CHILDREN'S SERVICES,CASTLE WATER LTD,"1,632.73",BUILDING SUMNER,WATER,5902245438
05.04.2017,CHILDREN'S SERVICES,CORAM ACADEMY LTD,"2,868.55",DISABILITY & HIV,EXTERNAL AGENCIES AND BODIES,5902245370
05.04.2017,CHILDREN'S SERVICES,PEARSON EDUCATION LTD,300,EDUCATIONAL PSYCHOLOGY - SEND,TRAINING,5902245472
05.04.2017,CHILDREN'S SERVICES,PEARSON EDUCATION LTD,300,EDUCATIONAL PSYCHOLOGY - SEND,TRAINING,5902245472
05.04.2017,CHILDREN'S SERVICES,Y WALKER PSYCHOLOGY LTD,"1,511.67",LEGAL,LEGAL FEES & COURT COSTS,2102653866
05.04.2017,CHILDREN'S SERVICES,CREIGHTON & PARTNERS,"1,236.25",LEGAL,LEGAL FEES & COURT COSTS,2102653836
05.04.2017,CHILDREN'S SERVICES,G T STEWART SOLICITORS,360,LEGAL,LEGAL FEES & COURT COSTS,2102653839
05.04.2017,CHILDREN'S SERVICES,TARA VINDIS,400,LEGAL,LEGAL FEES & COURT COSTS,2102653856
05.04.2017,CHILDREN'S SERVICES,JANET PLANGE,479.17,LEGAL,LEGAL FEES & COURT COSTS,2102653840
05.04.2017,CHILDREN'S SERVICES,TABITHA BARRAN,300,LEGAL,LEGAL FEES & COURT COSTS,2102653852
05.04.2017,CHILDREN'S SERVICES,TABITHA BARRAN,300,LEGAL,LEGAL FEES & COURT COSTS,2102653854
05.04.2017,CHILDREN'S SERVICES,TABITHA BARRAN,400,LEGAL,LEGAL FEES & COURT COSTS,2102653855
05.04.2017,CHILDREN'S SERVICES,TABITHA BARRAN,475,LEGAL,LEGAL FEES & COURT COSTS,2102653853
05.04.2017,CHILDREN'S SERVICES,TIM PARKER,300,LEGAL,LEGAL FEES & COURT COSTS,2102653861
05.04.2017,CHILDREN'S SERVICES,TIM PARKER,300,LEGAL,LEGAL FEES & COURT COSTS,2102653862
05.04.2017,CHILDREN'S SERVICES,TIM PARKER,400,LEGAL,LEGAL FEES & COURT COSTS,2102653858
05.04.2017,CHILDREN'S SERVICES,TIM PARKER,400,LEGAL,LEGAL FEES & COURT COSTS,2102653859
05.04.2017,CHILDREN'S SERVICES,TIM PARKER,"2,750.00",LEGAL,LEGAL FEES & COURT COSTS,2102653860
05.04.2017,CHILDREN'S SERVICES,TIM PARKER,"8,250.00",LEGAL,LEGAL FEES & COURT COSTS,2102653857
05.04.2017,CHILDREN'S SERVICES,TOM RESTALL,350,LEGAL,LEGAL FEES & COURT COSTS,2102653863
05.04.2017,CHILDREN'S SERVICES,BEN ZURAWEL,850,LEGAL,LEGAL FEES & COURT COSTS,2102653833
05.04.2017,CHILDREN'S SERVICES,WILLIAM DEAN,275,LEGAL,LEGAL FEES & COURT COSTS,2102653864
05.04.2017,CHILDREN'S SERVICES,WILLIAM DEAN,750,LEGAL,LEGAL FEES & COURT COSTS,2102653865
05.04.2017,CHILDREN'S SERVICES,KIERAN COLEMAN,300,LEGAL,LEGAL FEES & COURT COSTS,2102653843
05.04.2017,CHILDREN'S SERVICES,KIERAN COLEMAN,650,LEGAL,LEGAL FEES & COURT COSTS,2102653842
05.04.2017,CHILDREN'S SERVICES,RICHARD HARRIS,475,LEGAL,LEGAL FEES & COURT COSTS,2102653846
05.04.2017,CHILDREN'S SERVICES,ELIZABETH NARTEY,255,LEGAL,LEGAL FEES & COURT COSTS,2102653837
05.04.2017,CHILDREN'S SERVICES,RUCHI PAREKH,770,LEGAL,LEGAL FEES & COURT COSTS,2102653851
05.04.2017,CHILDREN'S SERVICES,REDACTED PERSONAL DATA,269.08,RESIDENCE ORDERS,PAYMENTS TO CARERS,2102653541
05.04.2017,CHILDREN'S SERVICES,REDACTED PERSONAL DATA,264.16,RESIDENCE ORDERS,PAYMENTS TO CARERS,2102653772
05.04.2017,CHILDREN'S SERVICES,REDACTED PERSONAL DATA,"3,150.00",SEN INCLUSION TEAM  (202),PROFESSIONAL FEES,5902245367
05.04.2017,CHILDREN'S SERVICES,REDACTED PERSONAL DATA,263.71,SPECIAL GUARDIANSHIP,PAYMENTS TO CARERS,2102653743
05.04.2017,CHILDREN'S SERVICES,REDACTED PERSONAL DATA,276.1,SPECIAL GUARDIANSHIP,PAYMENTS TO CARERS,2102653631
05.04.2017,CHILDREN'S SERVICES,REDACTED PERSONAL DATA,269.08,SPECIAL GUARDIANSHIP,PAYMENTS TO CARERS,2102653651
05.04.2017,CHILDREN'S SERVICES,REDACTED PERSONAL DATA,269.08,SPECIAL GUARDIANSHIP,PAYMENTS TO CARERS,2102653752
05.04.2017,CHILDREN'S SERVICES,REDACTED PERSONAL DATA,350,SPECIAL GUARDIANSHIP,PAYMENTS TO CARERS,2102653581
05.04.2017,CHILDREN'S SERVICES,REDACTED PERSONAL DATA,276.1,SPECIAL GUARDIANSHIP,PAYMENTS TO CARERS,2102653713
05.04.2017,CHILDREN'S SERVICES,REDACTED PERSONAL DATA,354.59,SPECIAL GUARDIANSHIP,PAYMENTS TO CARERS,2102653578
05.04.2017,CHILDREN'S SERVICES,REDACTED PERSONAL DATA,525,SPECIAL GUARDIANSHIP,PAYMENTS TO CARERS,2102653526
05.04.2017,CHILDREN'S SERVICES,REDACTED PERSONAL DATA,525,SPECIAL GUARDIANSHIP,PAYMENTS TO CARERS,2102653557
05.04.2017,CHILDREN'S SERVICES,REDACTED PERSONAL DATA,525,SPECIAL GUARDIANSHIP,PAYMENTS TO CARERS,2102653697
05.04.2017,CHILDREN'S SERVICES,REDACTED PERSONAL DATA,268.36,SPECIAL GUARDIANSHIP,PAYMENTS TO CARERS,2102653656
05.04.2017,COMMUNITIES,SOUTHWARK CITIZENS ADVICE,"96,550.00",LEGAL GRANTS,EXTERNAL AGENCIES AND BODIES,5902245496
05.04.2017,COMMUNITIES,ADVISING LONDON,"18,000.00",LEGAL GRANTS,EXTERNAL AGENCIES AND BODIES,5902245504
05.04.2017,COMMUNITIES,ADVISING LONDON,"78,345.00",LEGAL GRANTS,EXTERNAL AGENCIES AND BODIES,5902245493
05.04.2017,COMMUNITIES,ALLPAY LTD,"20,000.00",NO RECOURSE TO PUBLIC FUNDS,THIRD PARTY TOP UP CARE,5902245559
05.04.2017,CUSTOMER EXPERIENCE HGF,JOANNE MCELROY,300,COMPLAINTS,PROFESSIONAL FEES,5902244898
05.04.2017,CUSTOMER EXPERIENCE HGF,ANDREW LANE,"1,250.00",HOMELESS & HOUSING OPTIONS MGT,LEGAL FEES & COURT COSTS,2102653832
05.04.2017,CUSTOMER EXPERIENCE HGF,ANDREW LANE,"1,750.00",HOMELESS & HOUSING OPTIONS MGT,LEGAL FEES & COURT COSTS,2102653831
05.04.2017,CUSTOMER EXPERIENCE HGF,CHRISTOPHER BAKER,500,HOMELESS & HOUSING OPTIONS MGT,LEGAL FEES & COURT COSTS,2102653834
05.04.2017,CUSTOMER EXPERIENCE HGF,SHUTTLEWORTH (UK) LTD,"-1,116.00",NIGHTLY TA (NSC),EXTERNAL AGENCIES AND BODIES,5902245813
05.04.2017,CUSTOMER EXPERIENCE HGF,SHUTTLEWORTH (UK) LTD,"1,116.00",NIGHTLY TA (NSC),EXTERNAL AGENCIES AND BODIES,5902245785
05.04.2017,CUSTOMER EXPERIENCE HGF,SOUTH OF THE RIVER INVESTMENTS LTD,"1,658.50",NIGHTLY TA (NSC),EXTERNAL AGENCIES AND BODIES,5902245455
05.04.2017,CUSTOMER EXPERIENCE HGF,SOUTH OF THE RIVER INVESTMENTS LTD,"93,907.50",NIGHTLY TA (NSC),EXTERNAL AGENCIES AND BODIES,5902245452
05.04.2017,CUSTOMER EXPERIENCE HGF,LONDON TELECARE LTD,550,SMART MOBILE RESPONSE TEAM,PROFESSIONAL FEES,5902245354
05.04.2017,ENVIRONMENT AND LEISURE,CJS PLANTS,253.5,CAPITAL PS (LEISURE),CONST'N MAIN CONTRACT - NON CERTIFICATED,5902245371
05.04.2017,ENVIRONMENT AND LEISURE,CJS PLANTS,285,CAPITAL PS (LEISURE),CONST'N MAIN CONTRACT - NON CERTIFICATED,5902245353
05.04.2017,ENVIRONMENT AND LEISURE,CJS PLANTS,"1,113.33",CAPITAL PS (LEISURE),CONST'N MAIN CONTRACT - NON CERTIFICATED,5902245396
05.04.2017,ENVIRONMENT AND LEISURE,MARWOOD ELECTRICAL CO,"3,136.40",CAPITAL PS (LEISURE),CONSTR'N SUB CONTRACT - NON CERTIFICATED,5902245482
05.04.2017,ENVIRONMENT AND LEISURE,MARWOOD ELECTRICAL CO,"12,200.80",CAPITAL PS (LEISURE),CONSTR'N SUB CONTRACT - NON CERTIFICATED,5902245482
05.04.2017,ENVIRONMENT AND LEISURE,D W WINDSOR LIMITED,"1,445.94",CAPITAL PS (LEISURE),CONSTR'N SUB CONTRACT - NON CERTIFICATED,5902245480
05.04.2017,ENVIRONMENT AND LEISURE,D W WINDSOR LIMITED,"5,503.67",CAPITAL PS (LEISURE),CONSTR'N SUB CONTRACT - NON CERTIFICATED,5902245480
05.04.2017,ENVIRONMENT AND LEISURE,D W WINDSOR LIMITED,"6,597.92",CAPITAL PS (LEISURE),CONSTR'N SUB CONTRACT - NON CERTIFICATED,5902245480
05.04.2017,ENVIRONMENT AND LEISURE,D W WINDSOR LIMITED,"9,821.70",CAPITAL PS (LEISURE),CONSTR'N SUB CONTRACT - NON CERTIFICATED,5902245479
05.04.2017,ENVIRONMENT AND LEISURE,CONWAY AECOM LTD,"2,450.31",CAPITAL PS (LEISURE),CONSTRUCTION,5902245554
05.04.2017,ENVIRONMENT DIRECTORATE,UK POWER NETWORKS (OPERATIONS) LTD,"1,539.00",COLUMNS - MINOR ROADS,SOUTHWARK DIRECT CHARGES,5902245485
05.04.2017,ENVIRONMENT DIRECTORATE,DAWSON RENTALS SWEEPERS,"2,300.00",COMMERCIAL VEH CTRL A/C,HIRED VEHICLES,5902245489
05.04.2017,ENVIRONMENT DIRECTORATE,DAWSON RENTALS SWEEPERS,"2,300.00",COMMERCIAL VEH CTRL A/C,HIRED VEHICLES,5902245494
05.04.2017,ENVIRONMENT DIRECTORATE,ELECTRICAL TESTING LTD,"9,260.58",ELECTRICAL TESTING,SOUTHWARK DIRECT CHARGES,5902245476
05.04.2017,ENVIRONMENT DIRECTORATE,UK POWER NETWORKS (OPERATIONS) LTD,748,ILLUMINATED SIGNS - MINOR ROADS,SOUTHWARK DIRECT CHARGES,5902245484
05.04.2017,ENVIRONMENT DIRECTORATE,UK POWER NETWORKS (OPERATIONS) LTD,"1,539.00",LIGHTING RECOVERABLE WORKS,SOUTHWARK DIRECT CHARGES,5902245486
05.04.2017,ENVIRONMENT DIRECTORATE,CABLE TEST LTD,"19,755.40",LIGHTING RECOVERABLE WORKS,SOUTHWARK DIRECT CHARGES,5902245460
05.04.2017,ENVIRONMENT DIRECTORATE,A & H PEST CONTROL LTD,540,PEST CONTROL-CDN A/C,OTHER CONTRACTORS,5902245386
05.04.2017,ENVIRONMENT DIRECTORATE,A & H PEST CONTROL LTD,590,PEST CONTROL-CDN A/C,OTHER CONTRACTORS,5902245385
05.04.2017,ENVIRONMENT DIRECTORATE,A & H PEST CONTROL LTD,980,PEST CONTROL-CDN A/C,OTHER CONTRACTORS,5902245384
05.04.2017,ENVIRONMENT DIRECTORATE,ACROSPIRE SOLUTIONS LTD,"3,960.00",SPECIAL PROJECTS,SOUTHWARK DIRECT CHARGES,5902245473
05.04.2017,ENVIRONMENT DIRECTORATE,CABLE TEST LTD,"7,810.00",SPECIAL PROJECTS,SOUTHWARK DIRECT CHARGES,5902245470
05.04.2017,ENVIRONMENT DIRECTORATE,SOUTHWARK NEWSPAPER LTD,276,STREET WORKS OVERHEADS,MARKETING & PUBLICITY SERVICES,5902245459
05.04.2017,ENVIRONMENT DIRECTORATE,SOUTHWARK NEWSPAPER LTD,324,STREET WORKS OVERHEADS,MARKETING & PUBLICITY SERVICES,5902245444
05.04.2017,ENVIRONMENT DIRECTORATE,SOUTHWARK NEWSPAPER LTD,420,STREET WORKS OVERHEADS,MARKETING & PUBLICITY SERVICES,5902245440
05.04.2017,F & C S EXCLUDING CORPORATE BUDGETS,RUCHI PAREKH,340,FINANCE DIRECTOR,LEGAL FEES & COURT COSTS,2102653849
05.04.2017,F & C S EXCLUDING CORPORATE BUDGETS,RUCHI PAREKH,600,FINANCE DIRECTOR,LEGAL FEES & COURT COSTS,2102653847
05.04.2017,F & C S EXCLUDING CORPORATE BUDGETS,RUCHI PAREKH,"4,547.50",FINANCE DIRECTOR,LEGAL FEES & COURT COSTS,2102653848
05.04.2017,HOUSING HRA,TOTAL HYGIENE LTD,"3,855.00",CAPITAL PS (HRA),CONST'N MAIN CONTRACT - NON CERTIFICATED,5902245390
05.04.2017,HOUSING HRA,DOLPHIN MOBILITY LTD,"3,882.00",CAPITAL PS (HRA),CONST'N MAIN CONTRACT - NON CERTIFICATED,5902245505
05.04.2017,HOUSING HRA,DOLPHIN MOBILITY LTD,"4,695.00",CAPITAL PS (HRA),CONST'N MAIN CONTRACT - NON CERTIFICATED,5902245507
05.04.2017,HOUSING HRA,POTTER RAPER AND PARTNERS,"2,401.72",CAPITAL PS (HRA),CONSTRUCTION FEES,5902245410
05.04.2017,HOUSING HRA,CALFORD SEADEN LLP,952.56,CAPITAL PS (HRA),CONSTRUCTION FEES  - EXTERNAL,5902245548
05.04.2017,HOUSING HRA,CONNAUGHTS SITE INVESTIGATION LTD,"20,796.00",CAPITAL PS (HRA),CONSTRUCTION FEES  - EXTERNAL,5902245488
05.04.2017,HOUSING HRA,A & E ELKINS LTD,"235,781.62",CAPITAL PS (HRA),CONSTRUCTION MAIN CONTRACT -CERTIFICATED,2102653821
05.04.2017,HOUSING HRA,SALTASH ENTERPRISES LTD,"30,334.00",CAPITAL PS (HRA),CONSTRUCTION MAIN CONTRACT -CERTIFICATED,2102653824
05.04.2017,HOUSING HRA,SALTASH ENTERPRISES LTD,"72,015.00",CAPITAL PS (HRA),CONSTRUCTION MAIN CONTRACT -CERTIFICATED,2102653825
05.04.2017,HOUSING HRA,SALTASH ENTERPRISES LTD,"236,063.23",CAPITAL PS (HRA),CONSTRUCTION MAIN CONTRACT -CERTIFICATED,2102653826
05.04.2017,HOUSING HRA,MOTION CONSULTANTS LTD,"1,055.00",CAPITAL PS (REGEN),CONSTRUCTION FEES,5902245490
05.04.2017,HOUSING HRA,MOTION CONSULTANTS LTD,"1,450.00",CAPITAL PS (REGEN),CONSTRUCTION FEES,5902245429
05.04.2017,HOUSING HRA,SANDERSON ASSOCIATES (CONSULTING - ENGINEERS) LTD,341.17,CAPITAL PS (REGEN),CONSTRUCTION FEES,5902245433
05.04.2017,LEISURE DIRECTORATE,QUADRON SERVICES LIMITED,"2,293.33",BURGESS PARK COMMUNITY SPORTS CENTRE,OVERTIME & ADDITIONAL PAYMENTS,5902245491
05.04.2017,LEISURE DIRECTORATE,CLIVE BARFORD LIMITED,380,CEMETERIES,VEHICLE LEASING CHARGES,5902245475
05.04.2017,LEISURE DIRECTORATE,CLIVE BARFORD LIMITED,399,CEMETERIES,VEHICLE LEASING CHARGES,5902245469
05.04.2017,LEISURE DIRECTORATE,CLIVE BARFORD LIMITED,733.05,CEMETERIES,VEHICLE LEASING CHARGES,5902245481
05.04.2017,LEISURE DIRECTORATE,CLIVE BARFORD LIMITED,960,CEMETERIES,VEHICLE LEASING CHARGES,5902245478
05.04.2017,LEISURE DIRECTORATE,BRITISH GAS BUSINESS,"1,073.54",DAMILOLA TAYLOR CENTRE,ELECTRICITY,5902245508
05.04.2017,LEISURE DIRECTORATE,LONDON WILDLIFE TRUST,"7,619.85",ENVIRONMENT & LEISURE GRANTS,OTHER CONTRACTORS,5902245499
05.04.2017,LEISURE DIRECTORATE,SIMPLY HIRE LTD,"1,033.16",FACILITIES MAINTENANCE,BUILDING R&M,5902245511
05.04.2017,LEISURE DIRECTORATE,PETER MITCHELL ASSOCIATES,"5,000.00",PARKS SERVICES DEVELOPMENT,PAYMENTS FOR LEGAL SERVICES,5902245407
05.04.2017,LEISURE DIRECTORATE,STAR MARINA SOLUTIONS LTD,"3,999.00",SDM BUDGET,SOFTWARE,5902245552
05.04.2017,LEISURE DIRECTORATE,EDF ENERGY PLC,-260.38,SURREY DOCKS PLAYGROUND,ELECTRICITY,5902245557
05.04.2017,LEISURE DIRECTORATE,EDF ENERGY PLC,326.22,SURREY DOCKS PLAYGROUND,ELECTRICITY,5902245449
05.04.2017,LEISURE DIRECTORATE,EDF ENERGY PLC,332.58,SURREY DOCKS PLAYGROUND,ELECTRICITY,5902245525
05.04.2017,MODERNISATION HGF,KENT COUNTY COUNCIL - LASER,268.48,34 PECKHAM ROAD,GAS,5902245474
05.04.2017,MODERNISATION HGF,KENT COUNTY COUNCIL - LASER,297.91,34 PECKHAM ROAD,GAS,5902245492
05.04.2017,MODERNISATION HGF,KENT COUNTY COUNCIL - LASER,331.94,34 PECKHAM ROAD,GAS,5902245500
05.04.2017,MODERNISATION HGF,KENT COUNTY COUNCIL - LASER,637.86,34 PECKHAM ROAD,GAS,5902245509
05.04.2017,MODERNISATION HGF,TRAINING IN PRACTICE LTD,650,ADULTS MULTI-AGENCY SAFEGUARDING TRNG,TRAINING,5902245451
05.04.2017,MODERNISATION HGF,BOKELL ASSOCIATES LTD,750,CSW - PROFESSIONAL DEVELOPMENT,AGENCY STAFF,5902245435
05.04.2017,MODERNISATION HGF,PLANET TRAINING LIMITED,600,MEMBER DEVELOPMENT,TRAINING,5902245545
05.04.2017,MODERNISATION HGF,MOTT MACDONALD LTD,"2,400.00",PLANNED MAINTENANCE,PROFESSIONAL FEES,5902245506
05.04.2017,PUBLIC HEALTH,LEWISHAM AND GREENWICH NHS TRUST,"1,769.64",SEXUAL HEALTH - STI,EXTERNAL AGENCIES AND BODIES,5902245521
05.04.2017,PUBLIC HEALTH,LEWISHAM AND GREENWICH NHS TRUST,"1,861.72",SEXUAL HEALTH - STI,EXTERNAL AGENCIES AND BODIES,5902245523
05.04.2017,PUBLIC HEALTH,LEWISHAM AND GREENWICH NHS TRUST,"2,011.06",SEXUAL HEALTH - STI,EXTERNAL AGENCIES AND BODIES,5902245526
05.04.2017,PUBLIC HEALTH,LEWISHAM AND GREENWICH NHS TRUST,"3,310.24",SEXUAL HEALTH - STI,EXTERNAL AGENCIES AND BODIES,5902245519
05.04.2017,PUBLIC HEALTH,ROYAL FREE LONDON NHS FOUNDATION TRUST,"-1,853.00",SEXUAL HEALTH - STI,EXTERNAL AGENCIES AND BODIES,5902245439
05.04.2017,PUBLIC HEALTH,ROYAL FREE LONDON NHS FOUNDATION TRUST,"-1,437.00",SEXUAL HEALTH - STI,EXTERNAL AGENCIES AND BODIES,5902245512
05.04.2017,PUBLIC HEALTH,ROYAL FREE LONDON NHS FOUNDATION TRUST,"-1,131.00",SEXUAL HEALTH - STI,EXTERNAL AGENCIES AND BODIES,5902245437
05.04.2017,PUBLIC HEALTH,ROYAL FREE LONDON NHS FOUNDATION TRUST,-947,SEXUAL HEALTH - STI,EXTERNAL AGENCIES AND BODIES,5902245513
05.04.2017,PUBLIC HEALTH,ROYAL FREE LONDON NHS FOUNDATION TRUST,469,SEXUAL HEALTH - STI,EXTERNAL AGENCIES AND BODIES,5902245442
05.04.2017,PUBLIC HEALTH,ROYAL FREE LONDON NHS FOUNDATION TRUST,472,SEXUAL HEALTH - STI,EXTERNAL AGENCIES AND BODIES,5902245441
05.04.2017,PUBLIC HEALTH,ROYAL FREE LONDON NHS FOUNDATION TRUST,"2,550.00",SEXUAL HEALTH - STI,EXTERNAL AGENCIES AND BODIES,5902245515
05.04.2017,PUBLIC HEALTH,ROYAL FREE LONDON NHS FOUNDATION TRUST,"2,550.00",SEXUAL HEALTH - STI,EXTERNAL AGENCIES AND BODIES,5902245517
05.04.2017,REGENERATION,STANBURY BUILDING SERVICES LTD,295,5/5A WESTMINSTER BRIDGE ROAD.,BUILDING R&M,2102653827
05.04.2017,REGENERATION,STANBURY BUILDING SERVICES LTD,295,5/5A WESTMINSTER BRIDGE ROAD.,BUILDING R&M,2102653828
05.04.2017,REGENERATION,STANBURY BUILDING SERVICES LTD,495,5/5A WESTMINSTER BRIDGE ROAD.,BUILDING R&M,2102653829
05.04.2017,REGENERATION,STANBURY BUILDING SERVICES LTD,"1,595.00",KENNINGTON WORKSHOPS,BUILDING R&M,5902245495
05.04.2017,REGENERATION,WE MADE THAT LLP,"4,825.00",OLD KENT RD-FEES/MPLAN,PROFESSIONAL FEES,5902245415
05.04.2017,REGENERATION,MLM CONSULTING ENGINEERS LTD,"1,875.00",SOUTHWARK REGEN IN PARTNERSHIP PROGRAMME,PROFESSIONAL FEES,5902245527
05.04.2017,REGENERATION,MLM CONSULTING ENGINEERS LTD,"1,875.00",SOUTHWARK REGEN IN PARTNERSHIP PROGRAMME,PROFESSIONAL FEES,5902245532
05.04.2017,RESIDENT SERVICES,EDF ENERGY PLC,496.95,BERMONDSEY,ELECTRICITY,5902245551
05.04.2017,RESIDENT SERVICES,A & H PEST CONTROL LTD,590,BERMONDSEY,PEST CONTROL,5902245454
05.04.2017,RESIDENT SERVICES,A & H PEST CONTROL LTD,"1,560.00",BERMONDSEY,PEST CONTROL,5902245536
05.04.2017,RESIDENT SERVICES,LISA CLARKE,275,OPERATIONS/OFFICES ACCOMMODATION,LEGAL FEES & COURT COSTS,2102653844
05.04.2017,RESIDENT SERVICES,A & H PEST CONTROL LTD,490,PECKHAM,PEST CONTROL,5902245360
05.04.2017,RESIDENT SERVICES,NORBURY PROPERTY SERVICES,810,TA PLACEMENTS,RENTS,5902245421
05.04.2017,RESIDENT SERVICES,NORBURY PROPERTY SERVICES,837,TA PLACEMENTS,RENTS,5902245423
05.04.2017,RESIDENT SERVICES,A & H PEST CONTROL LTD,390,WALWORTH,PEST CONTROL,5902245356
05.04.2017,SOUTHWARK BUILDING SERVICES,KENT COUNTY COUNCIL - LASER,524.37,BOR & BKSIDE DAY TO DAY - PLUMBER,VEHICLE FUEL,5902245430
05.04.2017,SOUTHWARK BUILDING SERVICES,KENT COUNTY COUNCIL - LASER,681.12,BUSINESS SUPPORT,VEHICLE FUEL,5902245411
05.04.2017,SOUTHWARK BUILDING SERVICES,NORTH HIGHLAND UK LTD,"19,000.00",FINANCE,CONSULTANTS SERVICES,5902245555
05.04.2017,SOUTHWARK BUILDING SERVICES,NORTH HIGHLAND UK LTD,"21,000.00",FINANCE,CONSULTANTS SERVICES,5902245555
05.04.2017,SOUTHWARK BUILDING SERVICES,KENT COUNTY COUNCIL - LASER,"3,336.56",ROTHERHITHE VOIDS - CARPENTER,VEHICLE FUEL,5902245432
05.04.2017,STRATEGIC FINANCING BUDGETS,BUREAU VERITAS UK,"1,310.00",ENGINEERING AND BREAKDOWN INSURANCE,PROPERTY INSURANCE COSTS,5902245543
06.04.2017,ADULT SOCIAL CARE,REDACTED PERSONAL DATA,488,APPOINTEESHIPS,OTHER PAYMENTS FOR CLIENTS,5902245667
06.04.2017,ADULT SOCIAL CARE,FOUNTAIN CARE LTD,329.4,APPOINTEESHIPS,OTHER PAYMENTS FOR CLIENTS,2102654313
06.04.2017,ADULT SOCIAL CARE,INTERSERVE (FACILITIES MANAGEMENT),778.27,CAPITAL PS (SOC SERV),CONSTRUCTION,2102653887
06.04.2017,ADULT SOCIAL CARE,STANDAGE & CO LTD,"103,642.73",HALF MOON LANE,BUILDING R&M,2102654301
06.04.2017,ADULT SOCIAL CARE,REDACTED PERSONAL DATA,270.01,LD LTS 18-64,SUPPORTED LIVING,2102654187
06.04.2017,ADULT SOCIAL CARE,REDACTED PERSONAL DATA,"1,857.15",LD LTS 18-64,SUPPORTED LIVING,2102654188
06.04.2017,ADULT SOCIAL CARE,THE FRANCES TAYLOR FOUNDATION,927.75,LD LTS 18-64,SUPPORTED LIVING,2102654222
06.04.2017,ADULT SOCIAL CARE,SWEETTREE HOME CARE SERVICES LTD,389.52,LD LTS 65+,HOMECARE - C&V,2102654218
06.04.2017,ADULT SOCIAL CARE,SWEETTREE HOME CARE SERVICES LTD,389.52,LD LTS 65+,HOMECARE - C&V,2102654220
06.04.2017,ADULT SOCIAL CARE,SWEETTREE HOME CARE SERVICES LTD,389.52,LD LTS 65+,HOMECARE - C&V,2102654221
06.04.2017,ADULT SOCIAL CARE,SWEETTREE HOME CARE SERVICES LTD,423.65,LD LTS 65+,HOMECARE - C&V,2102654215
06.04.2017,ADULT SOCIAL CARE,WESTMINSTER HOMECARE LTD,"1,069.61",MEM LTS 65+,HOMECARE - C&V,2102654229
06.04.2017,ADULT SOCIAL CARE,HAVEN SOCIAL CARE LTD,306.48,MEM LTS 65+,HOMECARE - SPOT,2102654216
06.04.2017,ADULT SOCIAL CARE,WESTMINSTER HOMECARE LTD,566.31,MEM LTS 65+,HOMECARE - SPOT,2102654249
06.04.2017,ADULT SOCIAL CARE,WESTMINSTER HOMECARE LTD,782.88,MEM LTS 65+,HOMECARE - SPOT,2102654245
06.04.2017,ADULT SOCIAL CARE,PROFAD CARE AGENCY,475.67,MEM LTS 65+,HOMECARE - SPOT,2102654184
06.04.2017,ADULT SOCIAL CARE,LONDON CARE LTD,559.04,MH LTS 65+,HOMECARE - C&V,2102654169
06.04.2017,ADULT SOCIAL CARE,WESTMINSTER HOMECARE LTD,653.8,MH LTS 65+,HOMECARE - SPOT,2102654232
06.04.2017,ADULT SOCIAL CARE,WESTMINSTER HOMECARE LTD,755.19,MH LTS 65+,HOMECARE - SPOT,2102654276
06.04.2017,ADULT SOCIAL CARE,WESTMINSTER HOMECARE LTD,"2,055.48",MH LTS 65+,HOMECARE - SPOT,2102654254
06.04.2017,ADULT SOCIAL CARE,WESTMINSTER HOMECARE LTD,"2,055.48",MH LTS 65+,HOMECARE - SPOT,2102654283
06.04.2017,ADULT SOCIAL CARE,PROFAD CARE AGENCY,445.47,MH LTS 65+,HOMECARE - SPOT,2102654183
06.04.2017,ADULT SOCIAL CARE,LONDON CARE LTD,362.12,PHY LTS 18-64,HOMECARE - C&V,2102654175
06.04.2017,ADULT SOCIAL CARE,LONDON CARE LTD,444.42,PHY LTS 18-64,HOMECARE - C&V,2102654177
06.04.2017,ADULT SOCIAL CARE,WESTMINSTER HOMECARE LTD,671.32,PHY LTS 18-64,HOMECARE - C&V,2102654264
06.04.2017,ADULT SOCIAL CARE,WESTMINSTER HOMECARE LTD,671.32,PHY LTS 18-64,HOMECARE - C&V,2102654268
06.04.2017,ADULT SOCIAL CARE,HAVEN SOCIAL CARE LTD,296.78,PHY LTS 18-64,HOMECARE - SPOT,2102654223
06.04.2017,ADULT SOCIAL CARE,WESTMINSTER HOMECARE LTD,524.27,PHY LTS 18-64,HOMECARE - SPOT,2102654237
06.04.2017,ADULT SOCIAL CARE,WESTMINSTER HOMECARE LTD,559.2,PHY LTS 18-64,HOMECARE - SPOT,2102654230
06.04.2017,ADULT SOCIAL CARE,WESTMINSTER HOMECARE LTD,601.14,PHY LTS 18-64,HOMECARE - SPOT,2102654244
06.04.2017,ADULT SOCIAL CARE,WESTMINSTER HOMECARE LTD,601.14,PHY LTS 18-64,HOMECARE - SPOT,2102654253
06.04.2017,ADULT SOCIAL CARE,WESTMINSTER HOMECARE LTD,699,PHY LTS 18-64,HOMECARE - SPOT,2102654291
06.04.2017,ADULT SOCIAL CARE,WESTMINSTER HOMECARE LTD,797,PHY LTS 18-64,HOMECARE - SPOT,2102654257
06.04.2017,ADULT SOCIAL CARE,WESTMINSTER HOMECARE LTD,797,PHY LTS 18-64,HOMECARE - SPOT,2102654261
06.04.2017,ADULT SOCIAL CARE,WESTMINSTER HOMECARE LTD,838.8,PHY LTS 18-64,HOMECARE - SPOT,2102654247
06.04.2017,ADULT SOCIAL CARE,WESTMINSTER HOMECARE LTD,"2,202.26",PHY LTS 18-64,HOMECARE - SPOT,2102654263
06.04.2017,ADULT SOCIAL CARE,WESTMINSTER HOMECARE LTD,"2,209.26",PHY LTS 18-64,HOMECARE - SPOT,2102654256
06.04.2017,ADULT SOCIAL CARE,WESTMINSTER HOMECARE LTD,"2,523.72",PHY LTS 18-64,HOMECARE - SPOT,2102654279
06.04.2017,ADULT SOCIAL CARE,WESTMINSTER HOMECARE LTD,"2,544.70",PHY LTS 18-64,HOMECARE - SPOT,2102654248
06.04.2017,ADULT SOCIAL CARE,ABOUT ME CARE AND SUPPORT LTD,942,PHY LTS 65+,EXTERNAL AGENCIES AND BODIES,2102654224
06.04.2017,ADULT SOCIAL CARE,ABOUT ME CARE AND SUPPORT LTD,942.01,PHY LTS 65+,EXTERNAL AGENCIES AND BODIES,2102654226
06.04.2017,ADULT SOCIAL CARE,LONDON CARE LTD,609.02,PHY LTS 65+,HOMECARE - C&V,2102654172
06.04.2017,ADULT SOCIAL CARE,LONDON CARE LTD,658.4,PHY LTS 65+,HOMECARE - C&V,2102654173
06.04.2017,ADULT SOCIAL CARE,LONDON CARE LTD,691.32,PHY LTS 65+,HOMECARE - C&V,2102654171
06.04.2017,ADULT SOCIAL CARE,LONDON CARE LTD,691.32,PHY LTS 65+,HOMECARE - C&V,2102654180
06.04.2017,ADULT SOCIAL CARE,LONDON CARE LTD,"1,613.08",PHY LTS 65+,HOMECARE - C&V,2102654168
06.04.2017,ADULT SOCIAL CARE,LONDON CARE LTD,"1,613.08",PHY LTS 65+,HOMECARE - C&V,2102654176
06.04.2017,ADULT SOCIAL CARE,LONDON CARE LTD,"1,909.36",PHY LTS 65+,HOMECARE - C&V,2102654170
06.04.2017,ADULT SOCIAL CARE,LONDON CARE LTD,"1,909.36",PHY LTS 65+,HOMECARE - C&V,2102654178
06.04.2017,ADULT SOCIAL CARE,WESTMINSTER HOMECARE LTD,300.58,PHY LTS 65+,HOMECARE - C&V,2102654288
06.04.2017,ADULT SOCIAL CARE,WESTMINSTER HOMECARE LTD,489.32,PHY LTS 65+,HOMECARE - C&V,2102654239
06.04.2017,ADULT SOCIAL CARE,WESTMINSTER HOMECARE LTD,489.44,PHY LTS 65+,HOMECARE - C&V,2102654266
06.04.2017,ADULT SOCIAL CARE,WESTMINSTER HOMECARE LTD,534.99,PHY LTS 65+,HOMECARE - C&V,2102654271
06.04.2017,ADULT SOCIAL CARE,WESTMINSTER HOMECARE LTD,566.46,PHY LTS 65+,HOMECARE - C&V,2102654250
06.04.2017,ADULT SOCIAL CARE,WESTMINSTER HOMECARE LTD,587.16,PHY LTS 65+,HOMECARE - C&V,2102654272
06.04.2017,ADULT SOCIAL CARE,WESTMINSTER HOMECARE LTD,587.16,PHY LTS 65+,HOMECARE - C&V,2102654285
06.04.2017,ADULT SOCIAL CARE,WESTMINSTER HOMECARE LTD,601.28,PHY LTS 65+,HOMECARE - C&V,2102654242
06.04.2017,ADULT SOCIAL CARE,WESTMINSTER HOMECARE LTD,615.17,PHY LTS 65+,HOMECARE - C&V,2102654240
06.04.2017,ADULT SOCIAL CARE,WESTMINSTER HOMECARE LTD,880.88,PHY LTS 65+,HOMECARE - C&V,2102654243
06.04.2017,ADULT SOCIAL CARE,WESTMINSTER HOMECARE LTD,880.88,PHY LTS 65+,HOMECARE - C&V,2102654259
06.04.2017,ADULT SOCIAL CARE,WESTMINSTER HOMECARE LTD,880.88,PHY LTS 65+,HOMECARE - C&V,2102654262
06.04.2017,ADULT SOCIAL CARE,WESTMINSTER HOMECARE LTD,894.86,PHY LTS 65+,HOMECARE - C&V,2102654274
06.04.2017,ADULT SOCIAL CARE,WESTMINSTER HOMECARE LTD,"2,139.22",PHY LTS 65+,HOMECARE - C&V,2102654270
06.04.2017,ADULT SOCIAL CARE,WESTMINSTER HOMECARE LTD,"2,153.20",PHY LTS 65+,HOMECARE - C&V,2102654234
06.04.2017,ADULT SOCIAL CARE,DARETHEALTHCARE UK LTD,650.96,PHY LTS 65+,HOMECARE - SPOT,2102654201
06.04.2017,ADULT SOCIAL CARE,CARE DIRECT UK LTD,424.94,PHY LTS 65+,HOMECARE - SPOT,2102654217
06.04.2017,ADULT SOCIAL CARE,WESTMINSTER HOMECARE LTD,300.7,PHY LTS 65+,HOMECARE - SPOT,2102654289
06.04.2017,ADULT SOCIAL CARE,WESTMINSTER HOMECARE LTD,440.42,PHY LTS 65+,HOMECARE - SPOT,2102654255
06.04.2017,ADULT SOCIAL CARE,WESTMINSTER HOMECARE LTD,478.95,PHY LTS 65+,HOMECARE - SPOT,2102654265
06.04.2017,ADULT SOCIAL CARE,WESTMINSTER HOMECARE LTD,489.44,PHY LTS 65+,HOMECARE - SPOT,2102654236
06.04.2017,ADULT SOCIAL CARE,WESTMINSTER HOMECARE LTD,517.4,PHY LTS 65+,HOMECARE - SPOT,2102654241
06.04.2017,ADULT SOCIAL CARE,WESTMINSTER HOMECARE LTD,517.4,PHY LTS 65+,HOMECARE - SPOT,2102654258
06.04.2017,ADULT SOCIAL CARE,WESTMINSTER HOMECARE LTD,517.4,PHY LTS 65+,HOMECARE - SPOT,2102654280
06.04.2017,ADULT SOCIAL CARE,WESTMINSTER HOMECARE LTD,517.4,PHY LTS 65+,HOMECARE - SPOT,2102654287
06.04.2017,ADULT SOCIAL CARE,WESTMINSTER HOMECARE LTD,692.01,PHY LTS 65+,HOMECARE - SPOT,2102654260
06.04.2017,ADULT SOCIAL CARE,WESTMINSTER HOMECARE LTD,699,PHY LTS 65+,HOMECARE - SPOT,2102654235
06.04.2017,ADULT SOCIAL CARE,WESTMINSTER HOMECARE LTD,741.08,PHY LTS 65+,HOMECARE - SPOT,2102654252
06.04.2017,ADULT SOCIAL CARE,WESTMINSTER HOMECARE LTD,741.08,PHY LTS 65+,HOMECARE - SPOT,2102654269
06.04.2017,ADULT SOCIAL CARE,WESTMINSTER HOMECARE LTD,790.13,PHY LTS 65+,HOMECARE - SPOT,2102654267
06.04.2017,ADULT SOCIAL CARE,WESTMINSTER HOMECARE LTD,824.96,PHY LTS 65+,HOMECARE - SPOT,2102654231
06.04.2017,ADULT SOCIAL CARE,WESTMINSTER HOMECARE LTD,824.96,PHY LTS 65+,HOMECARE - SPOT,2102654233
06.04.2017,ADULT SOCIAL CARE,WESTMINSTER HOMECARE LTD,978.6,PHY LTS 65+,HOMECARE - SPOT,2102654275
06.04.2017,ADULT SOCIAL CARE,WESTMINSTER HOMECARE LTD,978.6,PHY LTS 65+,HOMECARE - SPOT,2102654281
06.04.2017,ADULT SOCIAL CARE,WESTMINSTER HOMECARE LTD,"1,132.52",PHY LTS 65+,HOMECARE - SPOT,2102654282
06.04.2017,ADULT SOCIAL CARE,WESTMINSTER HOMECARE LTD,"1,146.36",PHY LTS 65+,HOMECARE - SPOT,2102654238
06.04.2017,ADULT SOCIAL CARE,WESTMINSTER HOMECARE LTD,"1,565.76",PHY LTS 65+,HOMECARE - SPOT,2102654228
06.04.2017,ADULT SOCIAL CARE,WESTMINSTER HOMECARE LTD,"2,125.24",PHY LTS 65+,HOMECARE - SPOT,2102654290
06.04.2017,ADULT SOCIAL CARE,WESTMINSTER HOMECARE LTD,"2,153.20",PHY LTS 65+,HOMECARE - SPOT,2102654251
06.04.2017,ADULT SOCIAL CARE,WESTMINSTER HOMECARE LTD,"2,237.08",PHY LTS 65+,HOMECARE - SPOT,2102654246
06.04.2017,ADULT SOCIAL CARE,WESTMINSTER HOMECARE LTD,"2,363.04",PHY LTS 65+,HOMECARE - SPOT,2102654284
06.04.2017,ADULT SOCIAL CARE,WESTMINSTER HOMECARE LTD,"2,370.03",PHY LTS 65+,HOMECARE - SPOT,2102654277
06.04.2017,ADULT SOCIAL CARE,PROFAD CARE AGENCY,337.44,PHY LTS 65+,HOMECARE - SPOT,2102654193
06.04.2017,ADULT SOCIAL CARE,PROFAD CARE AGENCY,509.49,PHY LTS 65+,HOMECARE - SPOT,2102654199
06.04.2017,ADULT SOCIAL CARE,PROFAD CARE AGENCY,524,PHY LTS 65+,HOMECARE - SPOT,2102654190
06.04.2017,ADULT SOCIAL CARE,PROFAD CARE AGENCY,526.36,PHY LTS 65+,HOMECARE - SPOT,2102654203
06.04.2017,ADULT SOCIAL CARE,PROFAD CARE AGENCY,617.45,PHY LTS 65+,HOMECARE - SPOT,2102654194
06.04.2017,ADULT SOCIAL CARE,PROFAD CARE AGENCY,"3,062.50",PHY LTS 65+,HOMECARE - SPOT,2102654202
06.04.2017,ADULT SOCIAL CARE,PROFAD CARE AGENCY,654.55,PHY STS 65+,HOMECARE - IC,2102654197
06.04.2017,ADULT SOCIAL CARE,ACCESS MOBILITY TRANSPORT LTD,"-1,632.00",PWLD DAY CARE (TRANSPORT),CAB FARES,5902245707
06.04.2017,ADULT SOCIAL CARE,ACCESS MOBILITY TRANSPORT LTD,"11,664.40",PWLD DAY CARE (TRANSPORT),CAB FARES,5902245716
06.04.2017,ADULT SOCIAL CARE,ACCESS MOBILITY TRANSPORT LTD,"12,379.00",PWLD DAY CARE (TRANSPORT),CAB FARES,5902245716
06.04.2017,ADULT SOCIAL CARE,ACCESS MOBILITY TRANSPORT LTD,"13,296.00",PWLD DAY CARE (TRANSPORT),CAB FARES,5902245705
06.04.2017,ADULT SOCIAL CARE,PROFAD CARE AGENCY,296.9,SEN LTS 65+,HOMECARE - SPOT,2102654200
06.04.2017,ADULT SOCIAL CARE,REDACTED PERSONAL DATA,"3,591.00",SUB LTS 18-64,DAYCARE,2102654209
06.04.2017,ADULT SOCIAL CARE,FREEDOM RECOVERY CENTRE,"2,400.00",SUB LTS 18-64,DAYCARE,2102654212
06.04.2017,ADULT SOCIAL CARE,ACTION ON ADDICTION LTD,"3,472.00",SUB LTS 18-64,RESIDENTIAL CARE,2102654211
06.04.2017,ADULT SOCIAL CARE,MERCIA CARE HOMES LTD,"1,819.00",SUB LTS 18-64,RESIDENTIAL CARE,2102654210
06.04.2017,ASSET MANAGEMENT,M C TECHNICIANS LTD,"2,280.00",ADAPTATIONS,BUILDING R&M,2102654162
06.04.2017,ASSET MANAGEMENT,M E HORSTEAD,"2,365.00",ADAPTATIONS,OTHER R&M,5902245658
06.04.2017,ASSET MANAGEMENT,POTTER RAPER AND PARTNERS,924,R&M CONTRACTS (SOUTH),BUILDING R&M,5902245656
06.04.2017,CENTRAL FUNCTIONS,STANBURY BUILDING SERVICES LTD,"2,695.00",COMMERCIAL PROPERTIES,BUILDING R&M,5902245614
06.04.2017,CENTRAL FUNCTIONS,KENT COUNTY COUNCIL - LASER,"16,308.83",HEATING ACCOUNT,GAS,5902245622
06.04.2017,CENTRAL FUNCTIONS,KENT COUNTY COUNCIL - LASER,"592,198.44",HEATING ACCOUNT,GAS,5902245622
06.04.2017,CENTRAL FUNCTIONS,HADDON HALL RESIDENTS TMO,650,TENANTS FUND,COMPUTER CONSUMABLES,5902245743
06.04.2017,CHIEF EXECUTIVE,CONWAY AECOM LTD,"78,208.65",CAPITAL PS (REGEN),CONSTR'N SUB CONTRACT - NON CERTIFICATED,2102654295
06.04.2017,CHIEF EXECUTIVE,SANDBERG CONSULTING ENGINEERS,795,CAPITAL PS (REGEN),CONSTRUCTION FEES  - EXTERNAL,5902245623
06.04.2017,CHIEF EXECUTIVE,FURNESS PARTNERSHIP,"1,250.00",CAPITAL PS (REGEN),CONSTRUCTION FEES  - EXTERNAL,5902245673
06.04.2017,CHIEF EXECUTIVE,CONWAY AECOM LTD,"91,305.63",CAPITAL PS (REGEN),CONSTRUCTION FEES  - EXTERNAL,2102653875
06.04.2017,CHIEF EXECUTIVE'S OFFICE,CENTRE FOR CIVIL SOCIETY LTD,400,CHIEF EXEC'S OFFICE,SUBSCRIPTIONS,5902245738
06.04.2017,CHILDREN AND ADULT,SYD BISHOP & SONS(DEMOLITION) LTD,"174,645.59",CAPITAL PS (EDUCATION),CONSTRUCTION,2102654165
06.04.2017,CHILDREN AND ADULT,PELLINGS LLP,500,CAPITAL PS (EDUCATION),CONSTRUCTION MAIN CONTRACT,5902245436
06.04.2017,CHILDREN AND ADULT,GALLIFORD TRY LTD,"687,212.33",CAPITAL PS (EDUCATION),CONSTRUCTION MAIN CONTRACT -CERTIFICATED,2102654164
06.04.2017,CHILDREN'S SERVICES,REDACTED PERSONAL DATA,"1,200.00",ADOPTION PLACEMENTS & INTER AGENCY,PAYMENTS TO CARERS,5902245664
06.04.2017,CHILDREN'S SERVICES,REDACTED PERSONAL DATA,"1,280.00",ADOPTION PLACEMENTS & INTER AGENCY,PAYMENTS TO CARERS,5902245663
06.04.2017,CHILDREN'S SERVICES,ST FRANCIS' CHILDREN SOCIETY,"2,250.00",ADOPTION PLACEMENTS & INTER AGENCY,EXTERNAL AGENCIES AND BODIES,5902245587
06.04.2017,CHILDREN'S SERVICES,CROWN HOUSING LTD,"1,085.00",AIS - IHT,SECTION 17 PAYMENTS TO AGENCIES/CARERS,5902245655
06.04.2017,CHILDREN'S SERVICES,PILGRIM'S WAY PRIMARY SCHOOL,414.96,BERMONDSEY & ROTHERHITHE,AGENCY STAFF,5902245671
06.04.2017,CHILDREN'S SERVICES,BRAKE BROS,329.38,BISHOPS HOUSE EARLY YEARS CENTRE,CATERING MATERIALS & SUPPLIES,5902245701
06.04.2017,CHILDREN'S SERVICES,HOME OFFICE LEAVE TO REMAIN,993,CARE GRPS  1 TO 3,OTHER PAYMENTS FOR CLIENTS,5902245605
06.04.2017,CHILDREN'S SERVICES,CITY & GUILDS,847,DIRECT DELIVERY,MATERIALS,5902245594
06.04.2017,CHILDREN'S SERVICES,GRAHAM ROWLAND,"8,398.00",EBA SALARIES/RUNNING COSTS,MARKETING & PUBLICITY SERVICES,5902245641
06.04.2017,CHILDREN'S SERVICES,REDACTED PERSONAL DATA,400,FURTHER EDUCATION SUPPORT,OTHER PAYMENTS FOR CLIENTS,2102654208
06.04.2017,CHILDREN'S SERVICES,ACCESS MOBILITY TRANSPORT LTD,"19,939.40",HOME 2 SCHOOL TRANSPORT,CAB FARES,5902245691
06.04.2017,CHILDREN'S SERVICES,REDACTED PERSONAL DATA,"1,000.00",LEAVING CARE GRANT,OTHER PAYMENTS FOR CLIENTS,2102654207
06.04.2017,CHILDREN'S SERVICES,RE CONSULTANT LTD,"1,400.00",SACRE,CONSULTANTS SERVICES,5902245712
06.04.2017,CHILDREN'S SERVICES,REDACTED PERSONAL DATA,"1,042.86",SEMI INDEPENDENT,OTHER PAYMENTS FOR CLIENTS,2102654206
06.04.2017,CHILDREN'S SERVICES,D HASWELL,750,SEND REDESIGN PROJECT,PROFESSIONAL FEES,5902244775
06.04.2017,CHILDREN'S SERVICES,A & M ACCOMMODATION SERVICES LTD,"1,260.00",TEMPORARY ACCOMMODATION,SECTION 17 PAYMENTS TO AGENCIES/CARERS,5902245631
06.04.2017,CHILDREN'S SERVICES,A & M ACCOMMODATION SERVICES LTD,"1,395.00",TEMPORARY ACCOMMODATION,SECTION 17 PAYMENTS TO AGENCIES/CARERS,5902245629
06.04.2017,CHILDREN'S SERVICES,TAAKSVALE HOUSING LTD,"13,923.00",TEMPORARY ACCOMMODATION,SECTION 17 PAYMENTS TO AGENCIES/CARERS,5902245638
06.04.2017,CHILDREN'S SERVICES,KINGSDALE FOUNDATION SCHOOL,"9,162.32",TRADE UNIONS,SCHOOLS CAPITATION,5902244623
06.04.2017,CHILDREN'S SERVICES,SOUTHWARK LAW CENTRE,500,UASC SECTION 24,EXTERNAL AGENCIES AND BODIES,5902245603
06.04.2017,CHILDREN'S SERVICES,GUYS & ST THOMAS NHS FOUNDATION TRUST,"1,850.00",YOS SUPPORT,EXTERNAL AGENCIES AND BODIES,5902245646
06.04.2017,COMMUNITIES,VOICEABILITY ADVOCACY,400,NHS COMPLAINTS ADVOCACY,EXTERNAL AGENCIES AND BODIES,5902245735
06.04.2017,COMMUNITIES,NATIONWIDE ACCOMMODATION,"12,119.00",NO RECOURSE TO PUBLIC FUNDS,SECTION 17 PAYMENTS TO AGENCIES/CARERS,5902245645
06.04.2017,COMMUNITIES,WILLIAM BOOTH COLLEGE T/A HUMPTY DUMPTY NURSERY,"1,140.00",TENANTS FUND,MARKETING & PUBLICITY SERVICES,5902245349
06.04.2017,COMMUNITIES,CANON UK LTD,428.53,TENANTS FUND,OP LEASE/HIRE CHARGES:PLANT/EQUIP/FURNIT,5902245621
06.04.2017,COMMUNITIES,CANON UK LTD,453.31,TENANTS FUND,OP LEASE/HIRE CHARGES:PLANT/EQUIP/FURNIT,5902245626
06.04.2017,COMMUNITIES,CANON UK LTD,716.07,TENANTS FUND,OP LEASE/HIRE CHARGES:PLANT/EQUIP/FURNIT,5902245630
06.04.2017,COMMUNITIES,CANON UK LTD,716.07,TENANTS FUND,OP LEASE/HIRE CHARGES:PLANT/EQUIP/FURNIT,5902245636
06.04.2017,COMMUNITIES,CANON UK LTD,807.56,TENANTS FUND,OP LEASE/HIRE CHARGES:PLANT/EQUIP/FURNIT,5902245628
06.04.2017,COMMUNITIES,CANON UK LTD,807.56,TENANTS FUND,OP LEASE/HIRE CHARGES:PLANT/EQUIP/FURNIT,5902245634
06.04.2017,COMMUNITIES,PECAN LTD,"6,429.00",VCS GRANTS,GRANTS,5902245255
06.04.2017,COMMUNITIES,PECAN LTD,"6,863.00",VCS GRANTS,GRANTS,5902245254
06.04.2017,COMMUNITIES,SURREY DOCKS FARM PROVIDENT SOCIETY,"10,678.25",VCS GRANTS,GRANTS,5902245256
06.04.2017,COMMUNITIES,ORGANISATION OF BLIND AFRICANS & CARIBBEANS,"4,084.25",VCS GRANTS,GRANTS,5902245257
06.04.2017,COMMUNITIES,AYLESBURY EVERY WOMAN'S CENTRE,"3,600.00",VCS GRANTS,GRANTS,5902245261
06.04.2017,COMMUNITIES,WORKING WITH MEN,"3,600.00",VCS GRANTS,GRANTS,5902245262
06.04.2017,COMMUNITIES,COOLTAN ARTS,"3,187.50",VCS GRANTS,GRANTS,5902245263
06.04.2017,COMMUNITIES,MENTAL FIGHT CLUB,"1,870.00",VCS GRANTS,GRANTS,5902245264
06.04.2017,COMMUNITIES,CRYSTAL PALACE COMM DEV TRUST,"2,264.75",VCS GRANTS,GRANTS,5902245265
06.04.2017,COMMUNITIES,LATIN AMERICAN WOMEN'S RIGHTS SERVICES,"3,400.00",VCS GRANTS,GRANTS,5902245268
06.04.2017,COMMUNITIES,PAXTON GREEN TIME BANK,"3,600.00",VCS GRANTS,GRANTS,5902245269
06.04.2017,COMMUNITIES,THE BIKE PROJECT,"3,750.00",VCS GRANTS,GRANTS,5902245273
06.04.2017,CUSTOMER EXPERIENCE,PARIS SMITH AND RANDALL SOLICITORS,323.9,SALES & ACQUISITIONS,LEGAL FEES & COURT COSTS,5902244608
06.04.2017,CUSTOMER EXPERIENCE,PARIS SMITH AND RANDALL SOLICITORS,323.9,SALES & ACQUISITIONS,LEGAL FEES & COURT COSTS,5902245047
06.04.2017,CUSTOMER EXPERIENCE,PARIS SMITH AND RANDALL SOLICITORS,323.9,SALES & ACQUISITIONS,LEGAL FEES & COURT COSTS,5902245047
06.04.2017,CUSTOMER EXPERIENCE,PARIS SMITH AND RANDALL SOLICITORS,328.11,SALES & ACQUISITIONS,LEGAL FEES & COURT COSTS,5902245047
06.04.2017,CUSTOMER EXPERIENCE,PARIS SMITH AND RANDALL SOLICITORS,328.11,SALES & ACQUISITIONS,LEGAL FEES & COURT COSTS,5902245047
06.04.2017,CUSTOMER EXPERIENCE,PARIS SMITH AND RANDALL SOLICITORS,328.11,SALES & ACQUISITIONS,LEGAL FEES & COURT COSTS,5902245047
06.04.2017,CUSTOMER EXPERIENCE,PARIS SMITH AND RANDALL SOLICITORS,328.11,SALES & ACQUISITIONS,LEGAL FEES & COURT COSTS,5902245047
06.04.2017,CUSTOMER EXPERIENCE,PARIS SMITH AND RANDALL SOLICITORS,328.11,SALES & ACQUISITIONS,LEGAL FEES & COURT COSTS,5902245047
06.04.2017,CUSTOMER EXPERIENCE,PARIS SMITH AND RANDALL SOLICITORS,328.11,SALES & ACQUISITIONS,LEGAL FEES & COURT COSTS,5902245052
06.04.2017,CUSTOMER EXPERIENCE,PARIS SMITH AND RANDALL SOLICITORS,328.11,SALES & ACQUISITIONS,LEGAL FEES & COURT COSTS,5902245052
06.04.2017,CUSTOMER EXPERIENCE,PARIS SMITH AND RANDALL SOLICITORS,439.33,SALES & ACQUISITIONS,LEGAL FEES & COURT COSTS,5902244611
06.04.2017,CUSTOMER EXPERIENCE HGF,DIGNITY FUNERALS LTD,"1,245.00",CORONER'S,PROFESSIONAL FEES,5902245570
06.04.2017,CUSTOMER EXPERIENCE HGF,CROWN HOUSING LTD,"11,290.50",NIGHTLY TA (NSC),EXTERNAL AGENCIES AND BODIES,5902245647
06.04.2017,ENVIRONMENT AND LEISURE,CJS PLANTS,261.24,CAPITAL PS (LEISURE),CONST'N MAIN CONTRACT - NON CERTIFICATED,5902245724
06.04.2017,ENVIRONMENT AND LEISURE,CONWAY AECOM LTD,"2,918.59",CAPITAL PS (LEISURE),CONSTRUCTION,2102653883
06.04.2017,ENVIRONMENT AND LEISURE,CONWAY AECOM LTD,"4,097.42",CAPITAL PS (LEISURE),CONSTRUCTION,2102653885
06.04.2017,ENVIRONMENT AND LEISURE,CONWAY AECOM LTD,"5,152.18",CAPITAL PS (LEISURE),CONSTRUCTION,2102653882
06.04.2017,ENVIRONMENT AND LEISURE,CONWAY AECOM LTD,"6,465.18",CAPITAL PS (LEISURE),CONSTRUCTION,2102653880
06.04.2017,ENVIRONMENT AND LEISURE,CONWAY AECOM LTD,"8,868.71",CAPITAL PS (LEISURE),CONSTRUCTION,2102653876
06.04.2017,ENVIRONMENT AND LEISURE,CONWAY AECOM LTD,"14,893.04",CAPITAL PS (LEISURE),CONSTRUCTION,2102653884
06.04.2017,ENVIRONMENT AND LEISURE,CONWAY AECOM LTD,"22,538.70",CAPITAL PS (LEISURE),CONSTRUCTION,2102653879
06.04.2017,ENVIRONMENT AND LEISURE,CONWAY AECOM LTD,"26,210.21",CAPITAL PS (LEISURE),CONSTRUCTION,2102653886
06.04.2017,ENVIRONMENT AND LEISURE,CONWAY AECOM LTD,"28,461.39",CAPITAL PS (LEISURE),CONSTRUCTION,2102653881
06.04.2017,ENVIRONMENT AND LEISURE,CONWAY AECOM LTD,"29,857.29",CAPITAL PS (LEISURE),CONSTRUCTION,2102653878
06.04.2017,ENVIRONMENT AND LEISURE,CONWAY AECOM LTD,"40,291.65",CAPITAL PS (LEISURE),CONSTRUCTION,2102654166
06.04.2017,ENVIRONMENT AND LEISURE,CONWAY AECOM LTD,"43,274.57",CAPITAL PS (LEISURE),CONSTRUCTION,2102654294
06.04.2017,ENVIRONMENT AND LEISURE,CONWAY AECOM LTD,"47,446.69",CAPITAL PS (LEISURE),CONSTRUCTION,2102654293
06.04.2017,ENVIRONMENT AND LEISURE,CONWAY AECOM LTD,"65,058.80",CAPITAL PS (LEISURE),CONSTRUCTION,2102654292
06.04.2017,ENVIRONMENT AND LEISURE,CONWAY AECOM LTD,"69,936.42",CAPITAL PS (LEISURE),CONSTRUCTION,2102653877
06.04.2017,ENVIRONMENT AND LEISURE,KATHERINE OLLEY,"2,500.00",CAPITAL PS (LEISURE),CONSTRUCTION FEES  - EXTERNAL,5902245745
06.04.2017,ENVIRONMENT DIRECTORATE,LONDON SOUTH BANK UNIVERSITY,"1,100.00",BEHAVIOUR CHANGE,CONSULTANTS SERVICES,5902245759
06.04.2017,ENVIRONMENT DIRECTORATE,DAWSON RENTALS SWEEPERS,"2,300.00",COMMERCIAL VEH CTRL A/C,HIRED VEHICLES,5902245731
06.04.2017,ENVIRONMENT DIRECTORATE,DAWSON RENTALS SWEEPERS,"2,300.00",COMMERCIAL VEH CTRL A/C,HIRED VEHICLES,5902245733
06.04.2017,ENVIRONMENT DIRECTORATE,LCV HIRE SOLUTIONS LTD,275.74,COMMERCIAL VEH CTRL A/C,HIRED VEHICLES,5902245730
06.04.2017,ENVIRONMENT DIRECTORATE,R J MOTORS LIMITED,342.46,COMMERCIAL VEH CTRL A/C,VEHICLE REPAIRS & MAINTENANCE,5902245736
06.04.2017,ENVIRONMENT DIRECTORATE,THE T.P. PARTNERSHIP,445,ESTATE CLEANING-GENERAL,OTHER CONTRACTORS,5902244800
06.04.2017,ENVIRONMENT DIRECTORATE,QUARTERMAN WINDSCREENS LTD,250.7,FLEET INSURANCE WORKS,TRANSPORT INSURANCE COSTS,5902245620
06.04.2017,ENVIRONMENT DIRECTORATE,HUNTER APPAREL SOLUTIONS LTD,"1,680.48",MANAGEMENT TEAM,"CLOTHING, UNIFORMS & LAUNDRY",5902245639
06.04.2017,ENVIRONMENT DIRECTORATE,IMPERIAL POLYTHENE PRODUCTS LTD,795,MANAGEMENT TEAM,MATERIALS,5902244471
06.04.2017,ENVIRONMENT DIRECTORATE,IMPERIAL POLYTHENE PRODUCTS LTD,"1,192.50",MANAGEMENT TEAM,MATERIALS,5902244476
06.04.2017,ENVIRONMENT DIRECTORATE,RH ENVIRONMENTAL LTD,640.8,POLLUTION CONTROL,STATIONERY,5902244888
06.04.2017,ENVIRONMENT DIRECTORATE,THE WATERFRONT CONFERENCE COMPANY LTD,299,POLLUTION CONTROL,TRAINING,5902245702
06.04.2017,ENVIRONMENT DIRECTORATE,SOUTHWARK NEWSPAPER LTD,288,STREET WORKS OVERHEADS,MARKETING & PUBLICITY SERVICES,5902245737
06.04.2017,ENVIRONMENT DIRECTORATE,SOUTHWARK NEWSPAPER LTD,300,STREET WORKS OVERHEADS,MARKETING & PUBLICITY SERVICES,5902245566
06.04.2017,ENVIRONMENT DIRECTORATE,SOUTHWARK NEWSPAPER LTD,300,STREET WORKS OVERHEADS,MARKETING & PUBLICITY SERVICES,5902245615
06.04.2017,ENVIRONMENT DIRECTORATE,SOUTHWARK NEWSPAPER LTD,300,STREET WORKS OVERHEADS,MARKETING & PUBLICITY SERVICES,5902245741
06.04.2017,ENVIRONMENT DIRECTORATE,SOUTHWARK NEWSPAPER LTD,324,STREET WORKS OVERHEADS,MARKETING & PUBLICITY SERVICES,5902245569
06.04.2017,ENVIRONMENT DIRECTORATE,SOUTHWARK NEWSPAPER LTD,336,STREET WORKS OVERHEADS,MARKETING & PUBLICITY SERVICES,5902245584
06.04.2017,ENVIRONMENT DIRECTORATE,SOUTHWARK NEWSPAPER LTD,348,STREET WORKS OVERHEADS,MARKETING & PUBLICITY SERVICES,5902245695
06.04.2017,ENVIRONMENT DIRECTORATE,SOUTHWARK NEWSPAPER LTD,384,STREET WORKS OVERHEADS,MARKETING & PUBLICITY SERVICES,5902245694
06.04.2017,F & C S EXCLUDING CORPORATE BUDGETS,CAPITA BUSINESS SERVICES LTD,"5,328.00",CAPITA,OTHER CONTRACTORS,5902245752
06.04.2017,F & C S EXCLUDING CORPORATE BUDGETS,CAPITA BUSINESS SERVICES LTD,595,CASH OFFICES,DATA COMMUNICATIONS,5902245747
06.04.2017,F & C S EXCLUDING CORPORATE BUDGETS,BDO LLP,"20,923.00",INTERNAL AUDIT CONTRACTS,PAYMENTS FOR FINANCIAL SERVICES,5902245717
06.04.2017,HOUSING,GRAFTON MERCHANTING GB LTD,310,STORES,CREDITORS -GR/IR CLEARING ACCOUNT,5902245746
06.04.2017,HOUSING,GRAFTON MERCHANTING GB LTD,616.98,STORES,CREDITORS -GR/IR CLEARING ACCOUNT,5902245676
06.04.2017,HOUSING,LONDON TOOLS LIMITED,295,STORES,CREDITORS -GR/IR CLEARING ACCOUNT,5902245606
06.04.2017,HOUSING,LONDON TOOLS LIMITED,335,STORES,CREDITORS -GR/IR CLEARING ACCOUNT,5902245585
06.04.2017,HOUSING,LONDON TOOLS LIMITED,350,STORES,CREDITORS -GR/IR CLEARING ACCOUNT,5902245624
06.04.2017,HOUSING,LONDON TOOLS LIMITED,375,STORES,CREDITORS -GR/IR CLEARING ACCOUNT,5902245574
06.04.2017,HOUSING,LONDON TOOLS LIMITED,396,STORES,CREDITORS -GR/IR CLEARING ACCOUNT,5902245573
06.04.2017,HOUSING,LONDON TOOLS LIMITED,402.5,STORES,CREDITORS -GR/IR CLEARING ACCOUNT,5902245610
06.04.2017,HOUSING,LONDON TOOLS LIMITED,450,STORES,CREDITORS -GR/IR CLEARING ACCOUNT,5902245624
06.04.2017,HOUSING,LONDON TOOLS LIMITED,720,STORES,CREDITORS -GR/IR CLEARING ACCOUNT,5902245637
06.04.2017,HOUSING,LONDON TOOLS LIMITED,750,STORES,CREDITORS -GR/IR CLEARING ACCOUNT,5902245637
06.04.2017,HOUSING GENERAL FUND,RSM BUILDING CONTRACTORS,360,CAPITAL PS (HOUSING GF),CAPITAL GRANTS,5902245581
06.04.2017,HOUSING GENERAL FUND,RSM BUILDING CONTRACTORS,"2,850.00",CAPITAL PS (HOUSING GF),CAPITAL GRANTS,5902245675
06.04.2017,HOUSING GENERAL FUND,RSM BUILDING CONTRACTORS,"6,467.00",CAPITAL PS (HOUSING GF),CAPITAL GRANTS,5902245756
06.04.2017,HOUSING GENERAL FUND,CAPITA BUSINESS SERVICES LTD,"3,050.25",CAPITAL PS (STRAT SERV),ICT ACQUISITION,5902245744
06.04.2017,HOUSING HRA,M C TECHNICIANS LTD,"15,335.00",CAPITAL PS (HRA),CONST'N MAIN CONTRACT - NON CERTIFICATED,2102654299
06.04.2017,HOUSING HRA,M E HORSTEAD,460,CAPITAL PS (HRA),CONST'N MAIN CONTRACT - NON CERTIFICATED,2102654298
06.04.2017,HOUSING HRA,TRINITY CONSTRUCTION SERVICES LTD,"6,777.00",CAPITAL PS (HRA),CONST'N MAIN CONTRACT - NON CERTIFICATED,2102654300
06.04.2017,HOUSING HRA,CALFORD SEADEN LLP,"20,411.46",CAPITAL PS (HRA),CONSTRUCTION FEES  - EXTERNAL,5902245625
06.04.2017,HOUSING HRA,JOMAS ASSOCIATES LTD,"8,225.00",CAPITAL PS (HRA),CONSTRUCTION FEES  - EXTERNAL,5902245698
06.04.2017,HOUSING HRA,SALTASH ENTERPRISES LTD,"5,000.00",CAPITAL PS (HRA),CONSTRUCTION MAIN CONTRACT -CERTIFICATED,2102654158
06.04.2017,HOUSING HRA,SALTASH ENTERPRISES LTD,"117,017.00",CAPITAL PS (HRA),CONSTRUCTION MAIN CONTRACT -CERTIFICATED,2102654160
06.04.2017,HOUSING HRA,SALTASH ENTERPRISES LTD,"154,134.00",CAPITAL PS (HRA),CONSTRUCTION MAIN CONTRACT -CERTIFICATED,2102654159
06.04.2017,HOUSING HRA,RESOURCE & ENVIRONMENTAL CONSULTANTS LTD,500,CAPITAL PS (REGEN),CONSTRUCTION FEES,5902245632
06.04.2017,HOUSING HRA,STREET RUNNERS LTD,310,CAPITAL PS (REGEN),CONSTRUCTION FEES,5902245708
06.04.2017,HOUSING HRA,STREET RUNNERS LTD,375,CAPITAL PS (REGEN),CONSTRUCTION FEES,5902245710
06.04.2017,HOUSING HRA,RSK ENVIRONMENT HEALTH & SAFETY LTD,"1,200.00",CAPITAL PS (REGEN),CONSTRUCTION FEES,5902245652
06.04.2017,LEISURE DIRECTORATE,QUADRON SERVICES LIMITED,"2,218.10",BURGESS AREA TEAM,GROUNDS MAINTENANCE,5902245583
06.04.2017,LEISURE DIRECTORATE,P D CONSTRUCTION LTD,796,BURGESS AREA TEAM,OTHER R&M,2102654297
06.04.2017,MODERNISATION HGF,WAGNER UK LIMITED,"21,195.00",160 TOOLEY ST.,BUILDING R&M,5902245650
06.04.2017,MODERNISATION HGF,ROYAL MAIL GROUP LTD,"1,839.10",160 TOOLEY ST.,POSTAGES,5902245612
06.04.2017,MODERNISATION HGF,ST JOHN AMBULANCE SUPPLIES,"1,150.00",CORP. TRAINING BUDGETS,TRAINING,5902245572
06.04.2017,MODERNISATION HGF,COMENSURA LTD,"3,676.56",MONTHLY ADMIN FEE,AGENCY STAFF,5902245720
06.04.2017,MODERNISATION HGF,NEWMANS CONSULTING LIMITED,"1,250.00",OCCUPATIONAL ASSESSMENT,EQUIPMENT PURCHASE & REPAIR,5902245090
06.04.2017,MODERNISATION HGF,KIER FACILITIES SERVICES LTD,"6,853.35",PLANNED FM SERVICES BY KIER,BUILDING R&M,5902245713
06.04.2017,MODERNISATION HGF,CITY ACADEMY,"1,541.66",SED GROUP DEVELOPMENT FUND,REFRESHMENTS FOR MEETINGS,5902245648
06.04.2017,MODERNISATION HGF,COMENSURA LTD,"517,631.78",WEEKLY PAYMENTS,AGENCY STAFF,5902245720
06.04.2017,PUBLIC HEALTH,REFER-ALL LTD,"9,965.00",PHYSICAL ACTIVITY - ADULTS,SOFTWARE,5902244265
06.04.2017,PUBLIC HEALTH,HEALTH EDUCATION PARTNERSHIP LTD,"4,250.00",PUBLIC HEALTH,CONSULTANTS SERVICES,5902244218
06.04.2017,PUBLIC HEALTH,BUCKINGHAMSHIRE HEALTHCARE NHS TRUST,453.09,SEXUAL HEALTH - STI,EXTERNAL AGENCIES AND BODIES,5902245669
06.04.2017,PUBLIC HEALTH,CENTRAL & NORTH WEST LONDON,"24,273.34",SEXUAL HEALTH - STI,EXTERNAL AGENCIES AND BODIES,5902245670
06.04.2017,PUBLIC HEALTH,CROYDON HEALTH SERVICES NHS TRUST,"2,402.57",SEXUAL HEALTH - STI,EXTERNAL AGENCIES AND BODIES,5902245723
06.04.2017,PUBLIC HEALTH,ST GEORGES UNIVERSITY HOSPITALS NHS,"2,137.96",SEXUAL HEALTH - STI,EXTERNAL AGENCIES AND BODIES,5902245721
06.04.2017,PUBLIC HEALTH,ST GEORGES UNIVERSITY HOSPITALS NHS,"2,309.74",SEXUAL HEALTH - STI,EXTERNAL AGENCIES AND BODIES,5902245732
06.04.2017,PUBLIC HEALTH,ST GEORGES UNIVERSITY HOSPITALS NHS,"2,665.68",SEXUAL HEALTH - STI,EXTERNAL AGENCIES AND BODIES,5902245729
06.04.2017,PUBLIC HEALTH,ST GEORGES UNIVERSITY HOSPITALS NHS,"2,929.54",SEXUAL HEALTH - STI,EXTERNAL AGENCIES AND BODIES,5902245725
06.04.2017,REGENERATION,GERALD EVE LLP,"8,092.50",MISC INDUSTRIAL PROPERTIES,PROFESSIONAL FEES,5902245546
06.04.2017,RESIDENT SERVICES,LONDON TOOLS LIMITED,256.2,SHELTERED WARDENS,MATERIALS,5902245604
06.04.2017,RESIDENT SERVICES,LONDON TOOLS LIMITED,295,SHELTERED WARDENS,MATERIALS,5902245591
06.04.2017,RESIDENT SERVICES,LONDON TOOLS LIMITED,295,SHELTERED WARDENS,MATERIALS,5902245600
06.04.2017,RESIDENT SERVICES,LONDON TOOLS LIMITED,330,TA HOSTELS,MATERIALS,5902245608
06.04.2017,SOUTHWARK BUILDING SERVICES,LONDON TOOLS LIMITED,356,ROOFERS,MATERIALS,5902245592
07.04.2017,ADULT SOCIAL CARE,REDACTED PERSONAL DATA,264.8,APPOINTEESHIPS,OTHER PAYMENTS FOR CLIENTS,5902245865
07.04.2017,ADULT SOCIAL CARE,REDACTED PERSONAL DATA,308.16,APPOINTEESHIPS,OTHER PAYMENTS FOR CLIENTS,2102654337
07.04.2017,ADULT SOCIAL CARE,REDACTED PERSONAL DATA,640,APPOINTEESHIPS,OTHER PAYMENTS FOR CLIENTS,2102654336
07.04.2017,ADULT SOCIAL CARE,REDACTED PERSONAL DATA,680,APPOINTEESHIPS,OTHER PAYMENTS FOR CLIENTS,2102654335
07.04.2017,ADULT SOCIAL CARE,REDACTED PERSONAL DATA,720,APPOINTEESHIPS,OTHER PAYMENTS FOR CLIENTS,2102654334
07.04.2017,ADULT SOCIAL CARE,REDACTED PERSONAL DATA,520,APPOINTEESHIPS,OTHER PAYMENTS FOR CLIENTS,2102654350
07.04.2017,ADULT SOCIAL CARE,REDACTED PERSONAL DATA,600,APPOINTEESHIPS,OTHER PAYMENTS FOR CLIENTS,2102654341
07.04.2017,ADULT SOCIAL CARE,REDACTED PERSONAL DATA,518.4,APPOINTEESHIPS,OTHER PAYMENTS FOR CLIENTS,2102654351
07.04.2017,ADULT SOCIAL CARE,REDACTED PERSONAL DATA,920,APPOINTEESHIPS,OTHER PAYMENTS FOR CLIENTS,2102654332
07.04.2017,ADULT SOCIAL CARE,CHOICE SUPPORT,960,APPOINTEESHIPS,OTHER PAYMENTS FOR CLIENTS,2102654362
07.04.2017,ADULT SOCIAL CARE,THAMES REACH,329.92,APPOINTEESHIPS,OTHER PAYMENTS FOR CLIENTS,2102654353
07.04.2017,ADULT SOCIAL CARE,PEABODY TRUST,729.6,APPOINTEESHIPS,OTHER PAYMENTS FOR CLIENTS,2102654348
07.04.2017,ADULT SOCIAL CARE,PEABODY TRUST,768.16,APPOINTEESHIPS,OTHER PAYMENTS FOR CLIENTS,2102654349
07.04.2017,ADULT SOCIAL CARE,EQUINOX CARE,"2,180.40",APPOINTEESHIPS,OTHER PAYMENTS FOR CLIENTS,2102654357
07.04.2017,ADULT SOCIAL CARE,EQUINOX CARE,"2,180.40",APPOINTEESHIPS,OTHER PAYMENTS FOR CLIENTS,2102654358
07.04.2017,ADULT SOCIAL CARE,HAVELOCK COURT NURSING HOME,640,APPOINTEESHIPS,OTHER PAYMENTS FOR CLIENTS,2102654338
07.04.2017,ADULT SOCIAL CARE,HEXAGON HOUSING ASSOCIATION LTD,"1,074.16",APPOINTEESHIPS,OTHER PAYMENTS FOR CLIENTS,2102654339
07.04.2017,ADULT SOCIAL CARE,HEXAGON HOUSING ASSOCIATION LTD,"1,977.20",APPOINTEESHIPS,OTHER PAYMENTS FOR CLIENTS,2102654342
07.04.2017,ADULT SOCIAL CARE,RIGHT SUPPORT MANAGEMENT LTD,"1,000.00",APPOINTEESHIPS,OTHER PAYMENTS FOR CLIENTS,2102654352
07.04.2017,ADULT SOCIAL CARE,CRAEGMOOR LEVITT MILL PRIORY GROUP,400,APPOINTEESHIPS,OTHER PAYMENTS FOR CLIENTS,2102654359
07.04.2017,ADULT SOCIAL CARE,ELIZABETH PETERS CARE HOMES LTD,560,APPOINTEESHIPS,OTHER PAYMENTS FOR CLIENTS,2102654361
07.04.2017,ADULT SOCIAL CARE,BRITISH TELECOMMUNICATIONS PLC,434.48,ORIENT STREET,TELEPHONES (LAND LINES),5902245767
07.04.2017,ADULT SOCIAL CARE,GUYS & ST THOMAS NHS FOUNDATION TRUST,"26,771.00",REABLEMENT SERVICE,EXTERNAL AGENCIES AND BODIES,5902245874
07.04.2017,ASSET MANAGEMENT,REDFORD CHARLES LTD,500,ENG COMPLIANCE MANAGER,TRAINING,5902245819
07.04.2017,ASSET MANAGEMENT,A & H PEST CONTROL LTD,390,ENG CONTRACTS (NORTH),PLANNED MAINTENANCE,5902245914
07.04.2017,CENTRAL FUNCTIONS,BLAKENEY LEIGH LTD,631.95,AYLESBURY,PROFESSIONAL FEES,5902245777
07.04.2017,CENTRAL FUNCTIONS,BLAKENEY LEIGH LTD,922.13,AYLESBURY,PROFESSIONAL FEES,5902245773
07.04.2017,CENTRAL FUNCTIONS,BLAKENEY LEIGH LTD,945.53,AYLESBURY,PROFESSIONAL FEES,5902245769
07.04.2017,CENTRAL FUNCTIONS,ALLPAY NET LIMITED,"1,085.73",SERVICE LEVEL AGREEMENTS,BANK CHARGES,5902245930
07.04.2017,CENTRAL FUNCTIONS,ALLPAY NET LIMITED,"3,771.58",SERVICE LEVEL AGREEMENTS,BANK CHARGES,5902245934
07.04.2017,CENTRAL FUNCTIONS,ALLPAY NET LIMITED,"16,235.94",SERVICE LEVEL AGREEMENTS,BANK CHARGES,5902245927
07.04.2017,CHIEF EXECUTIVE,JOHN MCASLAN & PARTNERS LTD,"5,130.00",CAPITAL PS (REGEN),CONSTRUCTION FEES,5902245954
07.04.2017,CHIEF EXECUTIVE,FRANKHAM CONSULTANCY GROUP LTD,"1,344.00",CAPITAL PS (REGEN),CONSTRUCTION FEES,5902245765
07.04.2017,CHIEF EXECUTIVE,UNITED ALLSTARS FC,500,CAPITAL PS (REGEN),CONSTRUCTION FEES,5902245908
07.04.2017,CHIEF EXECUTIVE,STREET TREE CARE LTD,"7,816.00",CAPITAL PS (REGEN),CONSTRUCTION FEES  - EXTERNAL,5902245783
07.04.2017,CHIEF EXECUTIVE'S OFFICE,J C CONSULTANT SERVICES LTD,"9,746.00",CHIEF EXEC'S OFFICE,GRANTS,5902245804
07.04.2017,CHILDREN AND ADULT,TECHNICAL DRAIN SOLUTIONS LTD,"21,469.85",CAPITAL PS (EDUCATION),CONSTRUCTION SUB CONTRACT,5902245834
07.04.2017,CHILDREN'S SERVICES,NEXUS THE EDUCATORS CONNECTION LTD,"-2,230.00",AYLESBURY EARLY YEARS CENTRE,EQUIPMENT PURCHASE & REPAIR,5902245894
07.04.2017,CHILDREN'S SERVICES,NEXUS THE EDUCATORS CONNECTION LTD,"2,230.00",AYLESBURY EARLY YEARS CENTRE,EQUIPMENT PURCHASE & REPAIR,5902245892
07.04.2017,CHILDREN'S SERVICES,DAYBREAK FAMILY GROUP CONFERENCES,"28,810.00",FAMILY GROUP CONFERENCES,EXTERNAL AGENCIES AND BODIES,5902245879
07.04.2017,CHILDREN'S SERVICES,PULSE HEALTHCARE LTD,299,HOME 2 SCHOOL TRANSPORT,AGENCY STAFF,5902245825
07.04.2017,CHILDREN'S SERVICES,PULSE HEALTHCARE LTD,299,HOME 2 SCHOOL TRANSPORT,AGENCY STAFF,5902245830
07.04.2017,CHILDREN'S SERVICES,HUNTERS THE FUNITURE COMPANY,252,PARENTING TEAM,EQUIPMENT PURCHASE & REPAIR,5902245876
07.04.2017,CHILDREN'S SERVICES,OFFICE DEPOT UK LTD,604.49,PARENTING TEAM,STATIONERY,5902245903
07.04.2017,CHILDREN'S SERVICES,ST CHRISTOPHER FELLOWSHIP,289.5,SEMI INDEPENDENT,OTHER PAYMENTS FOR CLIENTS,5902245880
07.04.2017,CHILDREN'S SERVICES,KIDS,339,SPECIALIST CARE,SECTION 17 PAYMENTS TO AGENCIES/CARERS,5902245889
07.04.2017,CHILDREN'S SERVICES,KIDS,452,SPECIALIST CARE,SECTION 17 PAYMENTS TO AGENCIES/CARERS,5902245887
07.04.2017,CHILDREN'S SERVICES,KIDS,452,SPECIALIST CARE,SECTION 17 PAYMENTS TO AGENCIES/CARERS,5902245888
07.04.2017,CHILDREN'S SERVICES,KIDS,565,SPECIALIST CARE,SECTION 17 PAYMENTS TO AGENCIES/CARERS,5902245886
07.04.2017,CHILDREN'S SERVICES,VEOLIA ES (UK)LTD,444.78,THOMAS CALTON CENTRE,REFUSE COLLECTION CONTRACT,5902245911
07.04.2017,COMMISSIONING & CENTRAL,VANGUARD EDUCATION,550,SAFEGUARDING BOARDS,TRAINING,5902245900
07.04.2017,COMMUNITIES,APPLEGARTH HOUSE COOPERATIVE LTD,"22,363.25",APPLEGARTH HOUSE CO-OP,M&M ALLOWANCE CO-OPS,5902245868
07.04.2017,COMMUNITIES,COOPER CLOSE CO-OPERATIVE LTD,"14,399.25",COOPERS CLOSE CO-OP,M&M ALLOWANCE CO-OPS,5902245910
07.04.2017,COMMUNITIES,DEYNSFORD TENANT MANAGEMENT ORGANISATION,"91,075.25",D'EYNSFORD ESTATE,M&M ALLOWANCE CO-OPS,5902245935
07.04.2017,COMMUNITIES,FAIR COMMUNITY HSG SERVICES LTD,"175,929.00",FAIR CHS TMO,M&M ALLOWANCE CO-OPS,5902245950
07.04.2017,COMMUNITIES,HADDON HALL RESIDENTS TMO,"55,495.00",HADDON HALL CO-OP,M&M ALLOWANCE CO-OPS,5902245832
07.04.2017,COMMUNITIES,HAPPY COMPUTERS LTD,725,RESIDENT INVOLVEMENT TEAM,TRAINING,5902245837
07.04.2017,COMMUNITIES,TOM HOPKINS ASSOCIATES LTD,"1,960.00",TENANT MGT INITITIVES,TRAINING,5902245836
07.04.2017,CUSTOMER EXPERIENCE,POSTURITE (UK) LTD,629.12,SALES & ACQUISITIONS,FURNITURE PURCHASE & REPAIR,5902245840
07.04.2017,CUSTOMER EXPERIENCE HGF,REDACTED PERSONAL DATA,"8,974.00",NIGHTLY TA (NSC),EXTERNAL AGENCIES AND BODIES,5902245962
07.04.2017,CUSTOMER EXPERIENCE HGF,SHUTTLEWORTH (UK) LTD,972,NIGHTLY TA (NSC),EXTERNAL AGENCIES AND BODIES,5902245806
07.04.2017,CUSTOMER EXPERIENCE HGF,SHUTTLEWORTH (UK) LTD,"1,116.00",NIGHTLY TA (NSC),EXTERNAL AGENCIES AND BODIES,5902245787
07.04.2017,CUSTOMER EXPERIENCE HGF,SHUTTLEWORTH (UK) LTD,"1,116.00",NIGHTLY TA (NSC),EXTERNAL AGENCIES AND BODIES,5902245797
07.04.2017,CUSTOMER EXPERIENCE HGF,EASYMOVE EA LIMITED,"1,116.00",NIGHTLY TA (NSC),EXTERNAL AGENCIES AND BODIES,5902245782
07.04.2017,CUSTOMER EXPERIENCE HGF,UXBRIDGE ESTATE AGENTS LTD,"2,604.00",NIGHTLY TA (NSC),EXTERNAL AGENCIES AND BODIES,5902245771
07.04.2017,CUSTOMER EXPERIENCE HGF,UXBRIDGE ESTATE AGENTS LTD,"4,778.65",NIGHTLY TA (NSC),EXTERNAL AGENCIES AND BODIES,5902245775
07.04.2017,CUSTOMER EXPERIENCE HGF,SK HOUSING LTD,"11,724.65",NIGHTLY TA (NSC),EXTERNAL AGENCIES AND BODIES,5902245766
07.04.2017,CUSTOMER EXPERIENCE HGF,J & M OASIS LTD,"1,935.00",NIGHTLY TA (NSC),EXTERNAL AGENCIES AND BODIES,5902245921
07.04.2017,CUSTOMER EXPERIENCE HGF,TAAKSVALE HOUSING LTD,"2,480.00",NIGHTLY TA (NSC),EXTERNAL AGENCIES AND BODIES,5902245897
07.04.2017,CUSTOMER EXPERIENCE HGF,ZFA LTD,"14,349.00",NIGHTLY TA (NSC),EXTERNAL AGENCIES AND BODIES,5902245869
07.04.2017,CUSTOMER EXPERIENCE HGF,ACE FAST LETTINGS LTD,"2,423.50",NIGHTLY TA (NSC),EXTERNAL AGENCIES AND BODIES,5902245808
07.04.2017,ENVIRONMENT AND LEISURE,LARK LANDSCAPE DESIGN LIMITED,950,CAPITAL PS (LEISURE),CONSTRUCTION FEES - ARCHITECT,5902245080
07.04.2017,ENVIRONMENT DIRECTORATE,LOOKERS LEASING LTD,332.44,CAR LEASING CTRL A/C,VEHICLE LEASING CHARGES,5902245902
07.04.2017,ENVIRONMENT DIRECTORATE,VANGUARD EDUCATION,"1,100.00",CCTV,TRAINING,5902245900
07.04.2017,ENVIRONMENT DIRECTORATE,FIVEWAYS MUNICIPAL VEHICLE HIRE LTD,725,COMMERCIAL VEH CTRL A/C,HIRED VEHICLES,5902245796
07.04.2017,ENVIRONMENT DIRECTORATE,FIVEWAYS MUNICIPAL VEHICLE HIRE LTD,725,COMMERCIAL VEH CTRL A/C,HIRED VEHICLES,5902245800
07.04.2017,ENVIRONMENT DIRECTORATE,SOUTH ESSEX STOCKHOLDERS LTD,"1,308.72",ENGINEERING CRAFTS,MATERIALS,5902244856
07.04.2017,ENVIRONMENT DIRECTORATE,TENNANT UK CLEANING SOLUTIONS LTD,571,MANAGEMENT TEAM,EQUIPMENT PURCHASE & REPAIR,5902244633
07.04.2017,ENVIRONMENT DIRECTORATE,TENNANT UK CLEANING SOLUTIONS LTD,571,MANAGEMENT TEAM,EQUIPMENT PURCHASE & REPAIR,5902245872
07.04.2017,ENVIRONMENT DIRECTORATE,OMNIBUS TRAINING SOLUTIONS LTD,306.6,MANAGEMENT TEAM,TRAINING,5902245772
07.04.2017,ENVIRONMENT DIRECTORATE,OMNIBUS TRAINING SOLUTIONS LTD,"1,844.50",MANAGEMENT TEAM,TRAINING,5902245772
07.04.2017,ENVIRONMENT DIRECTORATE,TFL TELESALES / OYSTER FULFILMENT,422.5,PROJECT SUPPORT,PUBLIC TRANSPORT,5902245944
07.04.2017,ENVIRONMENT DIRECTORATE,SOUTHWARK NEWSPAPER LTD,300,STREET WORKS OVERHEADS,MARKETING & PUBLICITY SERVICES,5902245925
07.04.2017,ENVIRONMENT DIRECTORATE,SOUTHWARK NEWSPAPER LTD,312,STREET WORKS OVERHEADS,MARKETING & PUBLICITY SERVICES,5902245938
07.04.2017,ENVIRONMENT DIRECTORATE,SOUTHWARK NEWSPAPER LTD,336,STREET WORKS OVERHEADS,MARKETING & PUBLICITY SERVICES,5902245946
07.04.2017,ENVIRONMENT DIRECTORATE,SOUTHWARK NEWSPAPER LTD,360,STREET WORKS OVERHEADS,MARKETING & PUBLICITY SERVICES,5902245822
07.04.2017,F & C S EXCLUDING CORPORATE BUDGETS,NORTHGATE PUBLIC SERVICES (UK) LTD,"5,000.00",ADMINISTRATIVE SUPPORT,SOFTWARE,5902245810
07.04.2017,F & C S EXCLUDING CORPORATE BUDGETS,KNOWLEDGE TRAIN LIMITED,529,ADMINISTRATIVE SUPPORT,TRAINING,5902245795
07.04.2017,F & C S EXCLUDING CORPORATE BUDGETS,SHARPE PRITCHARD LLP,"1,422.00",FINANCE DIRECTOR,PROFESSIONAL FEES,5902245939
07.04.2017,F & C S EXCLUDING CORPORATE BUDGETS,THOMSON REUTERS PROFESSIONAL UK LTD,482.95,LEGAL SVCES MANAGEMENT,BOOKS & PUBLICATIONS,5902245952
07.04.2017,F & C S EXCLUDING CORPORATE BUDGETS,THOMSON REUTERS PROFESSIONAL UK LTD,502.05,LEGAL SVCES MANAGEMENT,BOOKS & PUBLICATIONS,5902245952
07.04.2017,F & C S EXCLUDING CORPORATE BUDGETS,WINSCRIBE EUROPE LTD,"2,472.47",LEGAL SVCES MANAGEMENT,SOFTWARE,5902245945
07.04.2017,F & C S EXCLUDING CORPORATE BUDGETS,GREENWOODS SOLICITORS LLP,"2,375.00",LEGAL SVCES MANAGEMENT,TRAINING,5902244678
07.04.2017,HOUSING,MAXAM DIRECT LTD,"1,536.00",STORES,CREDITORS -GR/IR CLEARING ACCOUNT,5902245951
07.04.2017,HOUSING,GRAFTON MERCHANTING GB LTD,358.5,STORES,CREDITORS -GR/IR CLEARING ACCOUNT,5902245778
07.04.2017,HOUSING,GRAFTON MERCHANTING GB LTD,368.55,STORES,CREDITORS -GR/IR CLEARING ACCOUNT,5902245778
07.04.2017,HOUSING,LONDON TOOLS LIMITED,599.5,STORES,CREDITORS -GR/IR CLEARING ACCOUNT,5902245917
07.04.2017,HOUSING,LONDON TOOLS LIMITED,805,STORES,CREDITORS -GR/IR CLEARING ACCOUNT,5902245909
07.04.2017,HOUSING GENERAL FUND,RSM BUILDING CONTRACTORS,"6,429.00",CAPITAL PS (HOUSING GF),CAPITAL GRANTS,5902245907
07.04.2017,HOUSING GENERAL FUND,RSM BUILDING CONTRACTORS,"7,705.00",CAPITAL PS (HOUSING GF),CAPITAL GRANTS,5902245923
07.04.2017,HOUSING HRA,P D CONSTRUCTION LTD,"7,910.00",CAPITAL PS (HRA),CONST'N MAIN CONTRACT - NON CERTIFICATED,2102654331
07.04.2017,LEISURE DIRECTORATE,REDAPPLES NEWSAGENT,599.32,DULWICH LIBRARY,BOOKS & PUBLICATIONS,5902245826
07.04.2017,LEISURE DIRECTORATE,CONSTANTINE LIMITED,344.86,HERITAGE,OTHER CONTRACTORS,5902245915
07.04.2017,LEISURE DIRECTORATE,CONSTANTINE LIMITED,"2,223.61",HERITAGE,OTHER CONTRACTORS,5902245913
07.04.2017,LEISURE DIRECTORATE,CIPFA BUSINESS LTD,625,LIBARIES DEVELOPMENT,OTHER EMPLOYEE EXPENSES,5902245912
07.04.2017,LEISURE DIRECTORATE,STOCKVALE GROUP,"1,208.33",PLAY SERVICE MANAGEMENT & ADMIN,EQUIPMENT PURCHASE & REPAIR,5902245820
07.04.2017,LEISURE DIRECTORATE,CONWAY AECOM LTD,"14,022.43",SDM BUDGET,PROFESSIONAL FEES,5902244659
07.04.2017,MODERNISATION HGF,ESSENTRA SECURITY LTD,"1,100.00",160 TOOLEY ST.,EQUIPMENT PURCHASE & REPAIR,5902245893
07.04.2017,MODERNISATION HGF,TAVISTOCK & PORTMAN NHS FT,"1,400.00",ASW - PROFESSIONAL DEVELOPMENT,TRAINING,5902245873
07.04.2017,MODERNISATION HGF,SUZY LAMPLUGH TRUST,632.5,MEMBER DEVELOPMENT,TRAINING,5902245957
07.04.2017,MODERNISATION HGF,KENT COUNTY COUNCIL - LASER,"5,679.06",QUEENS RD 1 (BLOCK F),ELECTRICITY,5902245776
07.04.2017,MODERNISATION HGF,CAPITA GROUP PLC,"1,045.00",TECHNOLOGY,TRAINING,5902245867
07.04.2017,PLANNING AND TRANSPORT,PARAGON GROUP UK LTD,"6,508.74",SUPPORT SERVICES,OFFICE EXPENSES,5902245814
07.04.2017,PLANNING AND TRANSPORT,PTRC EDUCATION & RESEARCH SERVICES,475,TRANSPORT POLICY AND PROGRAMS,TRAINING,5902245763
07.04.2017,PUBLIC HEALTH,LONDON NORTH WEST HEALTHCARE,337,SEXUAL HEALTH - STI,EXTERNAL AGENCIES AND BODIES,5902245843
07.04.2017,PUBLIC HEALTH,LONDON NORTH WEST HEALTHCARE,453,SEXUAL HEALTH - STI,EXTERNAL AGENCIES AND BODIES,5902245847
07.04.2017,REGENERATION,UNIVERSITY OF THE ARTS LONDON,"1,572.50",MASTER PLAN-H/WAY & TRANS INTERCHANGE,MARKETING & PUBLICITY SERVICES,5902244558
07.04.2017,RESIDENT SERVICES,LONDON TOOLS LIMITED,310,TA HOSTELS,MATERIALS,5902245920
07.04.2017,RESIDENT SERVICES,VENTURE HOUSING (LONDON) LTD,994,TA PLACEMENTS,RENTS,5902245802
07.04.2017,RESIDENT SERVICES,S A PROPERTY MANAGEMENT LTD,"2,536.00",TA PLACEMENTS,RENTS,5902245790
07.04.2017,RESIDENT SERVICES,S A PROPERTY MANAGEMENT LTD,"3,534.00",TA PLACEMENTS,RENTS,5902245789
07.04.2017,SOUTHWARK BUILDING SERVICES,SYPOL LTD,"1,065.00",HEALTH & SAFETY,SOFTWARE,5902245961
08.04.2017,CHILDREN'S SERVICES,ACCESS MOBILITY TRANSPORT LTD,454,ALTERNATIVE PROVISION,EXTERNAL AGENCIES AND BODIES,5902245466
08.04.2017,CHILDREN'S SERVICES,ACCESS MOBILITY TRANSPORT LTD,"1,980.00",ALTERNATIVE PROVISION,EXTERNAL AGENCIES AND BODIES,5902245465
08.04.2017,CHILDREN'S SERVICES,ACCESS MOBILITY TRANSPORT LTD,"2,102.00",ALTERNATIVE PROVISION,EXTERNAL AGENCIES AND BODIES,5902245466
08.04.2017,CHILDREN'S SERVICES,AIDHOUR LIMITED,"7,872.05",ASSISSTANT DIRECTOR (CHILDREN),PROFESSIONAL FEES,5902245227
08.04.2017,CHILDREN'S SERVICES,EQUAL EDUCATION LTD,"1,690.00",PUPIL PREMIUM CURRENT YEAR,EXTERNAL AGENCIES AND BODIES,5902244770
08.04.2017,CHILDREN'S SERVICES,THE WYVERN SCHOOL,"1,500.00",PUPIL PREMIUM CURRENT YEAR,SCHOOLS CAPITATION,2102652801
08.04.2017,CHILDREN'S SERVICES,TRINITY CHURCH OF ENGLAND SCHOOL,"1,480.00",PUPIL PREMIUM CURRENT YEAR,SCHOOLS CAPITATION,2102652802
08.04.2017,CUSTOMER EXPERIENCE HGF,JAMES HAGGER,"3,000.00",HOMELESS PROJECTS,GRANTS,5902245760
08.04.2017,ENVIRONMENT AND LEISURE,DANNATT JOHNSON ARCHITECTS,"5,670.00",CAPITAL PS (LEISURE),CONSTRUCTION FEES - INTERNAL,5902245779
08.04.2017,F & C S EXCLUDING CORPORATE BUDGETS,TORPEDO FACTORY LTD,767,COMMUNITY COUNCILS,OP LEASE/HIRE CHARGES:PLANT/EQUIP/FURNIT,5902245139
08.04.2017,HOUSING HRA,CALFORD SEADEN LLP,"1,174.08",CAPITAL PS (HRA),CONSTRUCTION FEES  - EXTERNAL,5902245324
08.04.2017,HOUSING HRA,CALFORD SEADEN LLP,"4,218.84",CAPITAL PS (HRA),CONSTRUCTION FEES  - EXTERNAL,5902244831
08.04.2017,HOUSING HRA,CALFORD SEADEN LLP,"34,968.53",CAPITAL PS (HRA),CONSTRUCTION FEES  - EXTERNAL,5902245764
08.04.2017,LEISURE DIRECTORATE,HARRISON DESIGN DEVELOPMENT LTD,"1,375.00",PARKS SERVICES DEVELOPMENT,PAYMENTS FOR LEGAL SERVICES,5902245427
08.04.2017,MODERNISATION HGF,PLANET TRAINING LIMITED,"8,400.00",CORP. TRAINING BUDGETS,TRAINING,5902245672
09.04.2017,ADULT SOCIAL CARE,CAREWATCH LEWISHAM,"11,451.77", OP CARE PACKAGES,HOMECARE - IC,5902245156
09.04.2017,CHILDREN'S SERVICES,CITYGLEN LTD,819,AIS - IHT,SECTION 17 PAYMENTS TO AGENCIES/CARERS,5902244969
09.04.2017,CHILDREN'S SERVICES,CITYGLEN LTD,"1,209.00",AIS - IHT,SECTION 17 PAYMENTS TO AGENCIES/CARERS,5902244967
09.04.2017,CHILDREN'S SERVICES,CITYGLEN LTD,"1,519.00",AIS - IHT,SECTION 17 PAYMENTS TO AGENCIES/CARERS,5902244963
09.04.2017,CHILDREN'S SERVICES,CITYGLEN LTD,"1,860.00",AIS - IHT,SECTION 17 PAYMENTS TO AGENCIES/CARERS,5902244968
09.04.2017,CHILDREN'S SERVICES,CITYGLEN LTD,"2,170.00",AIS - IHT,SECTION 17 PAYMENTS TO AGENCIES/CARERS,5902244964
09.04.2017,CHILDREN'S SERVICES,MIME CONSULTING LTD,"16,048.18",MANAGEMENT AND SUPPORT,PROFESSIONAL FEES,5902245398
09.04.2017,CHILDREN'S SERVICES,MIME CONSULTING LTD,"19,090.96",MANAGEMENT AND SUPPORT,PROFESSIONAL FEES,5902245404
09.04.2017,CHILDREN'S SERVICES,CITYGLEN LTD,"1,209.00",S & FAM SUPP - PRAC GRP E SET 26-28,SECTION 17 PAYMENTS TO AGENCIES/CARERS,5902244970
09.04.2017,CHILDREN'S SERVICES,CITYGLEN LTD,260,S & FAM SUPP - PRAC GRP F SET 29-31,SECTION 17 PAYMENTS TO AGENCIES/CARERS,5902244947
09.04.2017,CHILDREN'S SERVICES,CITYGLEN LTD,"1,550.00",S & FAM SUPP - PRAC GRP F SET 29-31,SECTION 17 PAYMENTS TO AGENCIES/CARERS,5902244951
09.04.2017,CHILDREN'S SERVICES,CITYGLEN LTD,899,S24 CLA,EXTERNAL AGENCIES AND BODIES,5902245032
09.04.2017,CHILDREN'S SERVICES,CITYGLEN LTD,"1,519.00",TEMPORARY ACCOMMODATION,SECTION 17 PAYMENTS TO AGENCIES/CARERS,5902244966
09.04.2017,COMMISSIONING & CENTRAL,THE GLADIATOR GROUP,600,VIOLENCE AGAINST WOMEN & GIRLS,MARKETING & PUBLICITY SERVICES,5902245169
09.04.2017,ENVIRONMENT DIRECTORATE,BARRETTINE ENVIRONMENTAL HEALTH,399.35,PEST CONTROL-CDN A/C,MATERIALS,5902245137
09.04.2017,ENVIRONMENT DIRECTORATE,SOUTHWARK NEWSPAPER LTD,288,STREET WORKS OVERHEADS,MARKETING & PUBLICITY SERVICES,5902245696
09.04.2017,ENVIRONMENT DIRECTORATE,SOUTHWARK NEWSPAPER LTD,312,STREET WORKS OVERHEADS,MARKETING & PUBLICITY SERVICES,5902245571
09.04.2017,MODERNISATION HGF,WEB-LABS LTD,300,CORP. TRAINING BUDGETS,TRAINING,5902245929
10.04.2017,ADULT SOCIAL CARE,THE DRIVE CARE HOMES LTD,"1,050.00",LD LTS 18-64,CLIENT TRANSPORT,2102654799
10.04.2017,ADULT SOCIAL CARE,THE DRIVE CARE HOMES LTD,"1,395.00",LD LTS 18-64,CLIENT TRANSPORT,2102654802
10.04.2017,ADULT SOCIAL CARE,HEALTHCARE & TRANSPORT SERVICE,376,LD LTS 18-64,CLIENT TRANSPORT,2102654668
10.04.2017,ADULT SOCIAL CARE,HEALTHCARE & TRANSPORT SERVICE,430,LD LTS 18-64,CLIENT TRANSPORT,2102654675
10.04.2017,ADULT SOCIAL CARE,HEALTHCARE & TRANSPORT SERVICE,450,LD LTS 18-64,CLIENT TRANSPORT,2102654669
10.04.2017,ADULT SOCIAL CARE,HEALTHCARE & TRANSPORT SERVICE,650,LD LTS 18-64,CLIENT TRANSPORT,2102654677
10.04.2017,ADULT SOCIAL CARE,HEALTHCARE & TRANSPORT SERVICE,711,LD LTS 18-64,CLIENT TRANSPORT,2102654663
10.04.2017,ADULT SOCIAL CARE,FRESH IDEAS & SOLUTIONS SERVICES CIC,"1,791.20",LD LTS 18-64,DISCRETIONARY FLEXIBLE FEES & INCOME,2102654985
10.04.2017,ADULT SOCIAL CARE,MEDACS HOMECARE,693.6,LD LTS 18-64,HOMECARE - C&V,2102654800
10.04.2017,ADULT SOCIAL CARE,SWK DISABLEMENT ASSN,"2,122.56",LD LTS 18-64,HOMECARE - C&V,2102654801
10.04.2017,ADULT SOCIAL CARE,MEDACS HOMECARE,289,LD LTS 18-64,HOMECARE - SPOT,2102654798
10.04.2017,ADULT SOCIAL CARE,MEDACS HOMECARE,346.8,LD LTS 18-64,HOMECARE - SPOT,2102654794
10.04.2017,ADULT SOCIAL CARE,MEDACS HOMECARE,635.8,LD LTS 18-64,HOMECARE - SPOT,2102654797
10.04.2017,ADULT SOCIAL CARE,MEDACS HOMECARE,"1,430.55",LD LTS 18-64,HOMECARE - SPOT,2102654807
10.04.2017,ADULT SOCIAL CARE,LAMBETH MENCAP,"4,973.75",LD LTS 18-64,HOMECARE - SPOT,2102654670
10.04.2017,ADULT SOCIAL CARE,CHOICE SUPPORT,"4,871.86",LD LTS 18-64,SUPPORTED LIVING,2102654981
10.04.2017,ADULT SOCIAL CARE,MEDACS HOMECARE,717.03,LD LTS 18-64,SUPPORTED LIVING,2102654803
10.04.2017,ADULT SOCIAL CARE,LAMBETH MENCAP,822.72,LD LTS 18-64,SUPPORTED LIVING,2102654667
10.04.2017,ADULT SOCIAL CARE,LAMBETH MENCAP,879.6,LD LTS 18-64,SUPPORTED LIVING,2102654676
10.04.2017,ADULT SOCIAL CARE,J C M REYNOLDS,705,LEARNING DISABIITIES SOCIAL WORKER,AGENCY STAFF,5902246081
10.04.2017,ADULT SOCIAL CARE,LONDON CARE LTD,823,MEM LTS 65+,HOMECARE - C&V,2102654649
10.04.2017,ADULT SOCIAL CARE,LONDON CARE LTD,919.42,MEM LTS 65+,HOMECARE - C&V,2102654644
10.04.2017,ADULT SOCIAL CARE,YOUTH GRACES (UK) LTD,650.96,MEM LTS 65+,HOMECARE - C&V,2102654965
10.04.2017,ADULT SOCIAL CARE,LONDON CARE LTD,403.35,MEM LTS 65+,HOMECARE - SPOT,2102654651
10.04.2017,ADULT SOCIAL CARE,CARE DIRECT UK LTD,553.09,MEM LTS 65+,HOMECARE - SPOT,2102654849
10.04.2017,ADULT SOCIAL CARE,YOUTH GRACES (UK) LTD,256.35,MEM LTS 65+,HOMECARE - SPOT,2102654885
10.04.2017,ADULT SOCIAL CARE,YOUTH GRACES (UK) LTD,266.52,MEM LTS 65+,HOMECARE - SPOT,2102654793
10.04.2017,ADULT SOCIAL CARE,REDACTED PERSONAL DATA,"3,159.00",MH LTS 18-64,HOMECARE - SPOT,2102654983
10.04.2017,ADULT SOCIAL CARE,DARETHEALTHCARE UK LTD,"1,234.48",MH LTS 18-64,HOMECARE - SPOT,2102654699
10.04.2017,ADULT SOCIAL CARE,METRO HOMECARE LTD,431.68,MH LTS 65+,HOMECARE - C&V,2102654718
10.04.2017,ADULT SOCIAL CARE,YOUTH GRACES (UK) LTD,263.16,MH LTS 65+,HOMECARE - SPOT,2102654923
10.04.2017,ADULT SOCIAL CARE,LONDON CARE LTD,296.28,PHY LTS 18-64,HOMECARE - C&V,2102654646
10.04.2017,ADULT SOCIAL CARE,LONDON CARE LTD,427.96,PHY LTS 18-64,HOMECARE - C&V,2102654660
10.04.2017,ADULT SOCIAL CARE,LONDON CARE LTD,543.79,PHY LTS 18-64,HOMECARE - C&V,2102654634
10.04.2017,ADULT SOCIAL CARE,LONDON CARE LTD,814.9,PHY LTS 18-64,HOMECARE - C&V,2102654642
10.04.2017,ADULT SOCIAL CARE,CARE DIRECT UK LTD,627.29,PHY LTS 18-64,HOMECARE - C&V,2102654812
10.04.2017,ADULT SOCIAL CARE,METRO HOMECARE LTD,337.25,PHY LTS 18-64,HOMECARE - C&V,2102654769
10.04.2017,ADULT SOCIAL CARE,YOUTH GRACES (UK) LTD,286.23,PHY LTS 18-64,HOMECARE - C&V,2102654925
10.04.2017,ADULT SOCIAL CARE,YOUTH GRACES (UK) LTD,404.72,PHY LTS 18-64,HOMECARE - C&V,2102654903
10.04.2017,ADULT SOCIAL CARE,SWK DISABLEMENT ASSN,881.6,PHY LTS 18-64,HOMECARE - SPOT,2102654806
10.04.2017,ADULT SOCIAL CARE,DARETHEALTHCARE UK LTD,"1,308.79",PHY LTS 18-64,HOMECARE - SPOT,2102654761
10.04.2017,ADULT SOCIAL CARE,DARETHEALTHCARE UK LTD,"1,463.82",PHY LTS 18-64,HOMECARE - SPOT,2102654685
10.04.2017,ADULT SOCIAL CARE,DARETHEALTHCARE UK LTD,"5,115.00",PHY LTS 18-64,HOMECARE - SPOT,2102654728
10.04.2017,ADULT SOCIAL CARE,CARE DIRECT UK LTD,647.52,PHY LTS 18-64,HOMECARE - SPOT,2102654862
10.04.2017,ADULT SOCIAL CARE,CARE DIRECT UK LTD,661.01,PHY LTS 18-64,HOMECARE - SPOT,2102654818
10.04.2017,ADULT SOCIAL CARE,METRO HOMECARE LTD,283.29,PHY LTS 18-64,HOMECARE - SPOT,2102654772
10.04.2017,ADULT SOCIAL CARE,METRO HOMECARE LTD,283.29,PHY LTS 18-64,HOMECARE - SPOT,2102654786
10.04.2017,ADULT SOCIAL CARE,METRO HOMECARE LTD,364.23,PHY LTS 18-64,HOMECARE - SPOT,2102654783
10.04.2017,ADULT SOCIAL CARE,METRO HOMECARE LTD,445.17,PHY LTS 18-64,HOMECARE - SPOT,2102654732
10.04.2017,ADULT SOCIAL CARE,METRO HOMECARE LTD,573.33,PHY LTS 18-64,HOMECARE - SPOT,2102654711
10.04.2017,ADULT SOCIAL CARE,METRO HOMECARE LTD,755.44,PHY LTS 18-64,HOMECARE - SPOT,2102654790
10.04.2017,ADULT SOCIAL CARE,METRO HOMECARE LTD,"1,065.71",PHY LTS 18-64,HOMECARE - SPOT,2102654739
10.04.2017,ADULT SOCIAL CARE,METRO HOMECARE LTD,"1,133.16",PHY LTS 18-64,HOMECARE - SPOT,2102654715
10.04.2017,ADULT SOCIAL CARE,METRO HOMECARE LTD,"1,322.02",PHY LTS 18-64,HOMECARE - SPOT,2102654787
10.04.2017,ADULT SOCIAL CARE,YOUTH GRACES (UK) LTD,256.35,PHY LTS 18-64,HOMECARE - SPOT,2102654951
10.04.2017,ADULT SOCIAL CARE,YOUTH GRACES (UK) LTD,969.57,PHY LTS 18-64,HOMECARE - SPOT,2102654911
10.04.2017,ADULT SOCIAL CARE,LONDON CARE LTD,263.36,PHY LTS 65+,HOMECARE - C&V,2102654641
10.04.2017,ADULT SOCIAL CARE,LONDON CARE LTD,329.2,PHY LTS 65+,HOMECARE - C&V,2102654633
10.04.2017,ADULT SOCIAL CARE,LONDON CARE LTD,395.04,PHY LTS 65+,HOMECARE - C&V,2102654636
10.04.2017,ADULT SOCIAL CARE,LONDON CARE LTD,460.88,PHY LTS 65+,HOMECARE - C&V,2102654637
10.04.2017,ADULT SOCIAL CARE,LONDON CARE LTD,460.88,PHY LTS 65+,HOMECARE - C&V,2102654658
10.04.2017,ADULT SOCIAL CARE,LONDON CARE LTD,534.96,PHY LTS 65+,HOMECARE - C&V,2102654654
10.04.2017,ADULT SOCIAL CARE,LONDON CARE LTD,555.54,PHY LTS 65+,HOMECARE - C&V,2102654650
10.04.2017,ADULT SOCIAL CARE,LONDON CARE LTD,576.24,PHY LTS 65+,HOMECARE - C&V,2102654647
10.04.2017,ADULT SOCIAL CARE,LONDON CARE LTD,596.09,PHY LTS 65+,HOMECARE - C&V,2102654659
10.04.2017,ADULT SOCIAL CARE,LONDON CARE LTD,648.99,PHY LTS 65+,HOMECARE - C&V,2102654638
10.04.2017,ADULT SOCIAL CARE,LONDON CARE LTD,691.32,PHY LTS 65+,HOMECARE - C&V,2102654645
10.04.2017,ADULT SOCIAL CARE,LONDON CARE LTD,691.32,PHY LTS 65+,HOMECARE - C&V,2102654657
10.04.2017,ADULT SOCIAL CARE,LONDON CARE LTD,901.2,PHY LTS 65+,HOMECARE - C&V,2102654643
10.04.2017,ADULT SOCIAL CARE,LONDON CARE LTD,"1,048.24",PHY LTS 65+,HOMECARE - C&V,2102654653
10.04.2017,ADULT SOCIAL CARE,LONDON CARE LTD,"1,102.96",PHY LTS 65+,HOMECARE - C&V,2102654656
10.04.2017,ADULT SOCIAL CARE,LONDON CARE LTD,"1,146.32",PHY LTS 65+,HOMECARE - C&V,2102654635
10.04.2017,ADULT SOCIAL CARE,LONDON CARE LTD,"1,218.16",PHY LTS 65+,HOMECARE - C&V,2102654652
10.04.2017,ADULT SOCIAL CARE,LONDON CARE LTD,"1,350.08",PHY LTS 65+,HOMECARE - C&V,2102654661
10.04.2017,ADULT SOCIAL CARE,LONDON CARE LTD,"2,386.70",PHY LTS 65+,HOMECARE - C&V,2102654648
10.04.2017,ADULT SOCIAL CARE,DARETHEALTHCARE UK LTD,268.85,PHY LTS 65+,HOMECARE - C&V,2102654726
10.04.2017,ADULT SOCIAL CARE,DARETHEALTHCARE UK LTD,283.4,PHY LTS 65+,HOMECARE - C&V,2102654765
10.04.2017,ADULT SOCIAL CARE,DARETHEALTHCARE UK LTD,546.61,PHY LTS 65+,HOMECARE - C&V,2102654693
10.04.2017,ADULT SOCIAL CARE,METRO HOMECARE LTD,310.27,PHY LTS 65+,HOMECARE - C&V,2102654755
10.04.2017,ADULT SOCIAL CARE,METRO HOMECARE LTD,337.25,PHY LTS 65+,HOMECARE - C&V,2102654763
10.04.2017,ADULT SOCIAL CARE,METRO HOMECARE LTD,350.74,PHY LTS 65+,HOMECARE - C&V,2102654778
10.04.2017,ADULT SOCIAL CARE,METRO HOMECARE LTD,357.49,PHY LTS 65+,HOMECARE - C&V,2102654703
10.04.2017,ADULT SOCIAL CARE,METRO HOMECARE LTD,687.99,PHY LTS 65+,HOMECARE - C&V,2102654692
10.04.2017,ADULT SOCIAL CARE,METRO HOMECARE LTD,822.89,PHY LTS 65+,HOMECARE - C&V,2102654760
10.04.2017,ADULT SOCIAL CARE,METRO HOMECARE LTD,849.87,PHY LTS 65+,HOMECARE - C&V,2102654753
10.04.2017,ADULT SOCIAL CARE,METRO HOMECARE LTD,"1,025.24",PHY LTS 65+,HOMECARE - C&V,2102654721
10.04.2017,ADULT SOCIAL CARE,METRO HOMECARE LTD,"1,038.73",PHY LTS 65+,HOMECARE - C&V,2102654774
10.04.2017,ADULT SOCIAL CARE,YOUTH GRACES (UK) LTD,536.31,PHY LTS 65+,HOMECARE - C&V,2102654931
10.04.2017,ADULT SOCIAL CARE,DARETHEALTHCARE UK LTD,269.84,PHY LTS 65+,HOMECARE - SPOT,2102654762
10.04.2017,ADULT SOCIAL CARE,DARETHEALTHCARE UK LTD,371.25,PHY LTS 65+,HOMECARE - SPOT,2102654712
10.04.2017,ADULT SOCIAL CARE,DARETHEALTHCARE UK LTD,418.19,PHY LTS 65+,HOMECARE - SPOT,2102654764
10.04.2017,ADULT SOCIAL CARE,DARETHEALTHCARE UK LTD,472.36,PHY LTS 65+,HOMECARE - SPOT,2102654684
10.04.2017,ADULT SOCIAL CARE,DARETHEALTHCARE UK LTD,583.63,PHY LTS 65+,HOMECARE - SPOT,2102654697
10.04.2017,ADULT SOCIAL CARE,DARETHEALTHCARE UK LTD,627.75,PHY LTS 65+,HOMECARE - SPOT,2102654752
10.04.2017,ADULT SOCIAL CARE,DARETHEALTHCARE UK LTD,731.91,PHY LTS 65+,HOMECARE - SPOT,2102654789
10.04.2017,ADULT SOCIAL CARE,DARETHEALTHCARE UK LTD,850.17,PHY LTS 65+,HOMECARE - SPOT,2102654792
10.04.2017,ADULT SOCIAL CARE,DARETHEALTHCARE UK LTD,"1,781.45",PHY LTS 65+,HOMECARE - SPOT,2102654722
10.04.2017,ADULT SOCIAL CARE,CARE DIRECT UK LTD,263.06,PHY LTS 65+,HOMECARE - SPOT,2102654860
10.04.2017,ADULT SOCIAL CARE,CARE DIRECT UK LTD,283.29,PHY LTS 65+,HOMECARE - SPOT,2102654859
10.04.2017,ADULT SOCIAL CARE,CARE DIRECT UK LTD,377.72,PHY LTS 65+,HOMECARE - SPOT,2102654848
10.04.2017,ADULT SOCIAL CARE,CARE DIRECT UK LTD,391.21,PHY LTS 65+,HOMECARE - SPOT,2102654861
10.04.2017,ADULT SOCIAL CARE,CARE DIRECT UK LTD,421.56,PHY LTS 65+,HOMECARE - SPOT,2102654834
10.04.2017,ADULT SOCIAL CARE,CARE DIRECT UK LTD,424.94,PHY LTS 65+,HOMECARE - SPOT,2102654822
10.04.2017,ADULT SOCIAL CARE,CARE DIRECT UK LTD,465.41,PHY LTS 65+,HOMECARE - SPOT,2102654825
10.04.2017,ADULT SOCIAL CARE,CARE DIRECT UK LTD,519.37,PHY LTS 65+,HOMECARE - SPOT,2102654828
10.04.2017,ADULT SOCIAL CARE,METRO HOMECARE LTD,283.29,PHY LTS 65+,HOMECARE - SPOT,2102654708
10.04.2017,ADULT SOCIAL CARE,METRO HOMECARE LTD,303.53,PHY LTS 65+,HOMECARE - SPOT,2102654768
10.04.2017,ADULT SOCIAL CARE,METRO HOMECARE LTD,303.53,PHY LTS 65+,HOMECARE - SPOT,2102654782
10.04.2017,ADULT SOCIAL CARE,METRO HOMECARE LTD,310.27,PHY LTS 65+,HOMECARE - SPOT,2102654720
10.04.2017,ADULT SOCIAL CARE,METRO HOMECARE LTD,330.51,PHY LTS 65+,HOMECARE - SPOT,2102654745
10.04.2017,ADULT SOCIAL CARE,METRO HOMECARE LTD,330.51,PHY LTS 65+,HOMECARE - SPOT,2102654749
10.04.2017,ADULT SOCIAL CARE,METRO HOMECARE LTD,350.74,PHY LTS 65+,HOMECARE - SPOT,2102654704
10.04.2017,ADULT SOCIAL CARE,METRO HOMECARE LTD,350.74,PHY LTS 65+,HOMECARE - SPOT,2102654780
10.04.2017,ADULT SOCIAL CARE,METRO HOMECARE LTD,364.23,PHY LTS 65+,HOMECARE - SPOT,2102654683
10.04.2017,ADULT SOCIAL CARE,METRO HOMECARE LTD,384.47,PHY LTS 65+,HOMECARE - SPOT,2102654723
10.04.2017,ADULT SOCIAL CARE,METRO HOMECARE LTD,384.47,PHY LTS 65+,HOMECARE - SPOT,2102654738
10.04.2017,ADULT SOCIAL CARE,METRO HOMECARE LTD,397.96,PHY LTS 65+,HOMECARE - SPOT,2102654714
10.04.2017,ADULT SOCIAL CARE,METRO HOMECARE LTD,424.94,PHY LTS 65+,HOMECARE - SPOT,2102654746
10.04.2017,ADULT SOCIAL CARE,METRO HOMECARE LTD,424.94,PHY LTS 65+,HOMECARE - SPOT,2102654773
10.04.2017,ADULT SOCIAL CARE,METRO HOMECARE LTD,438.43,PHY LTS 65+,HOMECARE - SPOT,2102654733
10.04.2017,ADULT SOCIAL CARE,METRO HOMECARE LTD,438.43,PHY LTS 65+,HOMECARE - SPOT,2102654758
10.04.2017,ADULT SOCIAL CARE,METRO HOMECARE LTD,478.9,PHY LTS 65+,HOMECARE - SPOT,2102654705
10.04.2017,ADULT SOCIAL CARE,METRO HOMECARE LTD,492.39,PHY LTS 65+,HOMECARE - SPOT,2102654701
10.04.2017,ADULT SOCIAL CARE,METRO HOMECARE LTD,492.39,PHY LTS 65+,HOMECARE - SPOT,2102654724
10.04.2017,ADULT SOCIAL CARE,METRO HOMECARE LTD,492.39,PHY LTS 65+,HOMECARE - SPOT,2102654767
10.04.2017,ADULT SOCIAL CARE,METRO HOMECARE LTD,539.6,PHY LTS 65+,HOMECARE - SPOT,2102654681
10.04.2017,ADULT SOCIAL CARE,METRO HOMECARE LTD,539.6,PHY LTS 65+,HOMECARE - SPOT,2102654686
10.04.2017,ADULT SOCIAL CARE,METRO HOMECARE LTD,546.35,PHY LTS 65+,HOMECARE - SPOT,2102654756
10.04.2017,ADULT SOCIAL CARE,METRO HOMECARE LTD,620.54,PHY LTS 65+,HOMECARE - SPOT,2102654785
10.04.2017,ADULT SOCIAL CARE,METRO HOMECARE LTD,903.83,PHY LTS 65+,HOMECARE - SPOT,2102654777
10.04.2017,ADULT SOCIAL CARE,METRO HOMECARE LTD,"1,133.16",PHY LTS 65+,HOMECARE - SPOT,2102654679
10.04.2017,ADULT SOCIAL CARE,METRO HOMECARE LTD,"1,153.40",PHY LTS 65+,HOMECARE - SPOT,2102654688
10.04.2017,ADULT SOCIAL CARE,METRO HOMECARE LTD,"1,160.14",PHY LTS 65+,HOMECARE - SPOT,2102654694
10.04.2017,ADULT SOCIAL CARE,METRO HOMECARE LTD,"1,591.82",PHY LTS 65+,HOMECARE - SPOT,2102654766
10.04.2017,ADULT SOCIAL CARE,YOUTH GRACES (UK) LTD,276.59,PHY LTS 65+,HOMECARE - SPOT,2102654929
10.04.2017,ADULT SOCIAL CARE,YOUTH GRACES (UK) LTD,279.93,PHY LTS 65+,HOMECARE - SPOT,2102654882
10.04.2017,ADULT SOCIAL CARE,YOUTH GRACES (UK) LTD,286.75,PHY LTS 65+,HOMECARE - SPOT,2102654956
10.04.2017,ADULT SOCIAL CARE,YOUTH GRACES (UK) LTD,334.05,PHY LTS 65+,HOMECARE - SPOT,2102654908
10.04.2017,ADULT SOCIAL CARE,YOUTH GRACES (UK) LTD,377.86,PHY LTS 65+,HOMECARE - SPOT,2102654944
10.04.2017,ADULT SOCIAL CARE,YOUTH GRACES (UK) LTD,472.36,PHY LTS 65+,HOMECARE - SPOT,2102654906
10.04.2017,ADULT SOCIAL CARE,YOUTH GRACES (UK) LTD,492.46,PHY LTS 65+,HOMECARE - SPOT,2102654902
10.04.2017,ADULT SOCIAL CARE,YOUTH GRACES (UK) LTD,613.9,PHY LTS 65+,HOMECARE - SPOT,2102654971
10.04.2017,ADULT SOCIAL CARE,YOUTH GRACES (UK) LTD,775.82,PHY LTS 65+,HOMECARE - SPOT,2102654889
10.04.2017,ADULT SOCIAL CARE,YOUTH GRACES (UK) LTD,495.48,PHY STS 18-64,HOMECARE - IC,2102654932
10.04.2017,ADULT SOCIAL CARE,METRO HOMECARE LTD,370.98,PHY STS 65+,HOMECARE - IC,2102654709
10.04.2017,ADULT SOCIAL CARE,SWK DISABLEMENT ASSN,"1,552.32",SOCIAL ISOLATION,HOMECARE - SPOT,2102654804
10.04.2017,ADULT SOCIAL CARE,CARE DIRECT UK LTD,263.06,SOCIAL ISOLATION,HOMECARE - SPOT,2102654874
10.04.2017,ADULT SOCIAL CARE,METRO HOMECARE LTD,290.04,SOCIAL ISOLATION,HOMECARE - SPOT,2102654776
10.04.2017,ADULT SOCIAL CARE,HUMBLE HEALTH CARE LTD,607.51,SOCIAL ISOLATION,HOMECARE - SPOT,2102654665
10.04.2017,ADULT SOCIAL CARE,LAMBETH MENCAP,938.9,SOCIAL ISOLATION,SUPPORTED LIVING,2102654666
10.04.2017,ADULT SOCIAL CARE,HERBERT CONSULTING LIMITED,"7,000.00",STRAT DIR OF C&AS,CONSULTANTS SERVICES,5902246085
10.04.2017,ADULT SOCIAL CARE,METRO HOMECARE LTD,397.96,SUB LTS 18-64,HOMECARE - SPOT,2102654717
10.04.2017,ADULT SOCIAL CARE,METRO HOMECARE LTD,397.96,SUB STS 18-64,HOMECARE - IC,2102654729
10.04.2017,ADULT SOCIAL CARE,REDACTED PERSONAL DATA,394.9,TRANSITION 14YRS TO 18YRS,PAYMENTS TO CLIENTS (DIRECT PAYMENTS),2102654976
10.04.2017,ASSET MANAGEMENT,POTTER RAPER AND PARTNERS,"10,526.28",FRA WORKS,ESTATE LIGHTING R&M,5902246065
10.04.2017,ASSET MANAGEMENT,POTTER RAPER AND PARTNERS,"14,096.18",HIP MAJOR WORKS,PROFESSIONAL FEES,5902246088
10.04.2017,ASSET MANAGEMENT HGF,ASTRAL PS LTD,"4,730.55",HOME IMPROVEMNT AGENCY,SOFTWARE,5902246037
10.04.2017,CENTRAL FUNCTIONS,UK POWER NETWORKS (OPERATIONS) LTD,832.71,COMMERCIAL PROPERTIES,BUILDING R&M,2102654994
10.04.2017,CENTRAL FUNCTIONS,CHANDLERS LIMITED CERTIFIED BAILIFF,291,COMMERCIAL PROPERTIES,PROFESSIONAL FEES,5902246092
10.04.2017,CENTRAL FUNCTIONS,CHANDLERS LIMITED CERTIFIED BAILIFF,298.5,COMMERCIAL PROPERTIES,PROFESSIONAL FEES,5902246095
10.04.2017,CENTRAL FUNCTIONS,CHANDLERS LIMITED CERTIFIED BAILIFF,309,COMMERCIAL PROPERTIES,PROFESSIONAL FEES,5902246087
10.04.2017,CENTRAL FUNCTIONS,CHANDLERS LIMITED CERTIFIED BAILIFF,317.5,COMMERCIAL PROPERTIES,PROFESSIONAL FEES,5902246099
10.04.2017,CENTRAL FUNCTIONS,CHANDLERS LIMITED CERTIFIED BAILIFF,328.5,COMMERCIAL PROPERTIES,PROFESSIONAL FEES,5902246084
10.04.2017,CENTRAL FUNCTIONS,CHANDLERS LIMITED CERTIFIED BAILIFF,355.84,COMMERCIAL PROPERTIES,PROFESSIONAL FEES,5902246098
10.04.2017,CENTRAL FUNCTIONS,CHANDLERS LIMITED CERTIFIED BAILIFF,358.5,COMMERCIAL PROPERTIES,PROFESSIONAL FEES,5902246097
10.04.2017,CENTRAL FUNCTIONS,CHANDLERS LIMITED CERTIFIED BAILIFF,402.5,COMMERCIAL PROPERTIES,PROFESSIONAL FEES,5902246090
10.04.2017,CENTRAL FUNCTIONS,CHANDLERS LIMITED CERTIFIED BAILIFF,425.29,COMMERCIAL PROPERTIES,PROFESSIONAL FEES,5902246100
10.04.2017,CHIEF EXECUTIVE,CONWAY AECOM LTD,"4,698.46",CAPITAL PS (REGEN),CONSTR'N SUB CONTRACT - NON CERTIFICATED,5902246070
10.04.2017,CHIEF EXECUTIVE,TEAMSPORT INDOOR KARTING,255,CAPITAL PS (REGEN),CONSTRUCTION FEES,5902246051
10.04.2017,CHIEF EXECUTIVE'S OFFICE,BETTER BANKSIDE,"10,000.00",BUSINESS SUPPORT,GRANTS,5902245991
10.04.2017,CHIEF EXECUTIVE'S OFFICE,FANTASY HIGH STREET CIC,"2,500.00",BUSINESS SUPPORT,GRANTS,5902245919
10.04.2017,CHIEF EXECUTIVE'S OFFICE,CITY OF LONDON ECONOMIC DEVELOPMENT OFFICE,"20,000.00",CHIEF EXEC'S OFFICE,SUBSCRIPTIONS,5902246121
10.04.2017,CHILDREN AND ADULT,MORGAN SINDALL PLC,"351,711.25",CAPITAL PS (EDUCATION),CONST'N MAIN CONTRACT - NON CERTIFICATED,2102654989
10.04.2017,CHILDREN AND ADULT,MORGAN SINDALL PLC,"810,584.38",CAPITAL PS (EDUCATION),CONST'N MAIN CONTRACT - NON CERTIFICATED,2102654991
10.04.2017,CHILDREN AND ADULT,MORGAN SINDALL PLC,"367,514.05",CAPITAL PS (EDUCATION),CONSTRUCTION MAIN CONTRACT -CERTIFICATED,2102654990
10.04.2017,CHILDREN AND ADULT,MORGAN SINDALL PLC,"546,227.85",CAPITAL PS (EDUCATION),CONSTRUCTION MAIN CONTRACT -CERTIFICATED,2102654993
10.04.2017,CHILDREN AND ADULT,MORGAN SINDALL PLC,"633,991.92",CAPITAL PS (EDUCATION),CONSTRUCTION MAIN CONTRACT -CERTIFICATED,2102654992
10.04.2017,CHILDREN AND ADULT,MORGAN SINDALL PLC,"1,723,439.96",CAPITAL PS (EDUCATION),CONSTRUCTION MAIN CONTRACT -CERTIFICATED,2102654988
10.04.2017,CHILDREN AND ADULT,WERNICK REFURBISHED BUILDINGS LTD,"8,126.44",CAPITAL PS (EDUCATION),CONSTRUCTION MAIN CONTRACT -CERTIFICATED,2102654163
10.04.2017,CHILDREN'S SERVICES,PETE CRONIN PHOTOGRAPHY & VIDEO,775,ADOPTION PLACEMENTS & INTER AGENCY,EXTERNAL AGENCIES AND BODIES,5902246061
10.04.2017,CHILDREN'S SERVICES,PARENTS AND CHILDREN TOGETHER,395,ADOPTION PLACEMENTS & INTER AGENCY,EXTERNAL AGENCIES AND BODIES,5902246059
10.04.2017,CHILDREN'S SERVICES,PARENTS AND CHILDREN TOGETHER,930,ADOPTION PLACEMENTS & INTER AGENCY,EXTERNAL AGENCIES AND BODIES,5902246060
10.04.2017,CHILDREN'S SERVICES,GLS EDUCATIONAL SUPPLIES LTD,405.47,AYLESBURY EARLY YEARS CENTRE,PREMISES CLEANING,5902246005
10.04.2017,CHILDREN'S SERVICES,PEARSON EDUCATION LTD,954.5,EDUCATIONAL PSYCHOLOGY - SEND,TRAINING,5902245501
10.04.2017,CHILDREN'S SERVICES,ST MICHAELS FELLOWSHIP,"15,662.81",FAMILY ASSESSMENTS,RESIDENTIAL CARE,5902245653
10.04.2017,CHILDREN'S SERVICES,INTERSERVE HEALTHCARE,534.5,HOME 2 SCHOOL TRANSPORT,AGENCY STAFF,5902245926
10.04.2017,CHILDREN'S SERVICES,ACCESS MOBILITY TRANSPORT LTD,"35,172.40",HOME 2 SCHOOL TRANSPORT,CAB FARES,5902245692
10.04.2017,CHILDREN'S SERVICES,HEALTHCARE & TRANSPORT SERVICE,"1,790.00",HOME 2 SCHOOL TRANSPORT,HIRED VEHICLES,5902246003
10.04.2017,CHILDREN'S SERVICES,HEALTHCARE & TRANSPORT SERVICE,"5,620.00",HOME 2 SCHOOL TRANSPORT,HIRED VEHICLES,5902246003
10.04.2017,CHILDREN'S SERVICES,HEALTHCARE & TRANSPORT SERVICE,"5,700.00",HOME 2 SCHOOL TRANSPORT,HIRED VEHICLES,5902246003
10.04.2017,CHILDREN'S SERVICES,ST DAVIDS COLLEGE,409.22,HOME 2 SCHOOL TRANSPORT,PUBLIC TRANSPORT,5902246004
10.04.2017,CHILDREN'S SERVICES,ANTHONY MALONEY,300,LEA MUSIC SERVICE(310) - 5018566,OP LEASE/HIRE CHARGES:PLANT/EQUIP/FURNIT,5902245994
10.04.2017,CHILDREN'S SERVICES,ANTHONY MALONEY,320,LEA MUSIC SERVICE(310) - 5018566,OP LEASE/HIRE CHARGES:PLANT/EQUIP/FURNIT,5902245996
10.04.2017,CHILDREN'S SERVICES,REDACTED PERSONAL DATA,"1,000.00",LEAVING CARE GRANT,OTHER PAYMENTS FOR CLIENTS,2102654973
10.04.2017,CHILDREN'S SERVICES,GUMBOOTS COMMUNITY NURSERY,410.4,NURSERY ED GRANT 2 Y Y O,GRANTS,2102655000
10.04.2017,CHILDREN'S SERVICES,MINI TREASURES NURSERY,864,NURSERY ED GRANT 2 Y Y O,GRANTS,2102655004
10.04.2017,CHILDREN'S SERVICES,THE FRUIT TREE DAY NURSERY,"1,281.00",NURSERY ED GRANT 2 Y Y O,GRANTS,2102655007
10.04.2017,CHILDREN'S SERVICES,LITTLE PILLARS MONTESSORI LTD,360,NURSERY ED GRANT 2 Y Y O,GRANTS,2102655003
10.04.2017,CHILDREN'S SERVICES,BEORMUND COMMUNITY CENTRE,315,NURSURERY EDUCATION GRANT-3 Y.O.,GRANTS,2102655001
10.04.2017,CHILDREN'S SERVICES,PEOPLES ASSOCIATION YOUTH VISION,774,NURSURERY EDUCATION GRANT-3 Y.O.,GRANTS,2102655005
10.04.2017,CHILDREN'S SERVICES,BEVERLEY HARRIS,756,NURSURERY EDUCATION GRANT-3 Y.O.,GRANTS,2102654997
10.04.2017,CHILDREN'S SERVICES,VIVY DAY NURSERY,"1,350.00",NURSURERY EDUCATION GRANT-3 Y.O.,GRANTS,2102655008
10.04.2017,CHILDREN'S SERVICES,LILIES DAY NURSERY,"6,795.00",NURSURERY EDUCATION GRANT-3 Y.O.,GRANTS,2102655002
10.04.2017,CHILDREN'S SERVICES,REDACTED PERSONAL DATA,"1,947.40",PLACEMENTS FOR CHILDREN WITH SPEC NEEDS,PAYMENTS TO CLIENTS (DIRECT PAYMENTS),2102654975
10.04.2017,CHILDREN'S SERVICES,THAMES REACH EMPOLYMENT ACADEMY,258.25,POST ADOPTION ADVISE & SUPPORT,EXTERNAL AGENCIES AND BODIES,5902246063
10.04.2017,CHILDREN'S SERVICES,WRIXONCARE SEVICES,"2,414.09",RESIDENTIAL,OTHER PAYMENTS FOR CLIENTS,5902245510
10.04.2017,CHILDREN'S SERVICES,CITYGLEN LTD,315,S & FAM SUPP - PRAC GRP F SET 29-31,SECTION 17 PAYMENTS TO AGENCIES/CARERS,5902245099
10.04.2017,CHILDREN'S SERVICES,ACTIVE RECRUITMENT SEN LTD,"3,600.00",SEN TRANSPORT,EXTERNAL AGENCIES AND BODIES,5902246052
10.04.2017,COMMISSIONING & CENTRAL,MKJ&L SERVICES LTD,"3,558.00",SAFEGUARDING BOARDS,CONSULTANTS SERVICES,5902245487
10.04.2017,COMMUNITIES,COMMUNITY SOUTHWARK,"105,932.50",CVS & VOLUNTEERING,GRANTS,5902246050
10.04.2017,COMMUNITIES,DELAWYK RESIDENTS MGT ORG LTD,"28,224.25",DELAWYK RMO RENT INCOME,M&M ALLOWANCE CO-OPS,5902246126
10.04.2017,COMMUNITIES,COMMUNITY SOUTHWARK,"30,000.00",HEALTHWATCH,GRANTS,5902246030
10.04.2017,COMMUNITIES,S & G PROPERTIES,938.22,NO RECOURSE TO PUBLIC FUNDS,SECTION 17 PAYMENTS TO AGENCIES/CARERS,5902246102
10.04.2017,COMMUNITIES,S & G PROPERTIES,"1,063.92",NO RECOURSE TO PUBLIC FUNDS,SECTION 17 PAYMENTS TO AGENCIES/CARERS,5902246107
10.04.2017,COMMUNITIES,S & G PROPERTIES,"1,328.66",NO RECOURSE TO PUBLIC FUNDS,SECTION 17 PAYMENTS TO AGENCIES/CARERS,5902246110
10.04.2017,COMMUNITIES,S & G PROPERTIES,"1,449.21",NO RECOURSE TO PUBLIC FUNDS,SECTION 17 PAYMENTS TO AGENCIES/CARERS,5902246106
10.04.2017,COMMUNITIES,S & G PROPERTIES,"1,461.65",NO RECOURSE TO PUBLIC FUNDS,SECTION 17 PAYMENTS TO AGENCIES/CARERS,5902246120
10.04.2017,COMMUNITIES,S & G PROPERTIES,"1,485.21",NO RECOURSE TO PUBLIC FUNDS,SECTION 17 PAYMENTS TO AGENCIES/CARERS,5902246112
10.04.2017,COMMUNITIES,S & G PROPERTIES,"1,551.24",NO RECOURSE TO PUBLIC FUNDS,SECTION 17 PAYMENTS TO AGENCIES/CARERS,5902246130
10.04.2017,COMMUNITIES,MEADOW CROFT LODGE,"1,395.00",NO RECOURSE TO PUBLIC FUNDS,SECTION 17 PAYMENTS TO AGENCIES/CARERS,5902246122
10.04.2017,COMMUNITIES,LETTING INTERNATIONAL LTD,"1,519.00",NO RECOURSE TO PUBLIC FUNDS,SECTION 17 PAYMENTS TO AGENCIES/CARERS,5902246103
10.04.2017,COMMUNITIES,PURPLE PEBBLES(CHILD CARE) SERVICES,"1,328.57",NO RECOURSE TO PUBLIC FUNDS,SECTION 17 PAYMENTS TO AGENCIES/CARERS,5902246109
10.04.2017,COMMUNITIES,PURPLE PEBBLES(CHILD CARE) SERVICES,"1,395.00",NO RECOURSE TO PUBLIC FUNDS,SECTION 17 PAYMENTS TO AGENCIES/CARERS,5902246105
10.04.2017,COMMUNITIES,PURPLE PEBBLES(CHILD CARE) SERVICES,"1,732.60",NO RECOURSE TO PUBLIC FUNDS,SECTION 17 PAYMENTS TO AGENCIES/CARERS,5902246117
10.04.2017,COMMUNITIES,PURPLE PEBBLES(CHILD CARE) SERVICES,"1,732.60",NO RECOURSE TO PUBLIC FUNDS,SECTION 17 PAYMENTS TO AGENCIES/CARERS,5902246127
10.04.2017,COMMUNITIES,PURPLE PEBBLES(CHILD CARE) SERVICES,"1,885.48",NO RECOURSE TO PUBLIC FUNDS,SECTION 17 PAYMENTS TO AGENCIES/CARERS,5902246128
10.04.2017,COMMUNITIES,SOUTH OF THE RIVER INVESTMENTS LTD,"1,240.00",NO RECOURSE TO PUBLIC FUNDS,SECTION 17 PAYMENTS TO AGENCIES/CARERS,5902246096
10.04.2017,COMMUNITIES,SOUTH OF THE RIVER INVESTMENTS LTD,"1,550.00",NO RECOURSE TO PUBLIC FUNDS,SECTION 17 PAYMENTS TO AGENCIES/CARERS,5902246093
10.04.2017,COMMUNITIES,PPROPERTYPLACEBOOK LTD,"9,197.00",NO RECOURSE TO PUBLIC FUNDS,SECTION 17 PAYMENTS TO AGENCIES/CARERS,5902246094
10.04.2017,COMMUNITIES,NFTMO,"2,400.00",TENANT MGT INITITIVES,TRAINING,5902246104
10.04.2017,COMMUNITIES,DRAPER T&RA,"1,250.00",TENANTS FUND,GRANTS,5902246018
10.04.2017,COMMUNITIES,PULLENS T&RA,"1,760.00",TENANTS FUND,GRANTS,5902246019
10.04.2017,COMMUNITIES,MARDEN SQUARE SHELTERED HOUSING UNIT,"1,200.00",TENANTS FUND,GRANTS,5902246017
10.04.2017,CORPORATE & DEMOCRATIC CORE,CITY OF LONDON ECONOMIC DEVELOPMENT OFFICE,"20,000.00",CORPORATE & DEPARTMENTAL EXP.,SUBSCRIPTIONS,5902246121
10.04.2017,CUSTOMER EXPERIENCE,PARIS SMITH AND RANDALL SOLICITORS,305.87,S & A INCOME,DISCRETIONARY FLEXIBLE FEES & INCOME,5902245118
10.04.2017,CUSTOMER EXPERIENCE HGF,QUINARY LTD,"2,662.90",NIGHTLY TA (NSC),EXTERNAL AGENCIES AND BODIES,5902245965
10.04.2017,CUSTOMER EXPERIENCE HGF,VENTURE HOUSING (LONDON) LTD,"1,341.20",NIGHTLY TA (NSC),EXTERNAL AGENCIES AND BODIES,5902245970
10.04.2017,CUSTOMER EXPERIENCE HGF,TLK PROPERTY & INVESTMENT LTD,"14,329.00",NIGHTLY TA (NSC),EXTERNAL AGENCIES AND BODIES,5902246002
10.04.2017,CUSTOMER EXPERIENCE HGF,LETTING INTERNATIONAL LTD,"2,604.00",NIGHTLY TA (NSC),EXTERNAL AGENCIES AND BODIES,5902245901
10.04.2017,CUSTOMER EXPERIENCE HGF,RS REAL ESTATE LTD,"21,339.00",NIGHTLY TA (NSC),EXTERNAL AGENCIES AND BODIES,5902246021
10.04.2017,CUSTOMER EXPERIENCE HGF,S A PROPERTY MANAGEMENT LTD,"14,191.00",NIGHTLY TA (NSC),EXTERNAL AGENCIES AND BODIES,5902246031
10.04.2017,CUSTOMER EXPERIENCE HGF,SABIO NETWORK SERVICES LTD,"2,592.92",SYSTEMS,TELEPHONES (LAND LINES),5902246014
10.04.2017,CUSTOMER EXPERIENCE HGF,SABIO NETWORK SERVICES LTD,"5,471.00",SYSTEMS,TELEPHONES (LAND LINES),5902246014
10.04.2017,ELECTORAL SVCES,IDOX SOFWARE LIMITED,"7,251.02",LOCAL LAND CHARGES,COMPUTER MAINTENANCE,5902246083
10.04.2017,ENVIRONMENT AND LEISURE,RIDGE & PARTNERS LLP,"1,250.00",CAPITAL PS (LEISURE),CONSTRUCTION FEES - ENGINEER,5902245682
10.04.2017,ENVIRONMENT AND LEISURE,IDVERDE LTD,513.04,CAPITAL PS (LEISURE),CONSTRUCTION MAIN CONTRACT -CERTIFICATED,5902245997
10.04.2017,ENVIRONMENT DIRECTORATE,LONDON COUNCILS,"14,032.00",ALG ACCOUNT,PROFESSIONAL FEES,5902245995
10.04.2017,ENVIRONMENT DIRECTORATE,BESSEMER GRANGE PRIMARY SCHOOL,"2,400.00",BCP CYCLING GRANTS FOR SCHOOLS,GRANTS,5902245988
10.04.2017,ENVIRONMENT DIRECTORATE,PUBLIC  ANALYST SCIENTIFIC SERVICES,"2,260.00",FOOD SAFETY,PROFESSIONAL FEES,5902245540
10.04.2017,ENVIRONMENT DIRECTORATE,SPALDINGS (UK) LTD,294.5,GROUNDS MAINTENANCE - GENERAL,MATERIALS,5902246045
10.04.2017,ENVIRONMENT DIRECTORATE,CONWAY AECOM LTD,"5,629.39",PARKING OVERHEADS,OTHER CONTRACTORS,5902246111
10.04.2017,ENVIRONMENT DIRECTORATE,CONWAY AECOM LTD,"14,086.17",PARKING OVERHEADS,OTHER CONTRACTORS,5902246132
10.04.2017,ENVIRONMENT DIRECTORATE,CONWAY AECOM LTD,"46,537.41",PARKING OVERHEADS,OTHER CONTRACTORS,5902246123
10.04.2017,ENVIRONMENT DIRECTORATE,KENT COUNTY COUNCIL - LASER,"1,249.97",SANDGATE STREET,ELECTRICITY,5902245968
10.04.2017,ENVIRONMENT DIRECTORATE,CONWAY AECOM LTD,"7,546.19",SECTION 278 & 38,OTHER CONTRACTORS,5902246046
10.04.2017,F & C S EXCLUDING CORPORATE BUDGETS,NORTHGATE PUBLIC SERVICES (UK) LTD,"9,450.00",ADMINISTRATIVE SUPPORT,POSTAGES,5902245998
10.04.2017,F & C S EXCLUDING CORPORATE BUDGETS,DSI BILLING SERVICES LTD,718.36,ADMINISTRATIVE SUPPORT,POSTAGES,5902246000
10.04.2017,F & C S EXCLUDING CORPORATE BUDGETS,DSI BILLING SERVICES LTD,"1,893.26",ADMINISTRATIVE SUPPORT,POSTAGES,5902246010
10.04.2017,F & C S EXCLUDING CORPORATE BUDGETS,NORTHGATE PUBLIC SERVICES (UK) LTD,514.25,ADMINISTRATIVE SUPPORT,SOFTWARE,5902245967
10.04.2017,F & C S EXCLUDING CORPORATE BUDGETS,NORTHGATE PUBLIC SERVICES (UK) LTD,"15,000.00",ADMINISTRATIVE SUPPORT,SOFTWARE,5902245977
10.04.2017,F & C S EXCLUDING CORPORATE BUDGETS,CABINET OFFICE,"1,850.00",ANTI-FRAUD AND INVESTIGATIONS,PROFESSIONAL FEES,5902246056
10.04.2017,F & C S EXCLUDING CORPORATE BUDGETS,CAPITA BUSINESS SERVICES LTD,"5,120.00",CAPITA,OTHER CONTRACTORS,5902245964
10.04.2017,F & C S EXCLUDING CORPORATE BUDGETS,THAMES REACH EMPOLYMENT ACADEMY,450,COMMUNITY COUNCILS,HIRE OF ROOMS/HALLS,5902245881
10.04.2017,F & C S EXCLUDING CORPORATE BUDGETS,TORPEDO FACTORY LTD,660.5,COMMUNITY COUNCILS,OP LEASE/HIRE CHARGES:PLANT/EQUIP/FURNIT,5902245762
10.04.2017,F & C S EXCLUDING CORPORATE BUDGETS,TORPEDO FACTORY LTD,765.75,COMMUNITY COUNCILS,OP LEASE/HIRE CHARGES:PLANT/EQUIP/FURNIT,5902245770
10.04.2017,HOUSING,EDWARDES BROS (DULWICH) LTD,672.5,STORES,CREDITORS -GR/IR CLEARING ACCOUNT,5902245972
10.04.2017,HOUSING,EDWARDES BROS (DULWICH) LTD,672.5,STORES,CREDITORS -GR/IR CLEARING ACCOUNT,5902245985
10.04.2017,HOUSING,EDWARDES BROS (DULWICH) LTD,825,STORES,CREDITORS -GR/IR CLEARING ACCOUNT,5902245974
10.04.2017,HOUSING,EDWARDES BROS (DULWICH) LTD,"1,045.00",STORES,CREDITORS -GR/IR CLEARING ACCOUNT,5902245982
10.04.2017,HOUSING,TOUCAN TOOL CO LTD,"1,504.50",STORES,CREDITORS -GR/IR CLEARING ACCOUNT,5902246025
10.04.2017,HOUSING,NPOWER,"78,161.35",SUPPLY OF ELECTRICITY,ELECTRICITY,DIRECT DEBIT PAYMENT
10.04.2017,HOUSING GENERAL FUND,PELLINGS LLP,750,CAPITAL PS (REGEN),CONSTRUCTION,5902246136
10.04.2017,HOUSING HRA,POTTER RAPER AND PARTNERS,679.89,CAPITAL PS (HRA),CONSTRUCTION FEES  - EXTERNAL,5902246035
10.04.2017,HOUSING HRA,POTTER RAPER AND PARTNERS,"5,149.09",CAPITAL PS (HRA),CONSTRUCTION FEES  - EXTERNAL,5902246032
10.04.2017,HOUSING HRA,MORGAN SINDALL PLC,"1,301,792.00",CAPITAL PS (HRA),CONSTRUCTION MAIN CONTRACT -CERTIFICATED,2102654302
10.04.2017,LEISURE DIRECTORATE,FRONTIER-PITTS LTD,564,DULWICH AREA TEAM,OTHER R&M,5902246034
10.04.2017,LEISURE DIRECTORATE,OXFORD UNIVERSITY PRESS,"4,154.00",STOCK SERVICES,SUBSCRIPTIONS,5902245986
10.04.2017,MODERNISATION HGF,SODEXHO PASS LTD,-331,CHILDCARE VOUCHERS,OTHER EMPLOYEE EXPENSES,5902246038
10.04.2017,MODERNISATION HGF,SODEXHO PASS LTD,-331,CHILDCARE VOUCHERS,OTHER EMPLOYEE EXPENSES,5902246040
10.04.2017,MODERNISATION HGF,SODEXHO PASS LTD,795.69,CHILDCARE VOUCHERS,OTHER EMPLOYEE EXPENSES,5902246033
10.04.2017,MODERNISATION HGF,SODEXHO PASS LTD,"26,523.00",CHILDCARE VOUCHERS,OTHER EMPLOYEE EXPENSES,5902246033
10.04.2017,MODERNISATION HGF,CJLG ASSOCIATES LTD,"6,960.75",HR (CORPORATE),PROFESSIONAL FEES,5902246015
10.04.2017,MODERNISATION HGF,SHARPE PRITCHARD LLP,336,IT MANAGEMENT,CONSULTANTS SERVICES,5902246080
10.04.2017,MODERNISATION HGF,SHARPE PRITCHARD LLP,"6,316.00",IT MANAGEMENT,CONSULTANTS SERVICES,5902246055
10.04.2017,MODERNISATION HGF,KIER FACILITIES SERVICES LTD,"6,284.68",PLANNED FM SERVICES BY KIER,BUILDING R&M,5902245992
10.04.2017,MODERNISATION HGF,VEOLIA ES (UK)LTD,"11,272.56",REFUSE - VEOLIA,REFUSE COLLECTION CONTRACT,5902245689
10.04.2017,MODERNISATION HGF,CAPITA SECURE INFORMATION,"1,124,035.14",TECHNOLOGY,PROFESSIONAL FEES,5902245434
10.04.2017,PLANNING AND TRANSPORT,IDOX SOFWARE LIMITED,"22,927.47",BUILDING CONTROL,COMPUTER MAINTENANCE,5902246083
10.04.2017,PLANNING AND TRANSPORT,IDOX SOFWARE LIMITED,"45,369.99",DEVELOPMENT CONTROL ADMINSTRATION,COMPUTER MAINTENANCE,5902246083
10.04.2017,PLANNING AND TRANSPORT,PARAGON GROUP UK LTD,"9,171.76",SUPPORT SERVICES,OFFICE EXPENSES,5902246089
10.04.2017,PLANNING AND TRANSPORT,TFL - URBAN DESIGN LONDON,"4,000.00",TFL TRAINING,TRAINING,5902245365
10.04.2017,PUBLIC HEALTH,HOMERTON UNIVERSITY HOSPITAL NHS,"1,172.88",SEXUAL HEALTH - STI,EXTERNAL AGENCIES AND BODIES,5902245971
10.04.2017,PUBLIC HEALTH,HOMERTON UNIVERSITY HOSPITAL NHS,"1,287.48",SEXUAL HEALTH - STI,EXTERNAL AGENCIES AND BODIES,5902245975
10.04.2017,PUBLIC HEALTH,HOMERTON UNIVERSITY HOSPITAL NHS,"1,496.40",SEXUAL HEALTH - STI,EXTERNAL AGENCIES AND BODIES,5902245969
10.04.2017,PUBLIC HEALTH,HOMERTON UNIVERSITY HOSPITAL NHS,"2,012.10",SEXUAL HEALTH - STI,EXTERNAL AGENCIES AND BODIES,5902245973
11.04.2017,ADULT SOCIAL CARE,REDACTED PERSONAL DATA,"3,591.05",LD LTS 18-64,SUPPORTED LIVING,2102654191
11.04.2017,ASSET MANAGEMENT,M C TECHNICIANS LTD,380,ADAPTATIONS,BUILDING R&M,5902246142
11.04.2017,ASSET MANAGEMENT,HODDERS LAW LTD,"1,500.00",DISREPAIR,LEGAL FEES & COURT COSTS,2102655059
11.04.2017,ASSET MANAGEMENT,HANSEN PALOMARES SOLICITORS,"1,000.00",DISREPAIR,LEGAL FEES & COURT COSTS,2102655058
11.04.2017,ASSET MANAGEMENT,SHAW KELLY,403,DISREPAIR,LEGAL FEES & COURT COSTS,2102655074
11.04.2017,ASSET MANAGEMENT,SHAW KELLY,800,DISREPAIR,LEGAL FEES & COURT COSTS,2102655075
11.04.2017,ASSET MANAGEMENT,STEPHEN EVANS,"1,250.00",DISREPAIR,LEGAL FEES & COURT COSTS,2102655076
11.04.2017,ASSET MANAGEMENT,CERTSURE LLP,445,ENG COMPLIANCE MANAGER,SUBSCRIPTIONS,5902245560
11.04.2017,CENTRAL FUNCTIONS,GEMINI CONSULTANTS LTD,"13,153.33",HOME LOANS HRA,SUBSCRIPTIONS,5902246079
11.04.2017,CHIEF EXECUTIVE,E.ON,"12,103.51",CAPITAL PS (LEISURE),CONSTRUCTION FEES,5902246366
11.04.2017,CHIEF EXECUTIVE,HINDWOODS LTD,500,CAPITAL PS (REGEN),CONSTRUCTION FEES,5902246201
11.04.2017,CHIEF EXECUTIVE,WE MADE THAT LLP,"6,742.50",CAPITAL PS (REGEN),CONSTRUCTION FEES  - EXTERNAL,5902246370
11.04.2017,CHIEF EXECUTIVE,CONWAY AECOM LTD,"4,016.86",CAPITAL PS (REGEN),CONSTRUCTION MAIN CONTRACT -CERTIFICATED,5902246209
11.04.2017,CHIEF EXECUTIVE,CONWAY AECOM LTD,"11,306.09",CAPITAL PS (REGEN),CONSTRUCTION MAIN CONTRACT -CERTIFICATED,5902246153
11.04.2017,CHILDREN AND ADULT,MLM CONSULTING ENGINEERS LTD,"1,500.00",CAPITAL PS (EDUCATION),CONSTRUCTION FEES,5902246393
11.04.2017,CHILDREN AND ADULT,MLM CONSULTING ENGINEERS LTD,"1,550.00",CAPITAL PS (EDUCATION),CONSTRUCTION FEES,5902246390
11.04.2017,CHILDREN AND ADULT,GALLIFORD TRY LTD,"70,217.05",CAPITAL PS (EDUCATION),CONSTRUCTION MAIN CONTRACT -CERTIFICATED,2102655114
11.04.2017,CHILDREN AND ADULT,PELLINGS LLP,800,CAPITAL PS (SOC SERV),CONSTRUCTION,5902246146
11.04.2017,CHILDREN AND ADULT,CORELOGIC LTD,800,CAPITAL PS (STRAT SERV),ICT ACQUISITION,5902246149
11.04.2017,CHILDREN'S SERVICES,ALBION PRIMARY SCHOOL,"11,527.00",ALBION JMI,EARLY YEARS - 3 AND 4 YEAR OLDS,5902246214
11.04.2017,CHILDREN'S SERVICES,ALBION PRIMARY SCHOOL,"5,498.75",ALBION JMI,HIGH NEEDS - TOP UP FUNDING,5902246213
11.04.2017,CHILDREN'S SERVICES,ALFRED SALTER PRIMARY SCHOOL,"13,555.00",ALFRED SALTER PRIMARY,EARLY YEARS - 3 AND 4 YEAR OLDS,5902246216
11.04.2017,CHILDREN'S SERVICES,ALFRED SALTER PRIMARY SCHOOL,"21,738.75",ALFRED SALTER PRIMARY,HIGH NEEDS - TOP UP FUNDING,5902246215
11.04.2017,CHILDREN'S SERVICES,BELLENDEN PRIMARY SCHOOL,"9,468.00",BELLENDEN JMI,EARLY YEARS - 3 AND 4 YEAR OLDS,5902246218
11.04.2017,CHILDREN'S SERVICES,BELLENDEN PRIMARY SCHOOL,"6,759.00",BELLENDEN JMI,HIGH NEEDS - TOP UP FUNDING,5902246217
11.04.2017,CHILDREN'S SERVICES,BEORMUND PRIMARY SCHOOL,"95,496.89",BEORMUND SCHOOL,HIGH NEEDS - BASE FUNDING,5902246219
11.04.2017,CHILDREN'S SERVICES,BESSEMER GRANGE PRIMARY SCHOOL,"19,366.00",BESSEMER GRNGE PRIMARY,EARLY YEARS - 3 AND 4 YEAR OLDS,5902246221
11.04.2017,CHILDREN'S SERVICES,BESSEMER GRANGE PRIMARY SCHOOL,"6,558.00",BESSEMER GRNGE PRIMARY,HIGH NEEDS - TOP UP FUNDING,5902246220
11.04.2017,CHILDREN'S SERVICES,BOUCHER C OF E PRIMARY SCHOOL,"4,238.00",BOUTCHER GRANGE JMI,HIGH NEEDS - TOP UP FUNDING,5902246223
11.04.2017,CHILDREN'S SERVICES,BRUNSWICK PARK PRIMARY SCHOOL,"13,568.00",BRUNSWICK PARK JM,EARLY YEARS - 3 AND 4 YEAR OLDS,5902246227
11.04.2017,CHILDREN'S SERVICES,BRUNSWICK PARK PRIMARY SCHOOL,"14,834.17",BRUNSWICK PARK JM,HIGH NEEDS - TOP UP FUNDING,5902246225
11.04.2017,CHILDREN'S SERVICES,BRUNSWICK PARK PRIMARY SCHOOL,"16,666.67",BRUNSWICK PARK JM,HIGH NEEDS - TOP UP FUNDING,5902246226
11.04.2017,CHILDREN'S SERVICES,BRUNSWICK PARK PRIMARY SCHOOL,"21,645.00",BRUNSWICK PARK JM,HIGH NEEDS - TOP UP FUNDING,5902246224
11.04.2017,CHILDREN'S SERVICES,CAMELOT PRIMARY SCHOOL,"11,160.00",CAMELOT JMI,EARLY YEARS - 3 AND 4 YEAR OLDS,5902246229
11.04.2017,CHILDREN'S SERVICES,CAMELOT PRIMARY SCHOOL,"9,536.25",CAMELOT JMI,HIGH NEEDS - TOP UP FUNDING,5902246228
11.04.2017,CHILDREN'S SERVICES,CATHEDRAL SCHOOL OF ST SAVIOUR & MARY,"7,829.00",CATHDRL SCH OF ST,EARLY YEARS - 3 AND 4 YEAR OLDS,5902246338
11.04.2017,CHILDREN'S SERVICES,TFL TELESALES / OYSTER FULFILMENT,711.6,CENTRAL COSTS - SEN,REMOVAL EXPENSES,5902245431
11.04.2017,CHILDREN'S SERVICES,REVIVAL,"1,100.00",CENTRAL SUPPORT,MEDICAL / HEALTH & SAFETY SERVICES,5902246421
11.04.2017,CHILDREN'S SERVICES,CHARLOTTE  SHARMAN PRIMARY SCHOOL,"8,904.00",CHARLOTTE SHARMAN JMI,EARLY YEARS - 3 AND 4 YEAR OLDS,5902246233
11.04.2017,CHILDREN'S SERVICES,CHARLOTTE  SHARMAN PRIMARY SCHOOL,"5,298.00",CHARLOTTE SHARMAN JMI,HIGH NEEDS - TOP UP FUNDING,5902246232
11.04.2017,CHILDREN'S SERVICES,CHERRY GARDEN SCHOOL,"156,877.33",CHERRY GARDEN,HIGH NEEDS - BASE FUNDING,5902246236
11.04.2017,CHILDREN'S SERVICES,COBOURG PRIMARY SCHOOL,"10,964.00",COBURG JMI,EARLY YEARS - 3 AND 4 YEAR OLDS,5902246238
11.04.2017,CHILDREN'S SERVICES,COBOURG PRIMARY SCHOOL,"2,119.00",COBURG JMI,HIGH NEEDS - TOP UP FUNDING,5902246237
11.04.2017,CHILDREN'S SERVICES,COMBER GROVE PRIMARY SCHOOL,"10,423.00",COMBER GROVE PRIMARY,EARLY YEARS - 3 AND 4 YEAR OLDS,5902246240
11.04.2017,CHILDREN'S SERVICES,COMBER GROVE PRIMARY SCHOOL,"6,357.50",COMBER GROVE PRIMARY,HIGH NEEDS - TOP UP FUNDING,5902246239
11.04.2017,CHILDREN'S SERVICES,CRAMPTON PRIMARY SCHOOL,"8,878.00",CRAMPTON JMI,HIGH NEEDS - TOP UP FUNDING,5902246241
11.04.2017,CHILDREN'S SERVICES,CRAWFORD PRIMARY SCHOOL,"13,988.00",CRAWFORD JMI,EARLY YEARS - 3 AND 4 YEAR OLDS,5902246243
11.04.2017,CHILDREN'S SERVICES,CRAWFORD PRIMARY SCHOOL,"4,640.00",CRAWFORD JMI,HIGH NEEDS - TOP UP FUNDING,5902246242
11.04.2017,CHILDREN'S SERVICES,DOG KENNEL HILL PRIMARY SCHOOL,"14,897.00",DOG KENNEL HILL JMI,EARLY YEARS - 3 AND 4 YEAR OLDS,5902246245
11.04.2017,CHILDREN'S SERVICES,DOG KENNEL HILL PRIMARY SCHOOL,"9,938.00",DOG KENNEL HILL JMI,HIGH NEEDS - TOP UP FUNDING,5902246244
11.04.2017,CHILDREN'S SERVICES,DULWICH VILLAGE CE INFANTS SCHOOL,"1,060.00",DULWICH VILLAGE I,HIGH NEEDS - TOP UP FUNDING,5902246246
11.04.2017,CHILDREN'S SERVICES,ENGLISH MARTYRS RC PRIMARY SCHOOL,"10,126.00",ENGLISH MARTYRS JMI,EARLY YEARS - 3 AND 4 YEAR OLDS,5902246251
11.04.2017,CHILDREN'S SERVICES,ENGLISH MARTYRS RC PRIMARY SCHOOL,"5,498.75",ENGLISH MARTYRS JMI,HIGH NEEDS - TOP UP FUNDING,5902246250
11.04.2017,CHILDREN'S SERVICES,PHOENIX PRIMARY SCHOOL,"14,987.00",EVELINE LOWE JMI,EARLY YEARS - 3 AND 4 YEAR OLDS,5902246254
11.04.2017,CHILDREN'S SERVICES,PHOENIX PRIMARY SCHOOL,"12,458.75",EVELINE LOWE JMI,HIGH NEEDS - TOP UP FUNDING,5902246253
11.04.2017,CHILDREN'S SERVICES,REDACTED PERSONAL DATA,"2,100.00",FAMILY ASSESSMENTS,RESIDENTIAL CARE,5902246417
11.04.2017,CHILDREN'S SERVICES,SUMI RATNAM & CO LTD,432,FAMILY ASSESSMENTS,RESIDENTIAL CARE,5902246416
11.04.2017,CHILDREN'S SERVICES,JOHN DOWSETT,"1,102.80",FAMILY ASSESSMENTS,RESIDENTIAL CARE,5902246414
11.04.2017,CHILDREN'S SERVICES,FRIARS PRIMARY SCHOOL,"4,673.00",FRIARS SCHOOL,EARLY YEARS - 3 AND 4 YEAR OLDS,5902246256
11.04.2017,CHILDREN'S SERVICES,FRIARS PRIMARY SCHOOL,"3,178.75",FRIARS SCHOOL,HIGH NEEDS - TOP UP FUNDING,5902246255
11.04.2017,CHILDREN'S SERVICES,GOODRICH PRIMARY SCHOOL,"9,737.00",GOODRICH JMI,HIGH NEEDS - TOP UP FUNDING,5902246247
11.04.2017,CHILDREN'S SERVICES,GRANGE PRIMARY SCHOOL,"6,375.00",GRANGE JMI,EARLY YEARS - 3 AND 4 YEAR OLDS,5902246249
11.04.2017,CHILDREN'S SERVICES,GRANGE PRIMARY SCHOOL,"4,238.00",GRANGE JMI,HIGH NEEDS - TOP UP FUNDING,5902246248
11.04.2017,CHILDREN'S SERVICES,EVELINA HOSPITAL SCHOOL,"105,216.49",GUYS,HIGH NEEDS - BASE FUNDING,5902246252
11.04.2017,CHILDREN'S SERVICES,HAYMERLE SCHOOL,"238,608.66",HAYMERLE SCH,HIGH NEEDS - BASE FUNDING,5902246275
11.04.2017,CHILDREN'S SERVICES,HEBER PRIMARY SCHOOL,"10,254.00",HEBER JMI,EARLY YEARS - 3 AND 4 YEAR OLDS,5902246258
11.04.2017,CHILDREN'S SERVICES,HEBER PRIMARY SCHOOL,"6,558.00",HEBER JMI,HIGH NEEDS - TOP UP FUNDING,5902246257
11.04.2017,CHILDREN'S SERVICES,HIGHSHORE SCHOOL,"316,833.33",HIGHSHORE,HIGH NEEDS - BASE FUNDING,5902246276
11.04.2017,CHILDREN'S SERVICES,HOLLYDALE PRIMARY SCHOOL,"3,178.75",HOLLYDALE JMI,HIGH NEEDS - TOP UP FUNDING,5902246259
11.04.2017,CHILDREN'S SERVICES,REDACTED PERSONAL DATA,"1,694.00",HOME 2 SCHOOL TRANSPORT,CAB FARES,2102655090
11.04.2017,CHILDREN'S SERVICES,REDACTED PERSONAL DATA,"1,550.40",HOME 2 SCHOOL TRANSPORT,CAB FARES,2102655099
11.04.2017,CHILDREN'S SERVICES,REDACTED PERSONAL DATA,253.44,HOME 2 SCHOOL TRANSPORT,CAB FARES,2102655091
11.04.2017,CHILDREN'S SERVICES,REDACTED PERSONAL DATA,825,HOME 2 SCHOOL TRANSPORT,CAB FARES,2102655089
11.04.2017,CHILDREN'S SERVICES,REDACTED PERSONAL DATA,640,HOME 2 SCHOOL TRANSPORT,CAB FARES,2102655097
11.04.2017,CHILDREN'S SERVICES,REDACTED PERSONAL DATA,420,HOME 2 SCHOOL TRANSPORT,CAB FARES,2102655092
11.04.2017,CHILDREN'S SERVICES,REDACTED PERSONAL DATA,"3,290.00",HOME 2 SCHOOL TRANSPORT,CAB FARES,2102655094
11.04.2017,CHILDREN'S SERVICES,REDACTED PERSONAL DATA,532,HOME 2 SCHOOL TRANSPORT,CAB FARES,2102655101
11.04.2017,CHILDREN'S SERVICES,REDACTED PERSONAL DATA,480,HOME 2 SCHOOL TRANSPORT,CAB FARES,2102655095
11.04.2017,CHILDREN'S SERVICES,REDACTED PERSONAL DATA,462,HOME 2 SCHOOL TRANSPORT,CAB FARES,2102655102
11.04.2017,CHILDREN'S SERVICES,REDACTED PERSONAL DATA,"1,633.50",HOME 2 SCHOOL TRANSPORT,CAB FARES,2102655103
11.04.2017,CHILDREN'S SERVICES,REDACTED PERSONAL DATA,"1,040.00",HOME 2 SCHOOL TRANSPORT,CAB FARES,2102655098
11.04.2017,CHILDREN'S SERVICES,REDACTED PERSONAL DATA,553.6,HOME 2 SCHOOL TRANSPORT,CAB FARES,2102655106
11.04.2017,CHILDREN'S SERVICES,REDACTED PERSONAL DATA,835.23,HOME 2 SCHOOL TRANSPORT,CAB FARES,2102655108
11.04.2017,CHILDREN'S SERVICES,REDACTED PERSONAL DATA,540,HOME 2 SCHOOL TRANSPORT,CAB FARES,2102655109
11.04.2017,CHILDREN'S SERVICES,REDACTED PERSONAL DATA,718.08,HOME 2 SCHOOL TRANSPORT,CAB FARES,2102655107
11.04.2017,CHILDREN'S SERVICES,ILDERTON PRIMARY SCHOOL,"8,858.00",ILDERTON JMI,EARLY YEARS - 3 AND 4 YEAR OLDS,5902246261
11.04.2017,CHILDREN'S SERVICES,ILDERTON PRIMARY SCHOOL,"2,119.00",ILDERTON JMI,HIGH NEEDS - TOP UP FUNDING,5902246260
11.04.2017,CHILDREN'S SERVICES,IVYDALE PRIMARY SCHOOL,"13,855.00",IVYDALE JMI,EARLY YEARS - 3 AND 4 YEAR OLDS,5902246263
11.04.2017,CHILDREN'S SERVICES,IVYDALE PRIMARY SCHOOL,"7,618.00",IVYDALE JMI,HIGH NEEDS - TOP UP FUNDING,5902246262
11.04.2017,CHILDREN'S SERVICES,JOHN RUSKIN PRIMARY SCHOOL,"18,537.00",JOHN RUSKIN JMI,EARLY YEARS - 3 AND 4 YEAR OLDS,5902246267
11.04.2017,CHILDREN'S SERVICES,JOHN RUSKIN PRIMARY SCHOOL,"9,006.00",JOHN RUSKIN JMI,HIGH NEEDS - TOP UP FUNDING,5902246264
11.04.2017,CHILDREN'S SERVICES,JOHN RUSKIN PRIMARY SCHOOL,"11,856.25",JOHN RUSKIN JMI,HIGH NEEDS - TOP UP FUNDING,5902246265
11.04.2017,CHILDREN'S SERVICES,JOHN RUSKIN PRIMARY SCHOOL,"20,000.00",JOHN RUSKIN JMI,HIGH NEEDS - TOP UP FUNDING,5902246266
11.04.2017,CHILDREN'S SERVICES,KEYWORTH PRIMARY SCHOOL,"12,520.00",KEYWORTH JMI,EARLY YEARS - 3 AND 4 YEAR OLDS,5902246269
11.04.2017,CHILDREN'S SERVICES,KEYWORTH PRIMARY SCHOOL,"5,498.75",KEYWORTH JMI,HIGH NEEDS - TOP UP FUNDING,5902246268
11.04.2017,CHILDREN'S SERVICES,DULWICH WOOD PRIMARY SCHOOL,"5,298.00",LANGBOURNE JMI,HIGH NEEDS - TOP UP FUNDING,5902246270
11.04.2017,CHILDREN'S SERVICES,DRUMHEAD LTD,-270,LEA MUSIC SERVICE(310) - 5018566,CONSULTANTS SERVICES,5902246133
11.04.2017,CHILDREN'S SERVICES,DRUMHEAD LTD,270,LEA MUSIC SERVICE(310) - 5018566,CONSULTANTS SERVICES,5902246349
11.04.2017,CHILDREN'S SERVICES,DRUMHEAD LTD,"2,524.00",LEA MUSIC SERVICE(310) - 5018566,CONSULTANTS SERVICES,5902246348
11.04.2017,CHILDREN'S SERVICES,OASIS PRINTING LTD,348,LEA MUSIC SERVICE(310) - 5018566,STATIONERY,5902246398
11.04.2017,CHILDREN'S SERVICES,REDACTED PERSONAL DATA,900,LEGAL,LEGAL FEES & COURT COSTS,2102655052
11.04.2017,CHILDREN'S SERVICES,E4 LAW LTD,311.71,LEGAL,LEGAL FEES & COURT COSTS,2102655068
11.04.2017,CHILDREN'S SERVICES,TAKE NOTE LTD,362.1,LEGAL,LEGAL FEES & COURT COSTS,2102655081
11.04.2017,CHILDREN'S SERVICES,TAKE NOTE LTD,616.25,LEGAL,LEGAL FEES & COURT COSTS,2102655082
11.04.2017,CHILDREN'S SERVICES,TARA VINDIS,475,LEGAL,LEGAL FEES & COURT COSTS,2102655083
11.04.2017,CHILDREN'S SERVICES,OLIVER MILLINGTON,"1,050.00",LEGAL,LEGAL FEES & COURT COSTS,2102655069
11.04.2017,CHILDREN'S SERVICES,JANET PLANGE,"3,725.00",LEGAL,LEGAL FEES & COURT COSTS,2102655062
11.04.2017,CHILDREN'S SERVICES,TABITHA BARRAN,475,LEGAL,LEGAL FEES & COURT COSTS,2102655079
11.04.2017,CHILDREN'S SERVICES,TABITHA BARRAN,"1,050.00",LEGAL,LEGAL FEES & COURT COSTS,2102655077
11.04.2017,CHILDREN'S SERVICES,LAURA BUMPUS,300,LEGAL,LEGAL FEES & COURT COSTS,2102655065
11.04.2017,CHILDREN'S SERVICES,LAURA BUMPUS,375,LEGAL,LEGAL FEES & COURT COSTS,2102655064
11.04.2017,CHILDREN'S SERVICES,LAURA BUMPUS,"2,105.00",LEGAL,LEGAL FEES & COURT COSTS,2102655066
11.04.2017,CHILDREN'S SERVICES,LAURA HIBBERD,350,LEGAL,LEGAL FEES & COURT COSTS,2102655067
11.04.2017,CHILDREN'S SERVICES,JANE HAYFORD,500,LEGAL,LEGAL FEES & COURT COSTS,2102655061
11.04.2017,CHILDREN'S SERVICES,JANE HAYFORD,750,LEGAL,LEGAL FEES & COURT COSTS,2102655060
11.04.2017,CHILDREN'S SERVICES,LYNDHURST PRIMARY SCHOOL,"9,729.00",LYNDHURST JMI,EARLY YEARS - 3 AND 4 YEAR OLDS,5902246274
11.04.2017,CHILDREN'S SERVICES,LYNDHURST PRIMARY SCHOOL,"3,178.75",LYNDHURST JMI,HIGH NEEDS - TOP UP FUNDING,5902246272
11.04.2017,CHILDREN'S SERVICES,LYNDHURST PRIMARY SCHOOL,"8,432.50",LYNDHURST JMI,HIGH NEEDS - TOP UP FUNDING,5902246271
11.04.2017,CHILDREN'S SERVICES,LYNDHURST PRIMARY SCHOOL,"10,000.00",LYNDHURST JMI,HIGH NEEDS - TOP UP FUNDING,5902246273
11.04.2017,CHILDREN'S SERVICES,BETHLEM & MAUDSLEY HOSPITAL SCHOOL,"139,141.72",MAUDSLEY & BETHLEM,HIGH NEEDS - BASE FUNDING,5902246222
11.04.2017,CHILDREN'S SERVICES,MICHAEL FARADAY PRIMARY SCHOOL,"15,630.00",MICHAEL FARADAY JMI,EARLY YEARS - 3 AND 4 YEAR OLDS,5902246278
11.04.2017,CHILDREN'S SERVICES,MICHAEL FARADAY PRIMARY SCHOOL,"7,417.00",MICHAEL FARADAY JMI,HIGH NEEDS - TOP UP FUNDING,5902246277
11.04.2017,CHILDREN'S SERVICES,NOTRE DAME RC GIRLS SCHOOL,"6,357.50",NOTRE DAME SCHOOL,HIGH NEEDS - TOP UP FUNDING,5902246279
11.04.2017,CHILDREN'S SERVICES,OLIVER GOLDSMITH PRIMARY SCHOOL,"13,141.00",OLIVER GOLDSMITH JM,EARLY YEARS - 3 AND 4 YEAR OLDS,5902246281
11.04.2017,CHILDREN'S SERVICES,OLIVER GOLDSMITH PRIMARY SCHOOL,"9,079.00",OLIVER GOLDSMITH JM,HIGH NEEDS - TOP UP FUNDING,5902246280
11.04.2017,CHILDREN'S SERVICES,PETER HILLS CE SCHOOL,"6,052.00",PETER HILLS JMI,EARLY YEARS - 3 AND 4 YEAR OLDS,5902246283
11.04.2017,CHILDREN'S SERVICES,PETER HILLS CE SCHOOL,"2,119.00",PETER HILLS JMI,HIGH NEEDS - TOP UP FUNDING,5902246282
11.04.2017,CHILDREN'S SERVICES,PILGRIM'S WAY PRIMARY SCHOOL,"12,964.00",PILGRIMS WAY JMI,EARLY YEARS - 3 AND 4 YEAR OLDS,5902246285
11.04.2017,CHILDREN'S SERVICES,PILGRIM'S WAY PRIMARY SCHOOL,"5,498.75",PILGRIMS WAY JMI,HIGH NEEDS - TOP UP FUNDING,5902246284
11.04.2017,CHILDREN'S SERVICES,RIVERSIDE PRIMARY SCHOOL,"6,357.00",RIVERSIDE JMI,EARLY YEARS - 3 AND 4 YEAR OLDS,5902246287
11.04.2017,CHILDREN'S SERVICES,RIVERSIDE PRIMARY SCHOOL,"1,060.00",RIVERSIDE JMI,HIGH NEEDS - TOP UP FUNDING,5902246286
11.04.2017,CHILDREN'S SERVICES,ROBERT BROWNING PRIMARY SCHOOL,"10,943.00",ROBERT BROWNING JMI,EARLY YEARS - 3 AND 4 YEAR OLDS,5902246289
11.04.2017,CHILDREN'S SERVICES,ROBERT BROWNING PRIMARY SCHOOL,"5,298.00",ROBERT BROWNING JMI,HIGH NEEDS - TOP UP FUNDING,5902246288
11.04.2017,CHILDREN'S SERVICES,ROTHERHITHE PRIMARY SCHOOL,"12,577.00",ROTHERHITHE JMI,EARLY YEARS - 3 AND 4 YEAR OLDS,5902246291
11.04.2017,CHILDREN'S SERVICES,ROTHERHITHE PRIMARY SCHOOL,"5,298.00",ROTHERHITHE JMI,HIGH NEEDS - TOP UP FUNDING,5902246290
11.04.2017,CHILDREN'S SERVICES,RYE OAK PRIMARY SCHOOL,"20,107.00",RYE OAK SCHOOL DFES NO. 2462,EARLY YEARS - 3 AND 4 YEAR OLDS,5902246295
11.04.2017,CHILDREN'S SERVICES,RYE OAK PRIMARY SCHOOL,"5,498.75",RYE OAK SCHOOL DFES NO. 2462,HIGH NEEDS - TOP UP FUNDING,5902246293
11.04.2017,CHILDREN'S SERVICES,RYE OAK PRIMARY SCHOOL,"15,000.00",RYE OAK SCHOOL DFES NO. 2462,HIGH NEEDS - TOP UP FUNDING,5902246294
11.04.2017,CHILDREN'S SERVICES,RYE OAK PRIMARY SCHOOL,"21,645.00",RYE OAK SCHOOL DFES NO. 2462,HIGH NEEDS - TOP UP FUNDING,5902246292
11.04.2017,CHILDREN'S SERVICES,ZENITH CARS LTD,450,S & FAM SUPP - PRAC GRP E SET 26-28,HIRED VEHICLES,5902246406
11.04.2017,CHILDREN'S SERVICES,ZENITH CARS LTD,480,S & FAM SUPP - PRAC GRP F SET 29-31,HIRED VEHICLES,5902246406
11.04.2017,CHILDREN'S SERVICES,SOUTHWARK INCLUSIVE LEARNING SERVICE,"233,333.33",SILS KS3,HIGH NEEDS - BASE FUNDING,5902246346
11.04.2017,CHILDREN'S SERVICES,SNOWSFIELDS PRIMARY SCHOOL,"7,546.00",SNOWSFIELD JMI,EARLY YEARS - 3 AND 4 YEAR OLDS,5902246299
11.04.2017,CHILDREN'S SERVICES,SNOWSFIELDS PRIMARY SCHOOL,"5,498.75",SNOWSFIELD JMI,HIGH NEEDS - TOP UP FUNDING,5902246297
11.04.2017,CHILDREN'S SERVICES,SNOWSFIELDS PRIMARY SCHOOL,"11,666.67",SNOWSFIELD JMI,HIGH NEEDS - TOP UP FUNDING,5902246298
11.04.2017,CHILDREN'S SERVICES,SNOWSFIELDS PRIMARY SCHOOL,"15,632.50",SNOWSFIELD JMI,HIGH NEEDS - TOP UP FUNDING,5902246296
11.04.2017,CHILDREN'S SERVICES,SOUTHWARK PARK PRIMARY SCHOOL,"15,138.00",SOUTHWARK PARK JMI,EARLY YEARS - 3 AND 4 YEAR OLDS,5902246301
11.04.2017,CHILDREN'S SERVICES,SOUTHWARK PARK PRIMARY SCHOOL,"5,700.00",SOUTHWARK PARK JMI,HIGH NEEDS - TOP UP FUNDING,5902246300
11.04.2017,CHILDREN'S SERVICES,SPA SCHOOL,"280,662.80",SPA SCHOOL,HIGH NEEDS - BASE FUNDING,5902246302
11.04.2017,CHILDREN'S SERVICES,ST ANTHONYS RC SCHOOL,"10,015.00",ST ANTHONY'S RC SCHOOL,EARLY YEARS - 3 AND 4 YEAR OLDS,5902246304
11.04.2017,CHILDREN'S SERVICES,ST ANTHONYS RC SCHOOL,"3,178.75",ST ANTHONY'S RC SCHOOL,HIGH NEEDS - TOP UP FUNDING,5902246303
11.04.2017,CHILDREN'S SERVICES,ST FRANCESCA CABRINI PRIMARY SCHOOL,"10,285.00",ST FRANCESCA CABRINI RC SCHOOL,EARLY YEARS - 3 AND 4 YEAR OLDS,5902246306
11.04.2017,CHILDREN'S SERVICES,ST FRANCESCA CABRINI PRIMARY SCHOOL,"4,238.00",ST FRANCESCA CABRINI RC SCHOOL,HIGH NEEDS - TOP UP FUNDING,5902246305
11.04.2017,CHILDREN'S SERVICES,ST FRANCIS'S RC PRIMARY SCHOOL,"8,002.00",ST FRANCIS JM,EARLY YEARS - 3 AND 4 YEAR OLDS,5902246308
11.04.2017,CHILDREN'S SERVICES,ST FRANCIS'S RC PRIMARY SCHOOL,"7,618.00",ST FRANCIS JM,HIGH NEEDS - TOP UP FUNDING,5902246307
11.04.2017,CHILDREN'S SERVICES,ST GEORGES CE SCHOOL,"5,900.00",ST GEORGES JMI 043,HIGH NEEDS - TOP UP FUNDING,5902246311
11.04.2017,CHILDREN'S SERVICES,ST GEORGES RC SCHOOL,"4,953.00",ST GEORGES JMI 340,EARLY YEARS - 3 AND 4 YEAR OLDS,5902246310
11.04.2017,CHILDREN'S SERVICES,ST GEORGES RC SCHOOL,"2,119.00",ST GEORGES JMI 340,HIGH NEEDS - TOP UP FUNDING,5902246309
11.04.2017,CHILDREN'S SERVICES,ST JAMES CE SCHOOL,"13,613.00",ST JAMES JMI,EARLY YEARS - 3 AND 4 YEAR OLDS,5902246313
11.04.2017,CHILDREN'S SERVICES,ST JAMES CE SCHOOL,"7,818.75",ST JAMES JMI,HIGH NEEDS - TOP UP FUNDING,5902246312
11.04.2017,CHILDREN'S SERVICES,ST JAMES THE GREAT RC SCHOOL,"8,511.00",ST JAMES RC(ST ALBANS),EARLY YEARS - 3 AND 4 YEAR OLDS,5902246315
11.04.2017,CHILDREN'S SERVICES,ST JAMES THE GREAT RC SCHOOL,"8,477.00",ST JAMES RC(ST ALBANS),HIGH NEEDS - TOP UP FUNDING,5902246314
11.04.2017,CHILDREN'S SERVICES,ST JOHNS & ST CLEMENTS CE SCHOOL,"3,428.33",ST JOHNS & ST CLEMENTS,HIGH NEEDS - TOP UP FUNDING,5902246317
11.04.2017,CHILDREN'S SERVICES,ST JOHNS & ST CLEMENTS CE SCHOOL,"5,833.33",ST JOHNS & ST CLEMENTS,HIGH NEEDS - TOP UP FUNDING,5902246319
11.04.2017,CHILDREN'S SERVICES,ST JOHNS & ST CLEMENTS CE SCHOOL,"8,677.50",ST JOHNS & ST CLEMENTS,HIGH NEEDS - TOP UP FUNDING,5902246318
11.04.2017,CHILDREN'S SERVICES,ST JOHNS RC PRIMARY SCHOOL,"9,351.00",ST JOHNS (ELMO ROAD),EARLY YEARS - 3 AND 4 YEAR OLDS,5902246323
11.04.2017,CHILDREN'S SERVICES,ST JOHNS RC PRIMARY SCHOOL,"3,178.75",ST JOHNS (ELMO ROAD),HIGH NEEDS - TOP UP FUNDING,5902246322
11.04.2017,CHILDREN'S SERVICES,ST JOHNS WALWORTH CE SCHOOL,"1,060.00",ST JOHNS WALWORTH J,HIGH NEEDS - TOP UP FUNDING,5902246316
11.04.2017,CHILDREN'S SERVICES,ST JOSEPHS RC PRIMARY SCHOOL,"9,316.00",ST JOSEPHS JMI 014B,EARLY YEARS - 3 AND 4 YEAR OLDS,5902246327
11.04.2017,CHILDREN'S SERVICES,ST JOSEPHS RC PRIMARY SCHOOL,"4,439.00",ST JOSEPHS JMI 014B,HIGH NEEDS - TOP UP FUNDING,5902246326
11.04.2017,CHILDREN'S SERVICES,ST JOSEPHS CATHOLIC PRIMARY SCHOOL,"13,067.00",ST JOSEPHS JMI 026,EARLY YEARS - 3 AND 4 YEAR OLDS,5902246329
11.04.2017,CHILDREN'S SERVICES,ST JOSEPHS CATHOLIC PRIMARY SCHOOL,"2,119.00",ST JOSEPHS JMI 026,HIGH NEEDS - TOP UP FUNDING,5902246328
11.04.2017,CHILDREN'S SERVICES,ST JOSEPHS CATHOLIC SCHOOL,"9,720.00",ST JOSEPHS JMI 0339,EARLY YEARS - 3 AND 4 YEAR OLDS,5902246325
11.04.2017,CHILDREN'S SERVICES,ST JOSEPHS CATHOLIC SCHOOL,"5,298.00",ST JOSEPHS JMI 0339,HIGH NEEDS - TOP UP FUNDING,5902246324
11.04.2017,CHILDREN'S SERVICES,ST JUDES CHURCH OF ENGLAND PRIMARY,"2,119.00",ST JUDES SOUTHWARK,HIGH NEEDS - TOP UP FUNDING,5902246235
11.04.2017,CHILDREN'S SERVICES,ST MARY MAGDALENE CE SCHOOL,"5,498.75",ST MARY MAGDALENE JMI,HIGH NEEDS - TOP UP FUNDING,5902246330
11.04.2017,CHILDREN'S SERVICES,ST PAULS CE SCHOOL,"10,978.00",ST PAULS WALWORTH JMI,EARLY YEARS - 3 AND 4 YEAR OLDS,5902246332
11.04.2017,CHILDREN'S SERVICES,ST PAULS CE SCHOOL,"6,558.00",ST PAULS WALWORTH JMI,HIGH NEEDS - TOP UP FUNDING,5902246331
11.04.2017,CHILDREN'S SERVICES,ST PETERS CE SCHOOL,"11,707.00",ST PETERS WALWORTH JMI,EARLY YEARS - 3 AND 4 YEAR OLDS,5902246334
11.04.2017,CHILDREN'S SERVICES,ST PETERS CE SCHOOL,"2,119.00",ST PETERS WALWORTH JMI,HIGH NEEDS - TOP UP FUNDING,5902246333
11.04.2017,CHILDREN'S SERVICES,ST SAVIOURS & ST OLAVES SCHOOL,"4,439.00",ST SAVIOURS & ST OLAVE,HIGH NEEDS - TOP UP FUNDING,5902246335
11.04.2017,CHILDREN'S SERVICES,ST JOSEPHS RC JUNIOR  SCHOOL,"3,178.75",STJOSEPH'S RC CAMBERWELL JUNIOR SCHOOL,HIGH NEEDS - TOP UP FUNDING,5902246234
11.04.2017,CHILDREN'S SERVICES,SURREY SQUARE JUNIOR SCHOOL,"13,407.00",SURREY SQUARE JUNIOR SCHOOL,EARLY YEARS - 3 AND 4 YEAR OLDS,5902246337
11.04.2017,CHILDREN'S SERVICES,SURREY SQUARE JUNIOR SCHOOL,"8,477.00",SURREY SQUARE JUNIOR SCHOOL,HIGH NEEDS - TOP UP FUNDING,5902246336
11.04.2017,CHILDREN'S SERVICES,THE ST THOMAS THE APOSTLE COLLEGE,"7,618.00",THE ST THOMAS THE APOSTLE COLLEGE,HIGH NEEDS - TOP UP FUNDING,5902246320
11.04.2017,CHILDREN'S SERVICES,THE ST THOMAS THE APOSTLE COLLEGE,"523,948.52",THE ST THOMAS THE APOSTLE COLLEGE,SCHOOLS CAPITATION,5902246321
11.04.2017,CHILDREN'S SERVICES,TOWER BRIDGE PRIMARY SCHOOL,"7,165.00",TOWER BRIDGE JMI,EARLY YEARS - 3 AND 4 YEAR OLDS,5902246340
11.04.2017,CHILDREN'S SERVICES,TOWER BRIDGE PRIMARY SCHOOL,"4,238.00",TOWER BRIDGE JMI,HIGH NEEDS - TOP UP FUNDING,5902246339
11.04.2017,CHILDREN'S SERVICES,TOWNSEND PRIMARY SCHOOL,"8,241.00",TOWNSEND JMI,EARLY YEARS - 3 AND 4 YEAR OLDS,5902246342
11.04.2017,CHILDREN'S SERVICES,TOWNSEND PRIMARY SCHOOL,"7,618.00",TOWNSEND JMI,HIGH NEEDS - TOP UP FUNDING,5902246341
11.04.2017,CHILDREN'S SERVICES,TUKE SCHOOL,"210,818.79",TUKE SCHOOL,HIGH NEEDS - BASE FUNDING,5902246343
11.04.2017,CHILDREN'S SERVICES,VICTORY SCHOOL,"3,594.00",VICTORY JMI,EARLY YEARS - 3 AND 4 YEAR OLDS,5902246345
11.04.2017,CHILDREN'S SERVICES,VICTORY SCHOOL,"2,119.00",VICTORY JMI,HIGH NEEDS - TOP UP FUNDING,5902246344
11.04.2017,CHILDREN'S SERVICES,MORNING LANE ASSOCIATES,"3,500.00",YOS SUPPORT,AGENCY STAFF,5902246419
11.04.2017,CHILDREN'S SERVICES,MORNING LANE ASSOCIATES,"4,200.00",YOS SUPPORT,AGENCY STAFF,5902246419
11.04.2017,COMMISSIONING & CENTRAL,CAREWORKS UK LTD,"4,000.00",BUSINESS APPLICATIONS,SOFTWARE,5902246154
11.04.2017,COMMISSIONING & CENTRAL,SIXWAYS CONSULTING LTD,"16,447.20",SOUTHWARK MANAGEMENT,CONSULTANTS SERVICES,5902246383
11.04.2017,COMMUNITIES,DEYNSFORD TENANT MANAGEMENT ORGANISATION,"9,173.25",D'EYNSFORD ESTATE,M&M ALLOWANCE CO-OPS,5902246200
11.04.2017,COMMUNITIES,SOUTHWARK LAW CENTRE,"92,400.00",LEGAL GRANTS,EXTERNAL AGENCIES AND BODIES,5902245503
11.04.2017,COMMUNITIES,REDACTED PERSONAL DATA,"4,991.00",NO RECOURSE TO PUBLIC FUNDS,SECTION 17 PAYMENTS TO AGENCIES/CARERS,5902246204
11.04.2017,COMMUNITIES,S & G PROPERTIES,"1,328.66",NO RECOURSE TO PUBLIC FUNDS,SECTION 17 PAYMENTS TO AGENCIES/CARERS,5902246186
11.04.2017,COMMUNITIES,S & G PROPERTIES,"1,328.66",NO RECOURSE TO PUBLIC FUNDS,SECTION 17 PAYMENTS TO AGENCIES/CARERS,5902246190
11.04.2017,COMMUNITIES,S & G PROPERTIES,"1,461.65",NO RECOURSE TO PUBLIC FUNDS,SECTION 17 PAYMENTS TO AGENCIES/CARERS,5902246193
11.04.2017,COMMUNITIES,S & G PROPERTIES,"1,551.86",NO RECOURSE TO PUBLIC FUNDS,SECTION 17 PAYMENTS TO AGENCIES/CARERS,5902246188
11.04.2017,COMMUNITIES,S & G PROPERTIES,"1,682.99",NO RECOURSE TO PUBLIC FUNDS,SECTION 17 PAYMENTS TO AGENCIES/CARERS,5902246183
11.04.2017,COMMUNITIES,A & M ACCOMMODATION SERVICES LTD,"7,595.00",NO RECOURSE TO PUBLIC FUNDS,SECTION 17 PAYMENTS TO AGENCIES/CARERS,5902246152
11.04.2017,COMMUNITIES,GALAXY LETTINGS LTD,"11,935.50",NO RECOURSE TO PUBLIC FUNDS,SECTION 17 PAYMENTS TO AGENCIES/CARERS,5902246351
11.04.2017,COMMUNITIES,EDEN ESTATES LONDON LTD,"4,354.00",NO RECOURSE TO PUBLIC FUNDS,SECTION 17 PAYMENTS TO AGENCIES/CARERS,5902246175
11.04.2017,COMMUNITIES,D SINGH PROPERTIES LTD,"4,619.00",NO RECOURSE TO PUBLIC FUNDS,SECTION 17 PAYMENTS TO AGENCIES/CARERS,5902246148
11.04.2017,COMMUNITIES,K3 PROPERTY MANAGEMENT LTD,"7,595.00",NO RECOURSE TO PUBLIC FUNDS,SECTION 17 PAYMENTS TO AGENCIES/CARERS,5902246172
11.04.2017,COMMUNITIES,RS REAL ESTATE LTD,"7,860.00",NO RECOURSE TO PUBLIC FUNDS,SECTION 17 PAYMENTS TO AGENCIES/CARERS,5902246178
11.04.2017,COMMUNITIES,TAAKSVALE HOUSING LTD,978.6,NO RECOURSE TO PUBLIC FUNDS,SECTION 17 PAYMENTS TO AGENCIES/CARERS,5902246187
11.04.2017,COMMUNITIES,TAAKSVALE HOUSING LTD,"1,083.45",NO RECOURSE TO PUBLIC FUNDS,SECTION 17 PAYMENTS TO AGENCIES/CARERS,5902246192
11.04.2017,COMMUNITIES,TAAKSVALE HOUSING LTD,"1,083.45",NO RECOURSE TO PUBLIC FUNDS,SECTION 17 PAYMENTS TO AGENCIES/CARERS,5902246196
11.04.2017,COMMUNITIES,TAAKSVALE HOUSING LTD,"22,242.00",NO RECOURSE TO PUBLIC FUNDS,SECTION 17 PAYMENTS TO AGENCIES/CARERS,5902246165
11.04.2017,COMMUNITIES,FINEFAIR LTD,"1,461.34",NO RECOURSE TO PUBLIC FUNDS,SECTION 17 PAYMENTS TO AGENCIES/CARERS,5902246170
11.04.2017,COMMUNITIES,S A PROPERTY MANAGEMENT LTD,"5,332.00",NO RECOURSE TO PUBLIC FUNDS,SECTION 17 PAYMENTS TO AGENCIES/CARERS,5902246143
11.04.2017,COMMUNITIES,GOLDSTONE ESTATES LTD,"13,306.75",NO RECOURSE TO PUBLIC FUNDS,SECTION 17 PAYMENTS TO AGENCIES/CARERS,5902246357
11.04.2017,COMMUNITIES,METROPOLITAN SUPPORT TRUST,910.4,NRPF MENTAL HEALTH,RENTS,5902246202
11.04.2017,COMMUNITIES,PEABODY TRUST,"1,051.05",NRPF PHYSICAL DISABILITIES,RENTS,5902246394
11.04.2017,COMMUNITIES,WILLOWBROOK TENANT MANAGEMENT CO-OP LTD,"58,594.50",WILLOWBROOK CO-OP,M&M ALLOWANCE CO-OPS,5902246078
11.04.2017,CUSTOMER EXPERIENCE HGF,CITYGLEN LTD,"80,243.00",NIGHTLY TA (NSC),EXTERNAL AGENCIES AND BODIES,5902246147
11.04.2017,CUSTOMER EXPERIENCE HGF,TRADE  IN OPTIONS LTD,"2,418.00",NIGHTLY TA (NSC),EXTERNAL AGENCIES AND BODIES,5902246375
11.04.2017,CUSTOMER EXPERIENCE HGF,DELTALET LTD,"3,348.00",NIGHTLY TA (NSC),EXTERNAL AGENCIES AND BODIES,5902246205
11.04.2017,CUSTOMER EXPERIENCE HGF,GOLDSTONE ESTATES LTD,"30,471.38",NIGHTLY TA (NSC),EXTERNAL AGENCIES AND BODIES,5902246182
11.04.2017,CUSTOMER EXPERIENCE HGF,PPROPERTYPLACEBOOK LTD,"1,085.00",NIGHTLY TA (NSC),EXTERNAL AGENCIES AND BODIES,5902246367
11.04.2017,CUSTOMER EXPERIENCE HGF,SWIFT LETTING LONDON LTD,"14,237.00",NIGHTLY TA (NSC),EXTERNAL AGENCIES AND BODIES,5902246208
11.04.2017,CUSTOMER EXPERIENCE HGF,AGENT ONE51 LTD,"1,782.50",NIGHTLY TA (NSC),GRANTS,5902246395
11.04.2017,ENVIRONMENT AND LEISURE,CONWAY AECOM LTD,"12,590.18",CAPITAL PS (LEISURE),CONSTRUCTION,2102655130
11.04.2017,ENVIRONMENT AND LEISURE,CONWAY AECOM LTD,"14,082.40",CAPITAL PS (LEISURE),CONSTRUCTION,2102655118
11.04.2017,ENVIRONMENT AND LEISURE,CONWAY AECOM LTD,"15,435.23",CAPITAL PS (LEISURE),CONSTRUCTION,2102655120
11.04.2017,ENVIRONMENT AND LEISURE,CONWAY AECOM LTD,"16,181.18",CAPITAL PS (LEISURE),CONSTRUCTION,2102655129
11.04.2017,ENVIRONMENT AND LEISURE,CONWAY AECOM LTD,"18,532.29",CAPITAL PS (LEISURE),CONSTRUCTION,2102655117
11.04.2017,ENVIRONMENT AND LEISURE,CONWAY AECOM LTD,"19,464.24",CAPITAL PS (LEISURE),CONSTRUCTION,2102655121
11.04.2017,ENVIRONMENT AND LEISURE,CONWAY AECOM LTD,"19,783.68",CAPITAL PS (LEISURE),CONSTRUCTION,2102655116
11.04.2017,ENVIRONMENT AND LEISURE,CONWAY AECOM LTD,"22,304.41",CAPITAL PS (LEISURE),CONSTRUCTION,2102655119
11.04.2017,ENVIRONMENT AND LEISURE,CONWAY AECOM LTD,"34,365.08",CAPITAL PS (LEISURE),CONSTRUCTION,2102655115
11.04.2017,ENVIRONMENT AND LEISURE,LDA DESIGN CONSULTING LTD,936.1,CAPITAL PS (LEISURE),CONSTRUCTION FEES  - EXTERNAL,5902246371
11.04.2017,ENVIRONMENT AND LEISURE,TGMS LTD,950,CAPITAL PS (LEISURE),CONSTRUCTION FEES  - EXTERNAL,5902246362
11.04.2017,ENVIRONMENT DIRECTORATE,RED R DESIGN,400,BEHAVIOUR CHANGE,CONSULTANTS SERVICES,5902246401
11.04.2017,ENVIRONMENT DIRECTORATE,RYAN KOHLI,"1,250.00",RESIDENTIAL SERVICES,LEGAL FEES & COURT COSTS,2102655071
11.04.2017,ENVIRONMENT DIRECTORATE,ALEXANDER GREAVES,"1,350.00",STREET TRADING A/C,LEGAL FEES & COURT COSTS,2102655051
11.04.2017,EXTERNAL AFFAIRS,GOVDELIVERY EUROPE LTD,"1,992.00",MEDIA,SUBSCRIPTIONS,5902246365
11.04.2017,EXTERNAL AFFAIRS,GOVDELIVERY EUROPE LTD,"2,054.00",MEDIA,SUBSCRIPTIONS,5902246151
11.04.2017,F & C S EXCLUDING CORPORATE BUDGETS,CIPFA,414,CIPFA TRAINEES,TRAINING,5902246378
11.04.2017,F & C S EXCLUDING CORPORATE BUDGETS,CIPFA,"1,516.00",CIPFA TRAINEES,TRAINING,5902246373
11.04.2017,F & C S EXCLUDING CORPORATE BUDGETS,CIPFA,"2,006.00",CIPFA TRAINEES,TRAINING,5902246374
11.04.2017,F & C S EXCLUDING CORPORATE BUDGETS,CIPFA,"2,006.00",CIPFA TRAINEES,TRAINING,5902246376
11.04.2017,F & C S EXCLUDING CORPORATE BUDGETS,THE CAMDEN SOCIETY (CATERING),550.5,CONSTITUTIONAL TEAM,REFRESHMENTS FOR MEETINGS,5902246168
11.04.2017,F & C S EXCLUDING CORPORATE BUDGETS,WILKIN CHAPMAN,261.7,COUNCIL TAX,LEGAL FEES & COURT COSTS,5902246382
11.04.2017,F & C S EXCLUDING CORPORATE BUDGETS,WILKIN CHAPMAN,"1,321.30",COUNCIL TAX,LEGAL FEES & COURT COSTS,5902246382
11.04.2017,F & C S EXCLUDING CORPORATE BUDGETS,ACT NOW TRAINING LTD,"1,795.00",PROFESSIONAL QUALIFICATIONS,TRAINING,5902246203
11.04.2017,F & C S EXCLUDING CORPORATE BUDGETS,GREENCROFT CONSULTING,"19,200.00",PROJECTS,OTHER CONTRACTORS,5902246399
11.04.2017,F & GOVERNANCE,HEYWOOD LIMITED,"2,000.00",PENSIONS,COMMS & COMPUTING CONTRACT CHARGES,5902246174
11.04.2017,F & GOVERNANCE,HEYWOOD LIMITED,"15,425.00",PENSIONS,COMMS & COMPUTING CONTRACT CHARGES,5902246185
11.04.2017,F & GOVERNANCE,HEYWOOD LIMITED,"91,891.20",PENSIONS,COMMS & COMPUTING CONTRACT CHARGES,5902246195
11.04.2017,F & GOVERNANCE,HEYWOOD LIMITED,840.54,PENSIONS,CONSULTANTS SERVICES,5902246181
11.04.2017,F & GOVERNANCE,HEYWOOD LIMITED,880.58,PENSIONS,CONSULTANTS SERVICES,5902246160
11.04.2017,F & GOVERNANCE,HEYWOOD LIMITED,"2,091.36",PENSIONS,CONSULTANTS SERVICES,5902246164
11.04.2017,F & GOVERNANCE,HEYWOOD LIMITED,"4,970.00",PENSIONS,CONSULTANTS SERVICES,5902246191
11.04.2017,HOUSING,"BROWNING, JONES & MORRIS LTD",900,STORES,CREDITORS -GR/IR CLEARING ACCOUNT,5902246423
11.04.2017,HOUSING GENERAL FUND,RSM BUILDING CONTRACTORS,"1,645.00",CAPITAL PS (HOUSING GF),CAPITAL GRANTS,5902246363
11.04.2017,HOUSING GENERAL FUND,RSM BUILDING CONTRACTORS,"2,370.00",CAPITAL PS (HOUSING GF),CAPITAL GRANTS,5902246363
11.04.2017,HOUSING GENERAL FUND,PELLINGS LLP,960,CAPITAL PS (REGEN),CONSTRUCTION,5902246198
11.04.2017,HOUSING HRA,PJS BUILDING SERVICES,"8,153.64",CAPITAL PS (HRA),CONST'N MAIN CONTRACT - NON CERTIFICATED,2102655122
11.04.2017,HOUSING HRA,C&C BUILDERS LTD,"5,635.00",CAPITAL PS (HRA),CONST'N MAIN CONTRACT - NON CERTIFICATED,2102655126
11.04.2017,HOUSING HRA,C&C BUILDERS LTD,"5,820.00",CAPITAL PS (HRA),CONST'N MAIN CONTRACT - NON CERTIFICATED,2102655128
11.04.2017,HOUSING HRA,C&C BUILDERS LTD,"5,830.00",CAPITAL PS (HRA),CONST'N MAIN CONTRACT - NON CERTIFICATED,2102655125
11.04.2017,HOUSING HRA,C&C BUILDERS LTD,"6,405.00",CAPITAL PS (HRA),CONST'N MAIN CONTRACT - NON CERTIFICATED,2102655127
11.04.2017,HOUSING HRA,C&C BUILDERS LTD,"7,360.00",CAPITAL PS (HRA),CONST'N MAIN CONTRACT - NON CERTIFICATED,2102655123
11.04.2017,HOUSING HRA,C&C BUILDERS LTD,"10,885.00",CAPITAL PS (HRA),CONST'N MAIN CONTRACT - NON CERTIFICATED,2102655124
11.04.2017,HOUSING HRA,CALFORD SEADEN LLP,"1,671.25",CAPITAL PS (HRA),CONSTRUCTION FEES  - EXTERNAL,5902246184
11.04.2017,HOUSING HRA,MARTIN ARNOLD LTD,"5,559.40",CAPITAL PS (HRA),CONSTRUCTION FEES  - EXTERNAL,5902246355
11.04.2017,HOUSING HRA,ARCHAEOLOGICAL SOLUTIONS LTD,"1,565.00",CAPITAL PS (HRA),CONSTRUCTION FEES  - EXTERNAL,5902246206
11.04.2017,HOUSING HRA,KEEPMOAT REGENERATION (APOLLO) LTD,"33,863.91",CAPITAL PS (HRA),CONSTRUCTION MAIN CONTRACT -CERTIFICATED,2102655111
11.04.2017,HOUSING HRA,KEEPMOAT REGENERATION (APOLLO) LTD,"35,937.06",CAPITAL PS (HRA),CONSTRUCTION MAIN CONTRACT -CERTIFICATED,2102655113
11.04.2017,HOUSING HRA,KEEPMOAT REGENERATION (APOLLO) LTD,"95,555.06",CAPITAL PS (HRA),CONSTRUCTION MAIN CONTRACT -CERTIFICATED,2102655110
11.04.2017,HOUSING HRA,KEEPMOAT REGENERATION (APOLLO) LTD,"139,599.65",CAPITAL PS (HRA),CONSTRUCTION MAIN CONTRACT -CERTIFICATED,2102655112
11.04.2017,HOUSING HRA,N & C BUILDING MATERIALS,770.4,STORES,CREDITORS -GR/IR CLEARING ACCOUNT,5902246400
11.04.2017,LEISURE DIRECTORATE,ASKEWS & HOLTS LIBRARY SERVICES LTD,492.83,STOCK SERVICES,BOOKS & PUBLICATIONS,5902246352
11.04.2017,LEISURE DIRECTORATE,ASKEWS & HOLTS LIBRARY SERVICES LTD,"2,673.19",STOCK SERVICES,BOOKS & PUBLICATIONS,5902246372
11.04.2017,LEISURE DIRECTORATE,ASKEWS & HOLTS LIBRARY SERVICES LTD,"2,729.61",STOCK SERVICES,BOOKS & PUBLICATIONS,5902246354
11.04.2017,LEISURE DIRECTORATE,NIELSEN BOOK SERVICES LTD,"3,011.00",STOCK SERVICES,SUBSCRIPTIONS,5902246369
11.04.2017,MODERNISATION HGF,ROSEMARY POTTS,"4,200.00",OCCUPATIONAL ASSESSMENT,CONSULTANTS SERVICES,5902246380
11.04.2017,MODERNISATION HGF,JOHN STATTERS ASSOCIATES,"2,137.50",OCCUPATIONAL ASSESSMENT,CONSULTANTS SERVICES,5902246384
11.04.2017,PLANNING AND TRANSPORT,AECOM LTD,"14,900.55",PLANNING POLICY TEAM,CONSULTANTS SERVICES,5902246155
11.04.2017,REGENERATION,KENT COUNTY COUNCIL - LASER,"3,029.96",CPHA SURPLUS,ELECTRICITY,5902246167
11.04.2017,REGENERATION,KENT COUNTY COUNCIL - LASER,"3,095.37",CPHA SURPLUS,ELECTRICITY,5902246161
11.04.2017,REGENERATION,KENT COUNTY COUNCIL - LASER,"3,095.48",CPHA SURPLUS,ELECTRICITY,5902246163
11.04.2017,REGENERATION,KENT COUNTY COUNCIL - LASER,"3,130.96",CPHA SURPLUS,ELECTRICITY,5902246173
11.04.2017,REGENERATION,SIEMENS FINANCIAL SERVICES LIMITED,295,LBS SOJOURNER TRUTH COMMUNITY CENTRE,OP LEASE/HIRE CHARGES:PLANT/EQUIP/FURNIT,5902246207
11.04.2017,REGENERATION,CENTRAL FUTURES LTD,"4,200.00",MASTER PLAN-H/WAY & TRANS INTERCHANGE,PROFESSIONAL FEES,5902246361
11.04.2017,REGENERATION,CENTRAL FUTURES LTD,"21,949.00",MASTER PLAN-H/WAY & TRANS INTERCHANGE,PROFESSIONAL FEES,5902246360
11.04.2017,REGENERATION,RED R DESIGN,"1,250.00",PROFESSIONAL SERVICES (GENERAL),MARKETING & PUBLICITY SERVICES,5902246402
11.04.2017,REGENERATION,INITIAL WASHROOM SOLUTIONS,"1,218.32",TOWER WORKSHOPS,PREMISES CLEANING,5902246150
11.04.2017,RESIDENT SERVICES,NPOWER LTD,941.76,OPERATIONS/OFFICES ACCOMMODATION,ELECTRICITY,5902246397
11.04.2017,RESIDENT SERVICES,HODGE JONES & ALLEN,"13,000.00",OPERATIONS/OFFICES ACCOMMODATION,LEGAL FEES & COURT COSTS,2102655088
11.04.2017,RESIDENT SERVICES,REMINGTON HALL,465,OPERATIONS/OFFICES ACCOMMODATION,LEGAL FEES & COURT COSTS,2102655070
11.04.2017,RESIDENT SERVICES,BELSHAW & CURTIN SOLICITORS,"1,200.00",OPERATIONS/OFFICES ACCOMMODATION,LEGAL FEES & COURT COSTS,2102655054
11.04.2017,RESIDENT SERVICES,ANTHONY GOLD SOLICITORS,"9,500.65",OPERATIONS/OFFICES ACCOMMODATION,LEGAL FEES & COURT COSTS,2102655053
11.04.2017,RESIDENT SERVICES,GT STEWART SOLICITORS,"9,482.96",OPERATIONS/OFFICES ACCOMMODATION,LEGAL FEES & COURT COSTS,2102655057
11.04.2017,RESIDENT SERVICES,CLARKE BARNES SOLICITORS LLP,"2,350.00",OPERATIONS/OFFICES ACCOMMODATION,LEGAL FEES & COURT COSTS,2102655056
11.04.2017,RESIDENT SERVICES,SHAW KELLY,800,OPERATIONS/OFFICES ACCOMMODATION,LEGAL FEES & COURT COSTS,2102655073
11.04.2017,RESIDENT SERVICES,CITYGLEN LTD,255,TA PLACEMENTS,HIRE OF ROOMS/HALLS,5902246171
11.04.2017,RESIDENT SERVICES,CITYGLEN LTD,"1,224.00",TA PLACEMENTS,HIRE OF ROOMS/HALLS,5902246162
11.04.2017,RESIDENT SERVICES,S A PROPERTY MANAGEMENT LTD,"1,147.00",TA PLACEMENTS,RENTS,5902246364
11.04.2017,SOUTHWARK BUILDING SERVICES,CERTSURE LLP,445,VOIDS OVERHEADS,SUBSCRIPTIONS,5902245959
11.04.2017,STRATEGIC FINANCING BUDGETS,JOHNSON AUSTIN PARTNERSHIP LLP,375,PROPERTY RELATED INSURANCE,PROFESSIONAL FEES,5902246189
12.04.2017,ADULT SOCIAL CARE,REDACTED PERSONAL DATA,"2,360.80",CONTINUING CARE PERSONAL BUDGETS DR,RECOVERABLE COSTS INCL. HEALTH,2102656931
12.04.2017,ADULT SOCIAL CARE,REDACTED PERSONAL DATA,"5,335.96",CONTINUING CARE PERSONAL BUDGETS DR,RECOVERABLE COSTS INCL. HEALTH,2102657962
12.04.2017,ADULT SOCIAL CARE,PEOPLE PLUS,"-5,175.98",CONTINUING CARE PERSONAL BUDGETS DR,RECOVERABLE COSTS INCL. HEALTH,2102657511
12.04.2017,ADULT SOCIAL CARE,PEOPLE PLUS,"3,518.32",CONTINUING CARE PERSONAL BUDGETS DR,RECOVERABLE COSTS INCL. HEALTH,2102656874
12.04.2017,ADULT SOCIAL CARE,PEOPLE PLUS,"3,613.68",CONTINUING CARE PERSONAL BUDGETS DR,RECOVERABLE COSTS INCL. HEALTH,2102657385
12.04.2017,ADULT SOCIAL CARE,PEOPLE PLUS,"7,703.32",CONTINUING CARE PERSONAL BUDGETS DR,RECOVERABLE COSTS INCL. HEALTH,2102656860
12.04.2017,ADULT SOCIAL CARE,QUAY HEALTH SOLUTIONS,"50,000.00",DIR OF ASC,OTHER CONTRACTORS,5902245400
12.04.2017,ADULT SOCIAL CARE,IMPROVING HEALTH LTD,"50,000.00",DIR OF ASC,OTHER CONTRACTORS,5902245539
12.04.2017,ADULT SOCIAL CARE,NESTOR PRIMECARE SERVICES LTD,"3,898.44",EXTRA CARE CONTRACT,HOMECARE - SPOT,5902246523
12.04.2017,ADULT SOCIAL CARE,NESTOR PRIMECARE SERVICES LTD,"48,386.52",EXTRA CARE CONTRACT,HOMECARE - SPOT,5902246523
12.04.2017,ADULT SOCIAL CARE,REDACTED PERSONAL DATA,"-1,290.16",LD LTS 18-64,DISCRETIONARY FLEXIBLE FEES & INCOME,2102657629
12.04.2017,ADULT SOCIAL CARE,REDACTED PERSONAL DATA,-718,LD LTS 18-64,DISCRETIONARY FLEXIBLE FEES & INCOME,2102657375
12.04.2017,ADULT SOCIAL CARE,REDACTED PERSONAL DATA,-624,LD LTS 18-64,DISCRETIONARY FLEXIBLE FEES & INCOME,2102658013
12.04.2017,ADULT SOCIAL CARE,REDACTED PERSONAL DATA,"-3,567.88",LD LTS 18-64,DISCRETIONARY FLEXIBLE FEES & INCOME,2102657902
12.04.2017,ADULT SOCIAL CARE,REDACTED PERSONAL DATA,"3,144.00",LD LTS 18-64,HOMECARE - C&V,2102657174
12.04.2017,ADULT SOCIAL CARE,REDACTED PERSONAL DATA,"-1,099.80",LD LTS 18-64,HOMECARE - C&V,2102657300
12.04.2017,ADULT SOCIAL CARE,REDACTED PERSONAL DATA,"1,672.00",LD LTS 18-64,PAYMENTS TO CLIENTS (DIRECT PAYMENTS),2102656849
12.04.2017,ADULT SOCIAL CARE,REDACTED PERSONAL DATA,"3,923.12",LD LTS 18-64,PAYMENTS TO CLIENTS (DIRECT PAYMENTS),2102657237
12.04.2017,ADULT SOCIAL CARE,REDACTED PERSONAL DATA,"1,483.00",LD LTS 18-64,PAYMENTS TO CLIENTS (DIRECT PAYMENTS),2102657883
12.04.2017,ADULT SOCIAL CARE,REDACTED PERSONAL DATA,"5,362.72",LD LTS 18-64,PAYMENTS TO CLIENTS (DIRECT PAYMENTS),2102656936
12.04.2017,ADULT SOCIAL CARE,REDACTED PERSONAL DATA,"4,348.00",LD LTS 18-64,PAYMENTS TO CLIENTS (DIRECT PAYMENTS),2102658026
12.04.2017,ADULT SOCIAL CARE,REDACTED PERSONAL DATA,"1,545.48",LD LTS 18-64,PAYMENTS TO CLIENTS (DIRECT PAYMENTS),2102658031
12.04.2017,ADULT SOCIAL CARE,REDACTED PERSONAL DATA,"3,118.08",LD LTS 18-64,PAYMENTS TO CLIENTS (DIRECT PAYMENTS),2102657895
12.04.2017,ADULT SOCIAL CARE,REDACTED PERSONAL DATA,"8,484.60",LD LTS 18-64,PAYMENTS TO CLIENTS (DIRECT PAYMENTS),2102658001
12.04.2017,ADULT SOCIAL CARE,REDACTED PERSONAL DATA,288.8,LD LTS 18-64,PAYMENTS TO CLIENTS (DIRECT PAYMENTS),2102657718
12.04.2017,ADULT SOCIAL CARE,REDACTED PERSONAL DATA,"4,870.60",LD LTS 18-64,PAYMENTS TO CLIENTS (DIRECT PAYMENTS),2102657978
12.04.2017,ADULT SOCIAL CARE,REDACTED PERSONAL DATA,"3,096.96",LD LTS 18-64,PAYMENTS TO CLIENTS (DIRECT PAYMENTS),2102657910
12.04.2017,ADULT SOCIAL CARE,REDACTED PERSONAL DATA,"3,864.64",LD LTS 18-64,PAYMENTS TO CLIENTS (DIRECT PAYMENTS),2102657873
12.04.2017,ADULT SOCIAL CARE,REDACTED PERSONAL DATA,"4,932.10",LD LTS 18-64,PAYMENTS TO CLIENTS (DIRECT PAYMENTS),2102658018
12.04.2017,ADULT SOCIAL CARE,REDACTED PERSONAL DATA,300,LD LTS 18-64,PAYMENTS TO CLIENTS (DIRECT PAYMENTS),2102657831
12.04.2017,ADULT SOCIAL CARE,REDACTED PERSONAL DATA,"2,317.60",LD LTS 18-64,PAYMENTS TO CLIENTS (DIRECT PAYMENTS),2102657897
12.04.2017,ADULT SOCIAL CARE,REDACTED PERSONAL DATA,"1,454.08",LD LTS 18-64,PAYMENTS TO CLIENTS (DIRECT PAYMENTS),2102657549
12.04.2017,ADULT SOCIAL CARE,REDACTED PERSONAL DATA,522.6,LD LTS 18-64,PAYMENTS TO CLIENTS (DIRECT PAYMENTS),2102657861
12.04.2017,ADULT SOCIAL CARE,REDACTED PERSONAL DATA,"1,025.20",LD LTS 18-64,PAYMENTS TO CLIENTS (DIRECT PAYMENTS),2102657838
12.04.2017,ADULT SOCIAL CARE,REDACTED PERSONAL DATA,300,LD LTS 18-64,PAYMENTS TO CLIENTS (DIRECT PAYMENTS),2102657516
12.04.2017,ADULT SOCIAL CARE,REDACTED PERSONAL DATA,"1,112.40",LD LTS 18-64,PAYMENTS TO CLIENTS (DIRECT PAYMENTS),2102657918
12.04.2017,ADULT SOCIAL CARE,REDACTED PERSONAL DATA,738,LD LTS 18-64,PAYMENTS TO CLIENTS (DIRECT PAYMENTS),2102657218
12.04.2017,ADULT SOCIAL CARE,REDACTED PERSONAL DATA,269.6,LD LTS 18-64,PAYMENTS TO CLIENTS (DIRECT PAYMENTS),2102657890
12.04.2017,ADULT SOCIAL CARE,REDACTED PERSONAL DATA,"1,036.24",LD LTS 18-64,PAYMENTS TO CLIENTS (DIRECT PAYMENTS),2102658019
12.04.2017,ADULT SOCIAL CARE,REDACTED PERSONAL DATA,"1,456.00",LD LTS 18-64,PAYMENTS TO CLIENTS (DIRECT PAYMENTS),2102657836
12.04.2017,ADULT SOCIAL CARE,REDACTED PERSONAL DATA,"1,122.64",LD LTS 18-64,PAYMENTS TO CLIENTS (DIRECT PAYMENTS),2102657129
12.04.2017,ADULT SOCIAL CARE,REDACTED PERSONAL DATA,480,LD LTS 18-64,PAYMENTS TO CLIENTS (DIRECT PAYMENTS),2102658002
12.04.2017,ADULT SOCIAL CARE,REDACTED PERSONAL DATA,"1,443.00",LD LTS 18-64,PAYMENTS TO CLIENTS (DIRECT PAYMENTS),2102657736
12.04.2017,ADULT SOCIAL CARE,REDACTED PERSONAL DATA,280,LD LTS 18-64,PAYMENTS TO CLIENTS (DIRECT PAYMENTS),2102657882
12.04.2017,ADULT SOCIAL CARE,REDACTED PERSONAL DATA,420,LD LTS 18-64,PAYMENTS TO CLIENTS (DIRECT PAYMENTS),2102657959
12.04.2017,ADULT SOCIAL CARE,REDACTED PERSONAL DATA,"2,116.00",LD LTS 18-64,PAYMENTS TO CLIENTS (DIRECT PAYMENTS),2102657870
12.04.2017,ADULT SOCIAL CARE,REDACTED PERSONAL DATA,"2,412.00",LD LTS 18-64,PAYMENTS TO CLIENTS (DIRECT PAYMENTS),2102658027
12.04.2017,ADULT SOCIAL CARE,REDACTED PERSONAL DATA,"1,200.00",LD LTS 18-64,PAYMENTS TO CLIENTS (DIRECT PAYMENTS),2102657667
12.04.2017,ADULT SOCIAL CARE,REDACTED PERSONAL DATA,718,LD LTS 18-64,PAYMENTS TO CLIENTS (DIRECT PAYMENTS),2102657374
12.04.2017,ADULT SOCIAL CARE,REDACTED PERSONAL DATA,"1,290.16",LD LTS 18-64,PAYMENTS TO CLIENTS (DIRECT PAYMENTS),2102657628
12.04.2017,ADULT SOCIAL CARE,REDACTED PERSONAL DATA,"1,532.68",LD LTS 18-64,PAYMENTS TO CLIENTS (DIRECT PAYMENTS),2102657189
12.04.2017,ADULT SOCIAL CARE,REDACTED PERSONAL DATA,"1,532.92",LD LTS 18-64,PAYMENTS TO CLIENTS (DIRECT PAYMENTS),2102657953
12.04.2017,ADULT SOCIAL CARE,REDACTED PERSONAL DATA,"5,280.88",LD LTS 18-64,PAYMENTS TO CLIENTS (DIRECT PAYMENTS),2102657955
12.04.2017,ADULT SOCIAL CARE,REDACTED PERSONAL DATA,"3,066.48",LD LTS 18-64,PAYMENTS TO CLIENTS (DIRECT PAYMENTS),2102658003
12.04.2017,ADULT SOCIAL CARE,REDACTED PERSONAL DATA,"1,790.40",LD LTS 18-64,PAYMENTS TO CLIENTS (DIRECT PAYMENTS),2102657069
12.04.2017,ADULT SOCIAL CARE,REDACTED PERSONAL DATA,875,LD LTS 18-64,PAYMENTS TO CLIENTS (DIRECT PAYMENTS),2102657930
12.04.2017,ADULT SOCIAL CARE,REDACTED PERSONAL DATA,616,LD LTS 18-64,PAYMENTS TO CLIENTS (DIRECT PAYMENTS),2102657916
12.04.2017,ADULT SOCIAL CARE,REDACTED PERSONAL DATA,409.08,LD LTS 18-64,PAYMENTS TO CLIENTS (DIRECT PAYMENTS),2102658047
12.04.2017,ADULT SOCIAL CARE,REDACTED PERSONAL DATA,"2,344.00",LD LTS 18-64,PAYMENTS TO CLIENTS (DIRECT PAYMENTS),2102657927
12.04.2017,ADULT SOCIAL CARE,REDACTED PERSONAL DATA,331.08,LD LTS 18-64,PAYMENTS TO CLIENTS (DIRECT PAYMENTS),2102657936
12.04.2017,ADULT SOCIAL CARE,REDACTED PERSONAL DATA,624,LD LTS 18-64,PAYMENTS TO CLIENTS (DIRECT PAYMENTS),2102658012
12.04.2017,ADULT SOCIAL CARE,REDACTED PERSONAL DATA,"2,660.20",LD LTS 18-64,PAYMENTS TO CLIENTS (DIRECT PAYMENTS),2102657950
12.04.2017,ADULT SOCIAL CARE,REDACTED PERSONAL DATA,"1,338.04",LD LTS 18-64,PAYMENTS TO CLIENTS (DIRECT PAYMENTS),2102656806
12.04.2017,ADULT SOCIAL CARE,REDACTED PERSONAL DATA,458.64,LD LTS 18-64,PAYMENTS TO CLIENTS (DIRECT PAYMENTS),2102657981
12.04.2017,ADULT SOCIAL CARE,REDACTED PERSONAL DATA,"1,197.96",LD LTS 18-64,PAYMENTS TO CLIENTS (DIRECT PAYMENTS),2102657937
12.04.2017,ADULT SOCIAL CARE,REDACTED PERSONAL DATA,"13,198.16",LD LTS 18-64,PAYMENTS TO CLIENTS (DIRECT PAYMENTS),2102658000
12.04.2017,ADULT SOCIAL CARE,REDACTED PERSONAL DATA,"3,162.12",LD LTS 18-64,PAYMENTS TO CLIENTS (DIRECT PAYMENTS),2102656841
12.04.2017,ADULT SOCIAL CARE,REDACTED PERSONAL DATA,"12,580.00",LD LTS 18-64,PAYMENTS TO CLIENTS (DIRECT PAYMENTS),2102657901
12.04.2017,ADULT SOCIAL CARE,REDACTED PERSONAL DATA,"1,019.44",LD LTS 18-64,PAYMENTS TO CLIENTS (DIRECT PAYMENTS),2102657920
12.04.2017,ADULT SOCIAL CARE,REDACTED PERSONAL DATA,"1,800.00",LD LTS 18-64,PAYMENTS TO CLIENTS (DIRECT PAYMENTS),2102657735
12.04.2017,ADULT SOCIAL CARE,REDACTED PERSONAL DATA,"1,811.76",LD LTS 18-64,PAYMENTS TO CLIENTS (DIRECT PAYMENTS),2102658015
12.04.2017,ADULT SOCIAL CARE,REDACTED PERSONAL DATA,"2,736.00",LD LTS 18-64,PAYMENTS TO CLIENTS (DIRECT PAYMENTS),2102657580
12.04.2017,ADULT SOCIAL CARE,REDACTED PERSONAL DATA,314.96,LD LTS 18-64,PAYMENTS TO CLIENTS (DIRECT PAYMENTS),2102657991
12.04.2017,ADULT SOCIAL CARE,REDACTED PERSONAL DATA,484.32,LD LTS 18-64,PAYMENTS TO CLIENTS (DIRECT PAYMENTS),2102657473
12.04.2017,ADULT SOCIAL CARE,REDACTED PERSONAL DATA,"1,051.40",LD LTS 18-64,PAYMENTS TO CLIENTS (DIRECT PAYMENTS),2102657273
12.04.2017,ADULT SOCIAL CARE,REDACTED PERSONAL DATA,"1,356.44",LD LTS 18-64,SUPPORTED LIVING,2102657914
12.04.2017,ADULT SOCIAL CARE,REDACTED PERSONAL DATA,"1,032.16",LD LTS 18-64,SUPPORTED LIVING,2102657894
12.04.2017,ADULT SOCIAL CARE,REDACTED PERSONAL DATA,-649.39,LD LTS 18-64,SUPPORTED LIVING,2102657492
12.04.2017,ADULT SOCIAL CARE,REDACTED PERSONAL DATA,"1,136.44",LD LTS 18-64,SUPPORTED LIVING,2102657107
12.04.2017,ADULT SOCIAL CARE,REDACTED PERSONAL DATA,364.96,LD LTS 18-64,SUPPORTED LIVING,2102657329
12.04.2017,ADULT SOCIAL CARE,REDACTED PERSONAL DATA,421.92,LD LTS 18-64,SUPPORTED LIVING,2102656915
12.04.2017,ADULT SOCIAL CARE,REDACTED PERSONAL DATA,"1,895.44",LD LTS 18-64,SUPPORTED LIVING,2102657135
12.04.2017,ADULT SOCIAL CARE,REDACTED PERSONAL DATA,"1,930.60",LD LTS 18-64,SUPPORTED LIVING,2102657261
12.04.2017,ADULT SOCIAL CARE,REDACTED PERSONAL DATA,"2,314.20",LD LTS 18-64,SUPPORTED LIVING,2102657641
12.04.2017,ADULT SOCIAL CARE,REDACTED PERSONAL DATA,"2,460.92",LD LTS 18-64,SUPPORTED LIVING,2102657443
12.04.2017,ADULT SOCIAL CARE,REDACTED PERSONAL DATA,"6,524.00",LD LTS 18-64,SUPPORTED LIVING,2102657168
12.04.2017,ADULT SOCIAL CARE,REDACTED PERSONAL DATA,330,LD LTS 18-64,SUPPORTED LIVING,2102655738
12.04.2017,ADULT SOCIAL CARE,REDACTED PERSONAL DATA,"1,640.00",LD LTS 18-64,SUPPORTED LIVING,2102657911
12.04.2017,ADULT SOCIAL CARE,REDACTED PERSONAL DATA,"1,570.00",LD LTS 18-64,SUPPORTED LIVING,2102657622
12.04.2017,ADULT SOCIAL CARE,THE CAMDEN SOCIETY (SOCIAL CARE),"-1,372.80",LD LTS 18-64,DAYCARE,2102656946
12.04.2017,ADULT SOCIAL CARE,THE CAMDEN SOCIETY (SOCIAL CARE),384,LD LTS 18-64,DAYCARE,2102657155
12.04.2017,ADULT SOCIAL CARE,THE CAMDEN SOCIETY (SOCIAL CARE),465.6,LD LTS 18-64,DAYCARE,2102657328
12.04.2017,ADULT SOCIAL CARE,THE CAMDEN SOCIETY (SOCIAL CARE),465.6,LD LTS 18-64,DAYCARE,2102657749
12.04.2017,ADULT SOCIAL CARE,THE CAMDEN SOCIETY (SOCIAL CARE),504,LD LTS 18-64,DAYCARE,2102657743
12.04.2017,ADULT SOCIAL CARE,THE CAMDEN SOCIETY (SOCIAL CARE),609.6,LD LTS 18-64,DAYCARE,2102657287
12.04.2017,ADULT SOCIAL CARE,THE CAMDEN SOCIETY (SOCIAL CARE),700,LD LTS 18-64,DAYCARE,2102657270
12.04.2017,ADULT SOCIAL CARE,THE CAMDEN SOCIETY (SOCIAL CARE),705.6,LD LTS 18-64,DAYCARE,2102657307
12.04.2017,ADULT SOCIAL CARE,THE CAMDEN SOCIETY (SOCIAL CARE),753.6,LD LTS 18-64,DAYCARE,2102656793
12.04.2017,ADULT SOCIAL CARE,THE CAMDEN SOCIETY (SOCIAL CARE),753.6,LD LTS 18-64,DAYCARE,2102656930
12.04.2017,ADULT SOCIAL CARE,THE CAMDEN SOCIETY (SOCIAL CARE),753.6,LD LTS 18-64,DAYCARE,2102657050
12.04.2017,ADULT SOCIAL CARE,THE CAMDEN SOCIETY (SOCIAL CARE),753.6,LD LTS 18-64,DAYCARE,2102657216
12.04.2017,ADULT SOCIAL CARE,THE CAMDEN SOCIETY (SOCIAL CARE),753.6,LD LTS 18-64,DAYCARE,2102657309
12.04.2017,ADULT SOCIAL CARE,THE CAMDEN SOCIETY (SOCIAL CARE),753.6,LD LTS 18-64,DAYCARE,2102657550
12.04.2017,ADULT SOCIAL CARE,THE CAMDEN SOCIETY (SOCIAL CARE),753.6,LD LTS 18-64,DAYCARE,2102657709
12.04.2017,ADULT SOCIAL CARE,THE CAMDEN SOCIETY (SOCIAL CARE),753.6,LD LTS 18-64,DAYCARE,2102657811
12.04.2017,ADULT SOCIAL CARE,THE CAMDEN SOCIETY (SOCIAL CARE),988,LD LTS 18-64,DAYCARE,2102656921
12.04.2017,ADULT SOCIAL CARE,THE CAMDEN SOCIETY (SOCIAL CARE),988,LD LTS 18-64,DAYCARE,2102656983
12.04.2017,ADULT SOCIAL CARE,THE CAMDEN SOCIETY (SOCIAL CARE),988,LD LTS 18-64,DAYCARE,2102656989
12.04.2017,ADULT SOCIAL CARE,THE CAMDEN SOCIETY (SOCIAL CARE),988,LD LTS 18-64,DAYCARE,2102657072
12.04.2017,ADULT SOCIAL CARE,THE CAMDEN SOCIETY (SOCIAL CARE),988,LD LTS 18-64,DAYCARE,2102657532
12.04.2017,ADULT SOCIAL CARE,THE CAMDEN SOCIETY (SOCIAL CARE),988,LD LTS 18-64,DAYCARE,2102657539
12.04.2017,ADULT SOCIAL CARE,THE CAMDEN SOCIETY (SOCIAL CARE),"1,060.00",LD LTS 18-64,DAYCARE,2102656778
12.04.2017,ADULT SOCIAL CARE,THE CAMDEN SOCIETY (SOCIAL CARE),"1,060.00",LD LTS 18-64,DAYCARE,2102656782
12.04.2017,ADULT SOCIAL CARE,THE CAMDEN SOCIETY (SOCIAL CARE),"1,060.00",LD LTS 18-64,DAYCARE,2102657198
12.04.2017,ADULT SOCIAL CARE,THE CAMDEN SOCIETY (SOCIAL CARE),"1,060.00",LD LTS 18-64,DAYCARE,2102657220
12.04.2017,ADULT SOCIAL CARE,THE CAMDEN SOCIETY (SOCIAL CARE),"1,060.00",LD LTS 18-64,DAYCARE,2102657354
12.04.2017,ADULT SOCIAL CARE,THE CAMDEN SOCIETY (SOCIAL CARE),"1,060.00",LD LTS 18-64,DAYCARE,2102657417
12.04.2017,ADULT SOCIAL CARE,THE CAMDEN SOCIETY (SOCIAL CARE),"1,060.00",LD LTS 18-64,DAYCARE,2102657498
12.04.2017,ADULT SOCIAL CARE,THE CAMDEN SOCIETY (SOCIAL CARE),"1,060.00",LD LTS 18-64,DAYCARE,2102657615
12.04.2017,ADULT SOCIAL CARE,THE CAMDEN SOCIETY (SOCIAL CARE),"1,060.00",LD LTS 18-64,DAYCARE,2102657770
12.04.2017,ADULT SOCIAL CARE,THE CAMDEN SOCIETY (SOCIAL CARE),"1,105.60",LD LTS 18-64,DAYCARE,2102656978
12.04.2017,ADULT SOCIAL CARE,THE CAMDEN SOCIETY (SOCIAL CARE),"1,128.00",LD LTS 18-64,DAYCARE,2102656868
12.04.2017,ADULT SOCIAL CARE,THE CAMDEN SOCIETY (SOCIAL CARE),"1,128.00",LD LTS 18-64,DAYCARE,2102656956
12.04.2017,ADULT SOCIAL CARE,THE CAMDEN SOCIETY (SOCIAL CARE),"1,128.00",LD LTS 18-64,DAYCARE,2102657607
12.04.2017,ADULT SOCIAL CARE,THE CAMDEN SOCIETY (SOCIAL CARE),"1,128.00",LD LTS 18-64,DAYCARE,2102657825
12.04.2017,ADULT SOCIAL CARE,THE CAMDEN SOCIETY (SOCIAL CARE),"1,137.60",LD LTS 18-64,DAYCARE,2102656815
12.04.2017,ADULT SOCIAL CARE,THE CAMDEN SOCIETY (SOCIAL CARE),"1,137.60",LD LTS 18-64,DAYCARE,2102656934
12.04.2017,ADULT SOCIAL CARE,THE CAMDEN SOCIETY (SOCIAL CARE),"1,137.60",LD LTS 18-64,DAYCARE,2102656990
12.04.2017,ADULT SOCIAL CARE,THE CAMDEN SOCIETY (SOCIAL CARE),"1,137.60",LD LTS 18-64,DAYCARE,2102657258
12.04.2017,ADULT SOCIAL CARE,THE CAMDEN SOCIETY (SOCIAL CARE),"1,137.60",LD LTS 18-64,DAYCARE,2102657462
12.04.2017,ADULT SOCIAL CARE,THE CAMDEN SOCIETY (SOCIAL CARE),"1,137.60",LD LTS 18-64,DAYCARE,2102657597
12.04.2017,ADULT SOCIAL CARE,THE CAMDEN SOCIETY (SOCIAL CARE),"1,137.60",LD LTS 18-64,DAYCARE,2102657692
12.04.2017,ADULT SOCIAL CARE,THE CAMDEN SOCIETY (SOCIAL CARE),"1,451.52",LD LTS 18-64,DAYCARE,2102657513
12.04.2017,ADULT SOCIAL CARE,THE CAMDEN SOCIETY (SOCIAL CARE),"1,473.60",LD LTS 18-64,DAYCARE,2102657105
12.04.2017,ADULT SOCIAL CARE,THE CAMDEN SOCIETY (SOCIAL CARE),"1,473.60",LD LTS 18-64,DAYCARE,2102657165
12.04.2017,ADULT SOCIAL CARE,THE CAMDEN SOCIETY (SOCIAL CARE),"1,492.00",LD LTS 18-64,DAYCARE,2102657102
12.04.2017,ADULT SOCIAL CARE,THE CAMDEN SOCIETY (SOCIAL CARE),"1,492.00",LD LTS 18-64,DAYCARE,2102657128
12.04.2017,ADULT SOCIAL CARE,THE CAMDEN SOCIETY (SOCIAL CARE),"1,536.48",LD LTS 18-64,DAYCARE,2102657642
12.04.2017,ADULT SOCIAL CARE,THE CAMDEN SOCIETY (SOCIAL CARE),"1,680.48",LD LTS 18-64,DAYCARE,2102656938
12.04.2017,ADULT SOCIAL CARE,THE CAMDEN SOCIETY (SOCIAL CARE),"1,824.48",LD LTS 18-64,DAYCARE,2102657295
12.04.2017,ADULT SOCIAL CARE,THE CAMDEN SOCIETY (SOCIAL CARE),"1,824.48",LD LTS 18-64,DAYCARE,2102657335
12.04.2017,ADULT SOCIAL CARE,THE CAMDEN SOCIETY (SOCIAL CARE),"1,824.48",LD LTS 18-64,DAYCARE,2102657428
12.04.2017,ADULT SOCIAL CARE,THE CAMDEN SOCIETY (SOCIAL CARE),"1,848.00",LD LTS 18-64,DAYCARE,2102656969
12.04.2017,ADULT SOCIAL CARE,THE CAMDEN SOCIETY (SOCIAL CARE),"1,848.00",LD LTS 18-64,DAYCARE,2102657036
12.04.2017,ADULT SOCIAL CARE,THE CAMDEN SOCIETY (SOCIAL CARE),"1,848.00",LD LTS 18-64,DAYCARE,2102657078
12.04.2017,ADULT SOCIAL CARE,THE CAMDEN SOCIETY (SOCIAL CARE),"1,848.00",LD LTS 18-64,DAYCARE,2102657321
12.04.2017,ADULT SOCIAL CARE,THE CAMDEN SOCIETY (SOCIAL CARE),"1,848.00",LD LTS 18-64,DAYCARE,2102657368
12.04.2017,ADULT SOCIAL CARE,THE CAMDEN SOCIETY (SOCIAL CARE),"1,848.00",LD LTS 18-64,DAYCARE,2102657381
12.04.2017,ADULT SOCIAL CARE,THE CAMDEN SOCIETY (SOCIAL CARE),"1,848.00",LD LTS 18-64,DAYCARE,2102657415
12.04.2017,ADULT SOCIAL CARE,THE CAMDEN SOCIETY (SOCIAL CARE),"1,848.00",LD LTS 18-64,DAYCARE,2102657690
12.04.2017,ADULT SOCIAL CARE,THE CAMDEN SOCIETY (SOCIAL CARE),"1,848.00",LD LTS 18-64,DAYCARE,2102657722
12.04.2017,ADULT SOCIAL CARE,THE CAMDEN SOCIETY (SOCIAL CARE),"1,848.00",LD LTS 18-64,DAYCARE,2102657726
12.04.2017,ADULT SOCIAL CARE,THE CAMDEN SOCIETY (SOCIAL CARE),"1,852.00",LD LTS 18-64,DAYCARE,2102657479
12.04.2017,ADULT SOCIAL CARE,THE CAMDEN SOCIETY (SOCIAL CARE),"1,924.00",LD LTS 18-64,DAYCARE,2102657340
12.04.2017,ADULT SOCIAL CARE,THE CAMDEN SOCIETY (SOCIAL CARE),"1,926.16",LD LTS 18-64,DAYCARE,2102657186
12.04.2017,ADULT SOCIAL CARE,THE CAMDEN SOCIETY (SOCIAL CARE),"2,154.52",LD LTS 18-64,DAYCARE,2102656918
12.04.2017,ADULT SOCIAL CARE,THE CAMDEN SOCIETY (SOCIAL CARE),"2,328.48",LD LTS 18-64,DAYCARE,2102657051
12.04.2017,ADULT SOCIAL CARE,THE CAMDEN SOCIETY (SOCIAL CARE),"2,412.00",LD LTS 18-64,DAYCARE,2102657286
12.04.2017,ADULT SOCIAL CARE,THE CAMDEN SOCIETY (SOCIAL CARE),"2,412.00",LD LTS 18-64,DAYCARE,2102657688
12.04.2017,ADULT SOCIAL CARE,THE CAMDEN SOCIETY (SOCIAL CARE),"2,412.00",LD LTS 18-64,DAYCARE,2102657719
12.04.2017,ADULT SOCIAL CARE,THE CAMDEN SOCIETY (SOCIAL CARE),"2,412.00",LD LTS 18-64,DAYCARE,2102657790
12.04.2017,ADULT SOCIAL CARE,THE CAMDEN SOCIETY (SOCIAL CARE),"2,489.68",LD LTS 18-64,DAYCARE,2102657695
12.04.2017,ADULT SOCIAL CARE,THE CAMDEN SOCIETY (SOCIAL CARE),"2,760.48",LD LTS 18-64,DAYCARE,2102657278
12.04.2017,ADULT SOCIAL CARE,THE CAMDEN SOCIETY (SOCIAL CARE),"3,538.08",LD LTS 18-64,DAYCARE,2102657351
12.04.2017,ADULT SOCIAL CARE,AURORA OPTIONS,408,LD LTS 18-64,DAYCARE,2102657230
12.04.2017,ADULT SOCIAL CARE,THE NEW SHOOTS,375,LD LTS 18-64,DAYCARE,2102655816
12.04.2017,ADULT SOCIAL CARE,FRESH IDEAS & SOLUTIONS SERVICES CIC,"-2,048.68",LD LTS 18-64,DISCRETIONARY FLEXIBLE FEES & INCOME,2102657178
12.04.2017,ADULT SOCIAL CARE,FRESH IDEAS & SOLUTIONS SERVICES CIC,"-1,514.96",LD LTS 18-64,DISCRETIONARY FLEXIBLE FEES & INCOME,2102656972
12.04.2017,ADULT SOCIAL CARE,KENT HARRIER PROPERTY MANAGEMENT,"1,526.00",LD LTS 18-64,EXTERNAL AGENCIES AND BODIES,2102655802
12.04.2017,ADULT SOCIAL CARE,KENT HARRIER PROPERTY MANAGEMENT,"1,590.00",LD LTS 18-64,EXTERNAL AGENCIES AND BODIES,2102655801
12.04.2017,ADULT SOCIAL CARE,NESTOR PRIMECARE SERVICES LTD,"1,170.00",LD LTS 18-64,HOMECARE - C&V,2102657456
12.04.2017,ADULT SOCIAL CARE,SWK AFRICAN FAMILY SUPPORT SVCS,"1,310.40",LD LTS 18-64,HOMECARE - C&V,2102657762
12.04.2017,ADULT SOCIAL CARE,FRESH IDEAS & SOLUTIONS SERVICES CIC,644,LD LTS 18-64,HOMECARE - C&V,2102657518
12.04.2017,ADULT SOCIAL CARE,FRESH IDEAS & SOLUTIONS SERVICES CIC,895.6,LD LTS 18-64,HOMECARE - C&V,2102657277
12.04.2017,ADULT SOCIAL CARE,FRESH IDEAS & SOLUTIONS SERVICES CIC,"1,067.12",LD LTS 18-64,HOMECARE - C&V,2102657086
12.04.2017,ADULT SOCIAL CARE,PEOPLES CARE LTD,"2,574.40",LD LTS 18-64,HOMECARE - C&V,2102657249
12.04.2017,ADULT SOCIAL CARE,THE CAMDEN SOCIETY (SOCIAL CARE),484,LD LTS 18-64,HOMECARE - SPOT,2102657817
12.04.2017,ADULT SOCIAL CARE,FRESH IDEAS & SOLUTIONS SERVICES CIC,"1,480.96",LD LTS 18-64,HOMECARE - SPOT,2102656970
12.04.2017,ADULT SOCIAL CARE,FRESH IDEAS & SOLUTIONS SERVICES CIC,"1,848.00",LD LTS 18-64,HOMECARE - SPOT,2102656882
12.04.2017,ADULT SOCIAL CARE,PEOPLE PLUS,"-3,224.00",LD LTS 18-64,PAYMENTS TO CLIENTS (DIRECT PAYMENTS),2102657151
12.04.2017,ADULT SOCIAL CARE,PEOPLE PLUS,"-1,639.24",LD LTS 18-64,PAYMENTS TO CLIENTS (DIRECT PAYMENTS),2102657742
12.04.2017,ADULT SOCIAL CARE,PEOPLE PLUS,"-1,044.90",LD LTS 18-64,PAYMENTS TO CLIENTS (DIRECT PAYMENTS),2102657325
12.04.2017,ADULT SOCIAL CARE,PEOPLE PLUS,254.68,LD LTS 18-64,PAYMENTS TO CLIENTS (DIRECT PAYMENTS),2102657784
12.04.2017,ADULT SOCIAL CARE,PEOPLE PLUS,266,LD LTS 18-64,PAYMENTS TO CLIENTS (DIRECT PAYMENTS),2102657478
12.04.2017,ADULT SOCIAL CARE,PEOPLE PLUS,288.4,LD LTS 18-64,PAYMENTS TO CLIENTS (DIRECT PAYMENTS),2102657131
12.04.2017,ADULT SOCIAL CARE,PEOPLE PLUS,288.4,LD LTS 18-64,PAYMENTS TO CLIENTS (DIRECT PAYMENTS),2102657409
12.04.2017,ADULT SOCIAL CARE,PEOPLE PLUS,289.36,LD LTS 18-64,PAYMENTS TO CLIENTS (DIRECT PAYMENTS),2102657465
12.04.2017,ADULT SOCIAL CARE,PEOPLE PLUS,307.84,LD LTS 18-64,PAYMENTS TO CLIENTS (DIRECT PAYMENTS),2102657143
12.04.2017,ADULT SOCIAL CARE,PEOPLE PLUS,329.8,LD LTS 18-64,PAYMENTS TO CLIENTS (DIRECT PAYMENTS),2102657553
12.04.2017,ADULT SOCIAL CARE,PEOPLE PLUS,356.92,LD LTS 18-64,PAYMENTS TO CLIENTS (DIRECT PAYMENTS),2102657259
12.04.2017,ADULT SOCIAL CARE,PEOPLE PLUS,365.88,LD LTS 18-64,PAYMENTS TO CLIENTS (DIRECT PAYMENTS),2102657602
12.04.2017,ADULT SOCIAL CARE,PEOPLE PLUS,383.44,LD LTS 18-64,PAYMENTS TO CLIENTS (DIRECT PAYMENTS),2102657183
12.04.2017,ADULT SOCIAL CARE,PEOPLE PLUS,395.12,LD LTS 18-64,PAYMENTS TO CLIENTS (DIRECT PAYMENTS),2102657044
12.04.2017,ADULT SOCIAL CARE,PEOPLE PLUS,408.4,LD LTS 18-64,PAYMENTS TO CLIENTS (DIRECT PAYMENTS),2102657348
12.04.2017,ADULT SOCIAL CARE,PEOPLE PLUS,415.6,LD LTS 18-64,PAYMENTS TO CLIENTS (DIRECT PAYMENTS),2102656811
12.04.2017,ADULT SOCIAL CARE,PEOPLE PLUS,424,LD LTS 18-64,PAYMENTS TO CLIENTS (DIRECT PAYMENTS),2102656890
12.04.2017,ADULT SOCIAL CARE,PEOPLE PLUS,440,LD LTS 18-64,PAYMENTS TO CLIENTS (DIRECT PAYMENTS),2102657527
12.04.2017,ADULT SOCIAL CARE,PEOPLE PLUS,450,LD LTS 18-64,PAYMENTS TO CLIENTS (DIRECT PAYMENTS),2102657701
12.04.2017,ADULT SOCIAL CARE,PEOPLE PLUS,450,LD LTS 18-64,PAYMENTS TO CLIENTS (DIRECT PAYMENTS),2102657753
12.04.2017,ADULT SOCIAL CARE,PEOPLE PLUS,493.36,LD LTS 18-64,PAYMENTS TO CLIENTS (DIRECT PAYMENTS),2102657626
12.04.2017,ADULT SOCIAL CARE,PEOPLE PLUS,505.96,LD LTS 18-64,PAYMENTS TO CLIENTS (DIRECT PAYMENTS),2102656866
12.04.2017,ADULT SOCIAL CARE,PEOPLE PLUS,556.4,LD LTS 18-64,PAYMENTS TO CLIENTS (DIRECT PAYMENTS),2102657200
12.04.2017,ADULT SOCIAL CARE,PEOPLE PLUS,578,LD LTS 18-64,PAYMENTS TO CLIENTS (DIRECT PAYMENTS),2102657599
12.04.2017,ADULT SOCIAL CARE,PEOPLE PLUS,613.52,LD LTS 18-64,PAYMENTS TO CLIENTS (DIRECT PAYMENTS),2102657007
12.04.2017,ADULT SOCIAL CARE,PEOPLE PLUS,665.2,LD LTS 18-64,PAYMENTS TO CLIENTS (DIRECT PAYMENTS),2102657523
12.04.2017,ADULT SOCIAL CARE,PEOPLE PLUS,670,LD LTS 18-64,PAYMENTS TO CLIENTS (DIRECT PAYMENTS),2102656887
12.04.2017,ADULT SOCIAL CARE,PEOPLE PLUS,679.2,LD LTS 18-64,PAYMENTS TO CLIENTS (DIRECT PAYMENTS),2102657079
12.04.2017,ADULT SOCIAL CARE,PEOPLE PLUS,690.72,LD LTS 18-64,PAYMENTS TO CLIENTS (DIRECT PAYMENTS),2102657181
12.04.2017,ADULT SOCIAL CARE,PEOPLE PLUS,707.04,LD LTS 18-64,PAYMENTS TO CLIENTS (DIRECT PAYMENTS),2102657379
12.04.2017,ADULT SOCIAL CARE,PEOPLE PLUS,712.4,LD LTS 18-64,PAYMENTS TO CLIENTS (DIRECT PAYMENTS),2102657263
12.04.2017,ADULT SOCIAL CARE,PEOPLE PLUS,712.4,LD LTS 18-64,PAYMENTS TO CLIENTS (DIRECT PAYMENTS),2102657682
12.04.2017,ADULT SOCIAL CARE,PEOPLE PLUS,743.04,LD LTS 18-64,PAYMENTS TO CLIENTS (DIRECT PAYMENTS),2102656838
12.04.2017,ADULT SOCIAL CARE,PEOPLE PLUS,754,LD LTS 18-64,PAYMENTS TO CLIENTS (DIRECT PAYMENTS),2102657665
12.04.2017,ADULT SOCIAL CARE,PEOPLE PLUS,755.6,LD LTS 18-64,PAYMENTS TO CLIENTS (DIRECT PAYMENTS),2102657033
12.04.2017,ADULT SOCIAL CARE,PEOPLE PLUS,758.72,LD LTS 18-64,PAYMENTS TO CLIENTS (DIRECT PAYMENTS),2102657591
12.04.2017,ADULT SOCIAL CARE,PEOPLE PLUS,794,LD LTS 18-64,PAYMENTS TO CLIENTS (DIRECT PAYMENTS),2102657073
12.04.2017,ADULT SOCIAL CARE,PEOPLE PLUS,813.36,LD LTS 18-64,PAYMENTS TO CLIENTS (DIRECT PAYMENTS),2102656949
12.04.2017,ADULT SOCIAL CARE,PEOPLE PLUS,815.36,LD LTS 18-64,PAYMENTS TO CLIENTS (DIRECT PAYMENTS),2102657349
12.04.2017,ADULT SOCIAL CARE,PEOPLE PLUS,862.64,LD LTS 18-64,PAYMENTS TO CLIENTS (DIRECT PAYMENTS),2102656977
12.04.2017,ADULT SOCIAL CARE,PEOPLE PLUS,875.6,LD LTS 18-64,PAYMENTS TO CLIENTS (DIRECT PAYMENTS),2102657149
12.04.2017,ADULT SOCIAL CARE,PEOPLE PLUS,876.92,LD LTS 18-64,PAYMENTS TO CLIENTS (DIRECT PAYMENTS),2102657484
12.04.2017,ADULT SOCIAL CARE,PEOPLE PLUS,892.36,LD LTS 18-64,PAYMENTS TO CLIENTS (DIRECT PAYMENTS),2102656987
12.04.2017,ADULT SOCIAL CARE,PEOPLE PLUS,909.24,LD LTS 18-64,PAYMENTS TO CLIENTS (DIRECT PAYMENTS),2102657614
12.04.2017,ADULT SOCIAL CARE,PEOPLE PLUS,918,LD LTS 18-64,PAYMENTS TO CLIENTS (DIRECT PAYMENTS),2102657413
12.04.2017,ADULT SOCIAL CARE,PEOPLE PLUS,934,LD LTS 18-64,PAYMENTS TO CLIENTS (DIRECT PAYMENTS),2102657235
12.04.2017,ADULT SOCIAL CARE,PEOPLE PLUS,934,LD LTS 18-64,PAYMENTS TO CLIENTS (DIRECT PAYMENTS),2102657789
12.04.2017,ADULT SOCIAL CARE,PEOPLE PLUS,"1,024.72",LD LTS 18-64,PAYMENTS TO CLIENTS (DIRECT PAYMENTS),2102657018
12.04.2017,ADULT SOCIAL CARE,PEOPLE PLUS,"1,069.36",LD LTS 18-64,PAYMENTS TO CLIENTS (DIRECT PAYMENTS),2102657668
12.04.2017,ADULT SOCIAL CARE,PEOPLE PLUS,"1,080.04",LD LTS 18-64,PAYMENTS TO CLIENTS (DIRECT PAYMENTS),2102657148
12.04.2017,ADULT SOCIAL CARE,PEOPLE PLUS,"1,129.80",LD LTS 18-64,PAYMENTS TO CLIENTS (DIRECT PAYMENTS),2102657208
12.04.2017,ADULT SOCIAL CARE,PEOPLE PLUS,"1,145.96",LD LTS 18-64,PAYMENTS TO CLIENTS (DIRECT PAYMENTS),2102657371
12.04.2017,ADULT SOCIAL CARE,PEOPLE PLUS,"1,171.28",LD LTS 18-64,PAYMENTS TO CLIENTS (DIRECT PAYMENTS),2102657320
12.04.2017,ADULT SOCIAL CARE,PEOPLE PLUS,"1,171.28",LD LTS 18-64,PAYMENTS TO CLIENTS (DIRECT PAYMENTS),2102657620
12.04.2017,ADULT SOCIAL CARE,PEOPLE PLUS,"1,211.60",LD LTS 18-64,PAYMENTS TO CLIENTS (DIRECT PAYMENTS),2102657209
12.04.2017,ADULT SOCIAL CARE,PEOPLE PLUS,"1,235.68",LD LTS 18-64,PAYMENTS TO CLIENTS (DIRECT PAYMENTS),2102657166
12.04.2017,ADULT SOCIAL CARE,PEOPLE PLUS,"1,239.04",LD LTS 18-64,PAYMENTS TO CLIENTS (DIRECT PAYMENTS),2102657360
12.04.2017,ADULT SOCIAL CARE,PEOPLE PLUS,"1,274.60",LD LTS 18-64,PAYMENTS TO CLIENTS (DIRECT PAYMENTS),2102657524
12.04.2017,ADULT SOCIAL CARE,PEOPLE PLUS,"1,377.28",LD LTS 18-64,PAYMENTS TO CLIENTS (DIRECT PAYMENTS),2102657781
12.04.2017,ADULT SOCIAL CARE,PEOPLE PLUS,"1,380.96",LD LTS 18-64,PAYMENTS TO CLIENTS (DIRECT PAYMENTS),2102656810
12.04.2017,ADULT SOCIAL CARE,PEOPLE PLUS,"1,398.00",LD LTS 18-64,PAYMENTS TO CLIENTS (DIRECT PAYMENTS),2102657471
12.04.2017,ADULT SOCIAL CARE,PEOPLE PLUS,"1,430.96",LD LTS 18-64,PAYMENTS TO CLIENTS (DIRECT PAYMENTS),2102657356
12.04.2017,ADULT SOCIAL CARE,PEOPLE PLUS,"1,474.96",LD LTS 18-64,PAYMENTS TO CLIENTS (DIRECT PAYMENTS),2102657659
12.04.2017,ADULT SOCIAL CARE,PEOPLE PLUS,"1,477.48",LD LTS 18-64,PAYMENTS TO CLIENTS (DIRECT PAYMENTS),2102656847
12.04.2017,ADULT SOCIAL CARE,PEOPLE PLUS,"1,480.20",LD LTS 18-64,PAYMENTS TO CLIENTS (DIRECT PAYMENTS),2102657799
12.04.2017,ADULT SOCIAL CARE,PEOPLE PLUS,"1,612.00",LD LTS 18-64,PAYMENTS TO CLIENTS (DIRECT PAYMENTS),2102657346
12.04.2017,ADULT SOCIAL CARE,PEOPLE PLUS,"1,617.56",LD LTS 18-64,PAYMENTS TO CLIENTS (DIRECT PAYMENTS),2102656911
12.04.2017,ADULT SOCIAL CARE,PEOPLE PLUS,"1,626.28",LD LTS 18-64,PAYMENTS TO CLIENTS (DIRECT PAYMENTS),2102657384
12.04.2017,ADULT SOCIAL CARE,PEOPLE PLUS,"1,635.44",LD LTS 18-64,PAYMENTS TO CLIENTS (DIRECT PAYMENTS),2102656878
12.04.2017,ADULT SOCIAL CARE,PEOPLE PLUS,"1,659.04",LD LTS 18-64,PAYMENTS TO CLIENTS (DIRECT PAYMENTS),2102656896
12.04.2017,ADULT SOCIAL CARE,PEOPLE PLUS,"1,666.08",LD LTS 18-64,PAYMENTS TO CLIENTS (DIRECT PAYMENTS),2102657060
12.04.2017,ADULT SOCIAL CARE,PEOPLE PLUS,"1,690.24",LD LTS 18-64,PAYMENTS TO CLIENTS (DIRECT PAYMENTS),2102657761
12.04.2017,ADULT SOCIAL CARE,PEOPLE PLUS,"1,693.84",LD LTS 18-64,PAYMENTS TO CLIENTS (DIRECT PAYMENTS),2102657447
12.04.2017,ADULT SOCIAL CARE,PEOPLE PLUS,"1,696.32",LD LTS 18-64,PAYMENTS TO CLIENTS (DIRECT PAYMENTS),2102657331
12.04.2017,ADULT SOCIAL CARE,PEOPLE PLUS,"1,714.00",LD LTS 18-64,PAYMENTS TO CLIENTS (DIRECT PAYMENTS),2102657370
12.04.2017,ADULT SOCIAL CARE,PEOPLE PLUS,"1,714.80",LD LTS 18-64,PAYMENTS TO CLIENTS (DIRECT PAYMENTS),2102657016
12.04.2017,ADULT SOCIAL CARE,PEOPLE PLUS,"1,772.16",LD LTS 18-64,PAYMENTS TO CLIENTS (DIRECT PAYMENTS),2102656944
12.04.2017,ADULT SOCIAL CARE,PEOPLE PLUS,"1,801.96",LD LTS 18-64,PAYMENTS TO CLIENTS (DIRECT PAYMENTS),2102657821
12.04.2017,ADULT SOCIAL CARE,PEOPLE PLUS,"1,813.48",LD LTS 18-64,PAYMENTS TO CLIENTS (DIRECT PAYMENTS),2102657341
12.04.2017,ADULT SOCIAL CARE,PEOPLE PLUS,"1,843.52",LD LTS 18-64,PAYMENTS TO CLIENTS (DIRECT PAYMENTS),2102656903
12.04.2017,ADULT SOCIAL CARE,PEOPLE PLUS,"1,862.00",LD LTS 18-64,PAYMENTS TO CLIENTS (DIRECT PAYMENTS),2102657763
12.04.2017,ADULT SOCIAL CARE,PEOPLE PLUS,"1,888.28",LD LTS 18-64,PAYMENTS TO CLIENTS (DIRECT PAYMENTS),2102657009
12.04.2017,ADULT SOCIAL CARE,PEOPLE PLUS,"1,911.52",LD LTS 18-64,PAYMENTS TO CLIENTS (DIRECT PAYMENTS),2102656843
12.04.2017,ADULT SOCIAL CARE,PEOPLE PLUS,"1,912.40",LD LTS 18-64,PAYMENTS TO CLIENTS (DIRECT PAYMENTS),2102657748
12.04.2017,ADULT SOCIAL CARE,PEOPLE PLUS,"1,950.96",LD LTS 18-64,PAYMENTS TO CLIENTS (DIRECT PAYMENTS),2102656888
12.04.2017,ADULT SOCIAL CARE,PEOPLE PLUS,"2,050.00",LD LTS 18-64,PAYMENTS TO CLIENTS (DIRECT PAYMENTS),2102656945
12.04.2017,ADULT SOCIAL CARE,PEOPLE PLUS,"2,108.12",LD LTS 18-64,PAYMENTS TO CLIENTS (DIRECT PAYMENTS),2102656876
12.04.2017,ADULT SOCIAL CARE,PEOPLE PLUS,"2,119.80",LD LTS 18-64,PAYMENTS TO CLIENTS (DIRECT PAYMENTS),2102656784
12.04.2017,ADULT SOCIAL CARE,PEOPLE PLUS,"2,167.80",LD LTS 18-64,PAYMENTS TO CLIENTS (DIRECT PAYMENTS),2102657100
12.04.2017,ADULT SOCIAL CARE,PEOPLE PLUS,"2,204.00",LD LTS 18-64,PAYMENTS TO CLIENTS (DIRECT PAYMENTS),2102657399
12.04.2017,ADULT SOCIAL CARE,PEOPLE PLUS,"2,245.12",LD LTS 18-64,PAYMENTS TO CLIENTS (DIRECT PAYMENTS),2102657578
12.04.2017,ADULT SOCIAL CARE,PEOPLE PLUS,"2,268.84",LD LTS 18-64,PAYMENTS TO CLIENTS (DIRECT PAYMENTS),2102657562
12.04.2017,ADULT SOCIAL CARE,PEOPLE PLUS,"2,312.40",LD LTS 18-64,PAYMENTS TO CLIENTS (DIRECT PAYMENTS),2102656779
12.04.2017,ADULT SOCIAL CARE,PEOPLE PLUS,"2,327.60",LD LTS 18-64,PAYMENTS TO CLIENTS (DIRECT PAYMENTS),2102657327
12.04.2017,ADULT SOCIAL CARE,PEOPLE PLUS,"2,332.00",LD LTS 18-64,PAYMENTS TO CLIENTS (DIRECT PAYMENTS),2102657751
12.04.2017,ADULT SOCIAL CARE,PEOPLE PLUS,"2,360.40",LD LTS 18-64,PAYMENTS TO CLIENTS (DIRECT PAYMENTS),2102657083
12.04.2017,ADULT SOCIAL CARE,PEOPLE PLUS,"2,447.76",LD LTS 18-64,PAYMENTS TO CLIENTS (DIRECT PAYMENTS),2102657419
12.04.2017,ADULT SOCIAL CARE,PEOPLE PLUS,"2,490.00",LD LTS 18-64,PAYMENTS TO CLIENTS (DIRECT PAYMENTS),2102657212
12.04.2017,ADULT SOCIAL CARE,PEOPLE PLUS,"2,494.00",LD LTS 18-64,PAYMENTS TO CLIENTS (DIRECT PAYMENTS),2102656817
12.04.2017,ADULT SOCIAL CARE,PEOPLE PLUS,"2,600.08",LD LTS 18-64,PAYMENTS TO CLIENTS (DIRECT PAYMENTS),2102657046
12.04.2017,ADULT SOCIAL CARE,PEOPLE PLUS,"2,733.64",LD LTS 18-64,PAYMENTS TO CLIENTS (DIRECT PAYMENTS),2102656986
12.04.2017,ADULT SOCIAL CARE,PEOPLE PLUS,"2,841.80",LD LTS 18-64,PAYMENTS TO CLIENTS (DIRECT PAYMENTS),2102657011
12.04.2017,ADULT SOCIAL CARE,PEOPLE PLUS,"2,918.00",LD LTS 18-64,PAYMENTS TO CLIENTS (DIRECT PAYMENTS),2102657397
12.04.2017,ADULT SOCIAL CARE,PEOPLE PLUS,"2,946.20",LD LTS 18-64,PAYMENTS TO CLIENTS (DIRECT PAYMENTS),2102656886
12.04.2017,ADULT SOCIAL CARE,PEOPLE PLUS,"3,322.56",LD LTS 18-64,PAYMENTS TO CLIENTS (DIRECT PAYMENTS),2102657495
12.04.2017,ADULT SOCIAL CARE,PEOPLE PLUS,"3,360.88",LD LTS 18-64,PAYMENTS TO CLIENTS (DIRECT PAYMENTS),2102657686
12.04.2017,ADULT SOCIAL CARE,PEOPLE PLUS,"3,809.20",LD LTS 18-64,PAYMENTS TO CLIENTS (DIRECT PAYMENTS),2102657414
12.04.2017,ADULT SOCIAL CARE,PEOPLE PLUS,"5,222.00",LD LTS 18-64,PAYMENTS TO CLIENTS (DIRECT PAYMENTS),2102657810
12.04.2017,ADULT SOCIAL CARE,PEOPLE PLUS,"7,521.32",LD LTS 18-64,PAYMENTS TO CLIENTS (DIRECT PAYMENTS),2102657382
12.04.2017,ADULT SOCIAL CARE,PEOPLE PLUS,"7,908.96",LD LTS 18-64,PAYMENTS TO CLIENTS (DIRECT PAYMENTS),2102657814
12.04.2017,ADULT SOCIAL CARE,PEOPLE PLUS,"12,619.20",LD LTS 18-64,PAYMENTS TO CLIENTS (DIRECT PAYMENTS),2102657052
12.04.2017,ADULT SOCIAL CARE,PEOPLE PLUS,"12,619.20",LD LTS 18-64,PAYMENTS TO CLIENTS (DIRECT PAYMENTS),2102657657
12.04.2017,ADULT SOCIAL CARE,PEOPLE PLUS,"15,164.00",LD LTS 18-64,PAYMENTS TO CLIENTS (DIRECT PAYMENTS),2102657364
12.04.2017,ADULT SOCIAL CARE,FRESH IDEAS & SOLUTIONS SERVICES CIC,"1,464.32",LD LTS 18-64,PAYMENTS TO CLIENTS (DIRECT PAYMENTS),2102657275
12.04.2017,ADULT SOCIAL CARE,FRESH IDEAS & SOLUTIONS SERVICES CIC,"1,613.60",LD LTS 18-64,PAYMENTS TO CLIENTS (DIRECT PAYMENTS),2102656998
12.04.2017,ADULT SOCIAL CARE,FRESH IDEAS & SOLUTIONS SERVICES CIC,"2,048.68",LD LTS 18-64,PAYMENTS TO CLIENTS (DIRECT PAYMENTS),2102657177
12.04.2017,ADULT SOCIAL CARE,CHOICE SUPPORT,352.8,LD LTS 18-64,SUPPORTED LIVING,2102657792
12.04.2017,ADULT SOCIAL CARE,CHOICE SUPPORT,428.48,LD LTS 18-64,SUPPORTED LIVING,2102656892
12.04.2017,ADULT SOCIAL CARE,CHOICE SUPPORT,464.8,LD LTS 18-64,SUPPORTED LIVING,2102657952
12.04.2017,ADULT SOCIAL CARE,CHOICE SUPPORT,480,LD LTS 18-64,SUPPORTED LIVING,2102657574
12.04.2017,ADULT SOCIAL CARE,CHOICE SUPPORT,493.92,LD LTS 18-64,SUPPORTED LIVING,2102657624
12.04.2017,ADULT SOCIAL CARE,CHOICE SUPPORT,564.48,LD LTS 18-64,SUPPORTED LIVING,2102657055
12.04.2017,ADULT SOCIAL CARE,CHOICE SUPPORT,592.44,LD LTS 18-64,SUPPORTED LIVING,2102657088
12.04.2017,ADULT SOCIAL CARE,CHOICE SUPPORT,660.08,LD LTS 18-64,SUPPORTED LIVING,2102657391
12.04.2017,ADULT SOCIAL CARE,CHOICE SUPPORT,705.6,LD LTS 18-64,SUPPORTED LIVING,2102657241
12.04.2017,ADULT SOCIAL CARE,CHOICE SUPPORT,733.48,LD LTS 18-64,SUPPORTED LIVING,2102656783
12.04.2017,ADULT SOCIAL CARE,CHOICE SUPPORT,"1,161.64",LD LTS 18-64,SUPPORTED LIVING,2102657611
12.04.2017,ADULT SOCIAL CARE,CHOICE SUPPORT,"1,579.84",LD LTS 18-64,SUPPORTED LIVING,2102657139
12.04.2017,ADULT SOCIAL CARE,CHOICE SUPPORT,"1,737.60",LD LTS 18-64,SUPPORTED LIVING,2102656914
12.04.2017,ADULT SOCIAL CARE,CHOICE SUPPORT,"1,869.28",LD LTS 18-64,SUPPORTED LIVING,2102657436
12.04.2017,ADULT SOCIAL CARE,CHOICE SUPPORT,"1,908.96",LD LTS 18-64,SUPPORTED LIVING,2102657648
12.04.2017,ADULT SOCIAL CARE,CHOICE SUPPORT,"1,976.00",LD LTS 18-64,SUPPORTED LIVING,2102657796
12.04.2017,ADULT SOCIAL CARE,CHOICE SUPPORT,"2,379.64",LD LTS 18-64,SUPPORTED LIVING,2102657555
12.04.2017,ADULT SOCIAL CARE,CHOICE SUPPORT,"2,396.00",LD LTS 18-64,SUPPORTED LIVING,2102657063
12.04.2017,ADULT SOCIAL CARE,CHOICE SUPPORT,"2,396.00",LD LTS 18-64,SUPPORTED LIVING,2102657802
12.04.2017,ADULT SOCIAL CARE,CHOICE SUPPORT,"2,696.00",LD LTS 18-64,SUPPORTED LIVING,2102657733
12.04.2017,ADULT SOCIAL CARE,CHOICE SUPPORT,"2,971.84",LD LTS 18-64,SUPPORTED LIVING,2102657110
12.04.2017,ADULT SOCIAL CARE,CHOICE SUPPORT,"3,256.00",LD LTS 18-64,SUPPORTED LIVING,2102657291
12.04.2017,ADULT SOCIAL CARE,CHOICE SUPPORT,"3,354.56",LD LTS 18-64,SUPPORTED LIVING,2102656889
12.04.2017,ADULT SOCIAL CARE,CHOICE SUPPORT,"3,436.64",LD LTS 18-64,SUPPORTED LIVING,2102657966
12.04.2017,ADULT SOCIAL CARE,CHOICE SUPPORT,"3,636.00",LD LTS 18-64,SUPPORTED LIVING,2102657125
12.04.2017,ADULT SOCIAL CARE,CHOICE SUPPORT,"3,680.00",LD LTS 18-64,SUPPORTED LIVING,2102657121
12.04.2017,ADULT SOCIAL CARE,CHOICE SUPPORT,"3,681.96",LD LTS 18-64,SUPPORTED LIVING,2102657262
12.04.2017,ADULT SOCIAL CARE,CHOICE SUPPORT,"3,868.71",LD LTS 18-64,SUPPORTED LIVING,2102656789
12.04.2017,ADULT SOCIAL CARE,CHOICE SUPPORT,"4,072.96",LD LTS 18-64,SUPPORTED LIVING,2102657933
12.04.2017,ADULT SOCIAL CARE,CHOICE SUPPORT,"4,101.32",LD LTS 18-64,SUPPORTED LIVING,2102657919
12.04.2017,ADULT SOCIAL CARE,CHOICE SUPPORT,"4,110.32",LD LTS 18-64,SUPPORTED LIVING,2102657301
12.04.2017,ADULT SOCIAL CARE,CHOICE SUPPORT,"4,204.00",LD LTS 18-64,SUPPORTED LIVING,2102657075
12.04.2017,ADULT SOCIAL CARE,CHOICE SUPPORT,"4,252.00",LD LTS 18-64,SUPPORTED LIVING,2102657081
12.04.2017,ADULT SOCIAL CARE,CHOICE SUPPORT,"4,340.04",LD LTS 18-64,SUPPORTED LIVING,2102657394
12.04.2017,ADULT SOCIAL CARE,CHOICE SUPPORT,"4,386.60",LD LTS 18-64,SUPPORTED LIVING,2102657944
12.04.2017,ADULT SOCIAL CARE,CHOICE SUPPORT,"4,452.92",LD LTS 18-64,SUPPORTED LIVING,2102657619
12.04.2017,ADULT SOCIAL CARE,CHOICE SUPPORT,"4,459.40",LD LTS 18-64,SUPPORTED LIVING,2102656798
12.04.2017,ADULT SOCIAL CARE,CHOICE SUPPORT,"4,634.12",LD LTS 18-64,SUPPORTED LIVING,2102657931
12.04.2017,ADULT SOCIAL CARE,CHOICE SUPPORT,"4,763.08",LD LTS 18-64,SUPPORTED LIVING,2102657512
12.04.2017,ADULT SOCIAL CARE,CHOICE SUPPORT,"4,826.76",LD LTS 18-64,SUPPORTED LIVING,2102657975
12.04.2017,ADULT SOCIAL CARE,CHOICE SUPPORT,"4,908.00",LD LTS 18-64,SUPPORTED LIVING,2102657538
12.04.2017,ADULT SOCIAL CARE,CHOICE SUPPORT,"4,979.36",LD LTS 18-64,SUPPORTED LIVING,2102657160
12.04.2017,ADULT SOCIAL CARE,CHOICE SUPPORT,"5,008.00",LD LTS 18-64,SUPPORTED LIVING,2102657689
12.04.2017,ADULT SOCIAL CARE,CHOICE SUPPORT,"5,022.16",LD LTS 18-64,SUPPORTED LIVING,2102657248
12.04.2017,ADULT SOCIAL CARE,CHOICE SUPPORT,"5,112.00",LD LTS 18-64,SUPPORTED LIVING,2102657683
12.04.2017,ADULT SOCIAL CARE,CHOICE SUPPORT,"5,211.88",LD LTS 18-64,SUPPORTED LIVING,2102657589
12.04.2017,ADULT SOCIAL CARE,CHOICE SUPPORT,"5,243.16",LD LTS 18-64,SUPPORTED LIVING,2102657569
12.04.2017,ADULT SOCIAL CARE,CHOICE SUPPORT,"5,289.48",LD LTS 18-64,SUPPORTED LIVING,2102657247
12.04.2017,ADULT SOCIAL CARE,CHOICE SUPPORT,"5,487.52",LD LTS 18-64,SUPPORTED LIVING,2102657785
12.04.2017,ADULT SOCIAL CARE,CHOICE SUPPORT,"5,502.03",LD LTS 18-64,SUPPORTED LIVING,2102657638
12.04.2017,ADULT SOCIAL CARE,CHOICE SUPPORT,"5,711.68",LD LTS 18-64,SUPPORTED LIVING,2102657577
12.04.2017,ADULT SOCIAL CARE,CHOICE SUPPORT,"5,871.44",LD LTS 18-64,SUPPORTED LIVING,2102656955
12.04.2017,ADULT SOCIAL CARE,CHOICE SUPPORT,"6,031.80",LD LTS 18-64,SUPPORTED LIVING,2102656947
12.04.2017,ADULT SOCIAL CARE,CHOICE SUPPORT,"6,105.10",LD LTS 18-64,SUPPORTED LIVING,2102657586
12.04.2017,ADULT SOCIAL CARE,CHOICE SUPPORT,"6,379.96",LD LTS 18-64,SUPPORTED LIVING,2102657306
12.04.2017,ADULT SOCIAL CARE,CHOICE SUPPORT,"6,404.48",LD LTS 18-64,SUPPORTED LIVING,2102657377
12.04.2017,ADULT SOCIAL CARE,CHOICE SUPPORT,"6,503.24",LD LTS 18-64,SUPPORTED LIVING,2102656910
12.04.2017,ADULT SOCIAL CARE,CHOICE SUPPORT,"7,674.56",LD LTS 18-64,SUPPORTED LIVING,2102656953
12.04.2017,ADULT SOCIAL CARE,CHOICE SUPPORT,"7,674.56",LD LTS 18-64,SUPPORTED LIVING,2102657741
12.04.2017,ADULT SOCIAL CARE,CHOICE SUPPORT,"8,080.68",LD LTS 18-64,SUPPORTED LIVING,2102656912
12.04.2017,ADULT SOCIAL CARE,HF TRUST LTD,"4,073.80",LD LTS 18-64,SUPPORTED LIVING,2102657358
12.04.2017,ADULT SOCIAL CARE,KEYRING-LIVING SUPPORT NETWORKS LTD,"9,615.84",LD LTS 18-64,SUPPORTED LIVING,2102657190
12.04.2017,ADULT SOCIAL CARE,PLUS SERVICES,"3,200.00",LD LTS 18-64,SUPPORTED LIVING,2102657359
12.04.2017,ADULT SOCIAL CARE,PLUS SERVICES,"4,857.20",LD LTS 18-64,SUPPORTED LIVING,2102657547
12.04.2017,ADULT SOCIAL CARE,PLUS SERVICES,"5,420.00",LD LTS 18-64,SUPPORTED LIVING,2102657214
12.04.2017,ADULT SOCIAL CARE,PLUS SERVICES,"7,042.08",LD LTS 18-64,SUPPORTED LIVING,2102657752
12.04.2017,ADULT SOCIAL CARE,THREE C'S SUPPORT,320,LD LTS 18-64,SUPPORTED LIVING,2102657601
12.04.2017,ADULT SOCIAL CARE,THREE C'S SUPPORT,526,LD LTS 18-64,SUPPORTED LIVING,2102657677
12.04.2017,ADULT SOCIAL CARE,CARE MANAGEMENT GROUP,"4,908.00",LD LTS 18-64,SUPPORTED LIVING,2102657004
12.04.2017,ADULT SOCIAL CARE,CARE MANAGEMENT GROUP,"32,700.00",LD LTS 18-64,SUPPORTED LIVING,2102657167
12.04.2017,ADULT SOCIAL CARE,BRANDON TRUST,"2,639.32",LD LTS 18-64,SUPPORTED LIVING,2102656794
12.04.2017,ADULT SOCIAL CARE,BRANDON TRUST,"2,672.88",LD LTS 18-64,SUPPORTED LIVING,2102657617
12.04.2017,ADULT SOCIAL CARE,BRANDON TRUST,"2,773.56",LD LTS 18-64,SUPPORTED LIVING,2102657646
12.04.2017,ADULT SOCIAL CARE,BRANDON TRUST,"3,004.08",LD LTS 18-64,SUPPORTED LIVING,2102657865
12.04.2017,ADULT SOCIAL CARE,BRANDON TRUST,"3,125.92",LD LTS 18-64,SUPPORTED LIVING,2102657631
12.04.2017,ADULT SOCIAL CARE,BRANDON TRUST,"3,356.08",LD LTS 18-64,SUPPORTED LIVING,2102657019
12.04.2017,ADULT SOCIAL CARE,BRANDON TRUST,"4,015.80",LD LTS 18-64,SUPPORTED LIVING,2102657299
